Department Family,Entity,Date of Payment,Expense Type,Expense Area,Supplier,Voluntary & Community Sector,SME Class,Sole Trader,D-U-N-S Number,Transaction number,PSPES Level 2,Narrative,Postal Code,Amount in Sterling,Grant?
"Housing, Communities & Local Government",MHCLG,01/05/2018,Agency Staff,Corporate Services,BROOK STREET UK LTD,,Large,,364940028,5106235905,Contingent Labour,Support Worker - Reasonable Adjustment,AL1 4JB,586.66,
"Housing, Communities & Local Government",MHCLG,01/05/2018,Current Grants to Non Profit Bodies,Housing & BSP,CONSTRUCTION INDUSTRY COUNCIL,,Small,,,2100282299,,Embed inclusive design into professional education,WC1E 7BT,"2,000.00",Yes
"Housing, Communities & Local Government",MHCLG,01/05/2018,Current Grants to Non Profit Bodies,Housing & BSP,DESIGN COUNCIL,,Medium,,227282019,2100282298,,Embed inclusive design into professional education,EC1V 4AB,"26,602.00",Yes
"Housing, Communities & Local Government",MHCLG,01/05/2018,Current Grants to Non Profit Bodies,Local Government & Public Services,DUKE PLAYHOUSE LTD,,Small,,,2100282294,,"Improving outcomes for Gypsy, Roma & Traveller communities",LA1 1QE,"12,392.75",Yes
"Housing, Communities & Local Government",MHCLG,01/05/2018,Current Grants to Non Profit Bodies,Local Government & Public Services,FRIENDS FAMILIES & TRAVELLERS,,,,,2100282290,,"Improving outcomes for Gypsy, Roma & Traveller communities",BN1 3XG,"15,000.00",Yes
"Housing, Communities & Local Government",MHCLG,01/05/2018,Current Grants to Non Profit Bodies,Local Government & Public Services,GRANBY TOXTETH DEV TRUST,,,,,2100282291,,"Improving outcomes for Gypsy, Roma & Traveller communities",L8 0QF,"14,875.00",Yes
"Housing, Communities & Local Government",MHCLG,01/05/2018,Current Grants to Non Profit Bodies,Local Government & Public Services,LUTON ROMA TRUST,,Micro,,,2100282293,,"Improving outcomes for Gypsy, Roma & Traveller communities",LU2 7JP,"12,946.00",Yes
"Housing, Communities & Local Government",MHCLG,01/05/2018,Current Grants to Non Profit Bodies,Local Government & Public Services,PRISON RADIO ASSOCIATION,,,,,2100282292,,"Improving outcomes for Gypsy, Roma & Traveller communities",SW2 5XF,"15,000.00",Yes
"Housing, Communities & Local Government",MHCLG,01/05/2018,Current Grants to Non Profit Bodies,Local Government & Public Services,THORNBURY CENTRE,Yes,,,,2100282295,,"Improving outcomes for Gypsy, Roma & Traveller communities",BD3 8JX,"14,745.75",Yes
"Housing, Communities & Local Government",MHCLG,01/05/2018,ERDF Work in Progress � Capital,Decentralisation and Local Growth,EAST MIDLANDS BUSINESS LTD,,Small,,,7700001992,,ERDF Grant payment,LE19 1RJ,"208,130.28",Yes
"Housing, Communities & Local Government",MHCLG,01/05/2018,ERDF Work in Progress � Capital,Decentralisation and Local Growth,WORCESTERSHIRE COUNTY COUNCIL,,,,,7700001997,,ERDF Grant payment,WR5 2NP,"133,506.14",Yes
"Housing, Communities & Local Government",MHCLG,01/05/2018,ERDF Work in Progress � Resource,Decentralisation and Local Growth,ASTON UNIVERSITY,,Large,,227749751,7700001993,,ERDF Grant payment,B4 7ET,"105,322.98",Yes
"Housing, Communities & Local Government",MHCLG,01/05/2018,ERDF Work in Progress � Resource,Decentralisation and Local Growth,ASTON UNIVERSITY,,Large,,227749751,7700001999,,ERDF Grant payment,B4 7ET,"47,848.79",Yes
"Housing, Communities & Local Government",MHCLG,01/05/2018,ERDF Work in Progress � Resource,Decentralisation and Local Growth,ASTON UNIVERSITY,,Large,,227749751,7700002000,,ERDF Grant payment,B4 7ET,"60,438.37",Yes
"Housing, Communities & Local Government",MHCLG,01/05/2018,ERDF Work in Progress � Resource,Decentralisation and Local Growth,CORNWALL COUNCIL,,Large,,,7700001995,,ERDF Grant payment,TR1 3AY,"27,002.69",Yes
"Housing, Communities & Local Government",MHCLG,01/05/2018,ERDF Work in Progress � Resource,Decentralisation and Local Growth,EAST MIDLANDS BUSINESS LTD,,Small,,,7700001992,,ERDF Grant payment,LE19 1RJ,"165,527.37",Yes
"Housing, Communities & Local Government",MHCLG,01/05/2018,ERDF Work in Progress � Resource,Decentralisation and Local Growth,GWE BUSINESS WEST LTD,,,,,7700001994,,ERDF Grant payment,BS8 3RA,"137,463.26",Yes
"Housing, Communities & Local Government",MHCLG,01/05/2018,ERDF Work in Progress � Resource,Decentralisation and Local Growth,WORCESTERSHIRE COUNTY COUNCIL,,,,,7700001997,,ERDF Grant payment,WR5 2NP,"130,423.21",Yes
"Housing, Communities & Local Government",MHCLG,01/05/2018,IT - Service Contracts,Chief Finance Office,FUJITSU SERVICES LTD,,Large,,423375062,5106235889,IT Managed / Outsourced Services,IT Software Upgrade,WA3 6GD,"1,640.00",
"Housing, Communities & Local Government",MHCLG,01/05/2018,Printers,Chief Finance Office,NEW RICOH UK,,Large,,424537512,5106235931,Office machines,AH A0 Photocopier Apr-Jun 2018 rental,NN4 7YB,500.28,
"Housing, Communities & Local Government",MHCLG,01/05/2018,Software Licences,Chief Finance Office,AMAZIC UK,,Micro,,,5106235888,Software,Github for Business Licence Subscription,E14 9TS,"2,760.00",
"Housing, Communities & Local Government",MHCLG,01/05/2018,Training,Chief Finance Office,SEMANTIC INTEGRATION LTD,,Small,,,5106235930,Development and Training,Civil Service Training,SE11 5JH,"3,000.00",
"Housing, Communities & Local Government",MHCLG,01/05/2018,Training,Chief Finance Office,SEMANTIC INTEGRATION LTD,,Small,,,5106235930,Development and Training,Civil Service Training,SE11 5JH,"1,500.00",
"Housing, Communities & Local Government",MHCLG,01/05/2018,Training,Decentralisation and Local Growth,ROYAL TOWN PLANNING INSTITUTE,,,,227231818,5106235906,Development and Training,Civil Service Training,EC3R 8DL,215.00,
"Housing, Communities & Local Government",MHCLG,02/05/2018,Agency Staff,Chief Finance Office,CAPITA BUS. SERV. LTD (CON LAB),,Large,,,5106235940,Contingent Labour,Capita Business Services - Business planning,DL1 9WQ,"4,126.14",
"Housing, Communities & Local Government",MHCLG,02/05/2018,Agency Staff,Chief Finance Office,CAPITA BUS. SERV. LTD (CON LAB),,Large,,,5106235943,Contingent Labour,Capita Business Services - Business planning,DL1 9WQ,"7,427.05",
"Housing, Communities & Local Government",MHCLG,02/05/2018,ERDF Work in Progress � Capital,Decentralisation and Local Growth,BIRMINGHAM CITY COUNCIL,,,,,7700002006,,ERDF Grant payment,B2 2AJ,"1,335,133.60",Yes
"Housing, Communities & Local Government",MHCLG,02/05/2018,ERDF Work in Progress � Capital,Decentralisation and Local Growth,NEWANGLIA LOC ENTER PARTNER LTD,,Medium,,,7700002003,,ERDF Grant payment,NR4 7UG,"197,934.14",Yes
"Housing, Communities & Local Government",MHCLG,02/05/2018,ERDF Work in Progress � Capital,Decentralisation and Local Growth,PETERBOROUGH ENVIRON CITY TRUST,Yes,Small,,,7700002005,,ERDF Grant payment,PE1 1NA,"17,910.78",Yes
"Housing, Communities & Local Government",MHCLG,02/05/2018,ERDF Work in Progress � Capital,Decentralisation and Local Growth,WYE AND USK FOUNDATION,,Small,,,7700002008,,ERDF Grant payment,LD3 0BW,"153,349.60",Yes
"Housing, Communities & Local Government",MHCLG,02/05/2018,ERDF Work in Progress � Resource,Decentralisation and Local Growth,ASTON UNIVERSITY,,Large,,227749751,7700002001,,ERDF Grant payment,B4 7ET,"60,581.10",Yes
"Housing, Communities & Local Government",MHCLG,02/05/2018,ERDF Work in Progress � Resource,Decentralisation and Local Growth,ASTON UNIVERSITY,,Large,,227749751,7700002002,,ERDF Grant payment,B4 7ET,"51,333.46",Yes
"Housing, Communities & Local Government",MHCLG,02/05/2018,ERDF Work in Progress � Resource,Decentralisation and Local Growth,ASTON UNIVERSITY,,Large,,227749751,7700002004,,ERDF Grant payment,B4 7ET,"52,211.53",Yes
"Housing, Communities & Local Government",MHCLG,02/05/2018,ERDF Work in Progress � Resource,Decentralisation and Local Growth,BIRMINGHAM CITY COUNCIL,,,,,7700002006,,ERDF Grant payment,B2 2AJ,"573,930.64",Yes
"Housing, Communities & Local Government",MHCLG,02/05/2018,ERDF Work in Progress � Resource,Decentralisation and Local Growth,EAST RIDING OF YORKSHIRE COUNCIL,,,,,2300002702,,ERDF Grant repayment,HU17 9BA,-546.70,Yes
"Housing, Communities & Local Government",MHCLG,02/05/2018,ERDF Work in Progress � Resource,Decentralisation and Local Growth,NEWANGLIA LOC ENTER PARTNER LTD,,Medium,,,7700002003,,ERDF Grant payment,NR4 7UG,"206,537.49",Yes
"Housing, Communities & Local Government",MHCLG,02/05/2018,ERDF Work in Progress � Resource,Decentralisation and Local Growth,PETERBOROUGH ENVIRON CITY TRUST,Yes,Small,,,7700002005,,ERDF Grant payment,PE1 1NA,"30,869.67",Yes
"Housing, Communities & Local Government",MHCLG,02/05/2018,ERDF Work in Progress � Resource,Decentralisation and Local Growth,WORCESTERSHIRE COUNTY COUNCIL,,,,,7700002007,,ERDF Grant payment,WR5 2NP,"7,682.51",Yes
"Housing, Communities & Local Government",MHCLG,02/05/2018,ERDF Work in Progress � Resource,Decentralisation and Local Growth,WYE AND USK FOUNDATION,,Small,,,7700002008,,ERDF Grant payment,LD3 0BW,"33,705.56",Yes
"Housing, Communities & Local Government",MHCLG,02/05/2018,EXP � PURCHASE OF GOODS /SERVICES R & D,Housing & BSP,ORDNANCE SURVEY,,Public Bodies,,211631592,5106235257,Research,Public Sector and Research and Monitoring,SO16 0AS,"71,137.00",
"Housing, Communities & Local Government",MHCLG,02/05/2018,IT - Service Contracts,Chief Finance Office,BSI CYBER SECURITY & INFO RESILIENC,,Small,,,5106235941,IT Managed / Outsourced Services,IA12551 Call Off 50 Days,GU14 0LX,"2,025.00",
"Housing, Communities & Local Government",MHCLG,02/05/2018,IT - Service Contracts,Chief Finance Office,BSI CYBER SECURITY & INFO RESILIENC,,Small,,,5106235942,IT Managed / Outsourced Services,CLAS/PEN Test Resource 95 days,GU14 0LX,450.00,
"Housing, Communities & Local Government",MHCLG,02/05/2018,IT - Service Contracts,Chief Finance Office,BSI CYBER SECURITY & INFO RESILIENC,,Small,,,5106235944,IT Managed / Outsourced Services,CLAS/PEN Test Resource 95 days,GU14 0LX,450.00,
"Housing, Communities & Local Government",MHCLG,02/05/2018,IT - Service Contracts,Chief Finance Office,FUJITSU SERVICES LTD,,Large,,423375062,5106235962,IT Managed / Outsourced Services,"DFY17/18 Desktop Table ""D Charges""",WA3 6GD,"11,985.27",
"Housing, Communities & Local Government",MHCLG,02/05/2018,IT - Service Contracts,Chief Finance Office,FUJITSU SERVICES LTD,,Large,,423375062,5106235963,IT Managed / Outsourced Services,"DFY17/18 Desktop Table ""D Charges""",WA3 6GD,"1,549.08",
"Housing, Communities & Local Government",MHCLG,02/05/2018,IT - Service Contracts,Chief Finance Office,FUJITSU SERVICES LTD,,Large,,423375062,5106235964,IT Managed / Outsourced Services,"DFY17/18 Desktop Table ""D Charges""",WA3 6GD,"1,954.36",
"Housing, Communities & Local Government",MHCLG,02/05/2018,IT - Service Contracts,Chief Finance Office,FUJITSU SERVICES LTD,,Large,,423375062,5106235965,IT Managed / Outsourced Services,"DFY17/18 Desktop Table ""D Charges""",WA3 6GD,312.32,
"Housing, Communities & Local Government",MHCLG,02/05/2018,IT - Service Contracts,Chief Finance Office,FUJITSU SERVICES LTD,,Large,,423375062,5106235966,IT Managed / Outsourced Services,"DFY17/18 Desktop Table ""D Charges""",WA3 6GD,"1,865.73",
"Housing, Communities & Local Government",MHCLG,02/05/2018,IT - Service Contracts,Chief Finance Office,FUJITSU SERVICES LTD,,Large,,423375062,5106235967,IT Managed / Outsourced Services,"DFY17/18 Desktop Table ""D Charges""",WA3 6GD,"11,813.58",
"Housing, Communities & Local Government",MHCLG,02/05/2018,IT - Service Contracts,Chief Finance Office,FUJITSU SERVICES LTD,,Large,,423375062,5106235968,IT Managed / Outsourced Services,"DFY17/18 Desktop Table ""D Charges""",WA3 6GD,"192,985.69",
"Housing, Communities & Local Government",MHCLG,02/05/2018,IT Maintenance,Chief Finance Office,ORACLE CORPORATION UK LTD,,Large,,291601524,5106235954,ICT Services,Oracle Support 5858022 (T4-1 x2),RG6 1RA,"4,065.91",
"Housing, Communities & Local Government",MHCLG,02/05/2018,IT Maintenance,Chief Finance Office,ORACLE CORPORATION UK LTD,,Large,,291601524,5106235957,ICT Services,Oracle Support 5486102 (DR LDOMS),RG6 1RA,428.33,
"Housing, Communities & Local Government",MHCLG,02/05/2018,Payroll Services,Corporate Services,CGI IT UK LIMITED,,Large,,239881618,5106235946,Business Process Outsourcing Services,Payroll Services & Licences,EC3M 3BY,"8,691.79",
"Housing, Communities & Local Government",MHCLG,02/05/2018,Payroll Services,Corporate Services,CGI IT UK LIMITED,,Large,,239881618,5106235956,Business Process Outsourcing Services,Payroll Services & Licences,EC3M 3BY,261.86,
"Housing, Communities & Local Government",MHCLG,02/05/2018,Professional services,Decentralisation and Local Growth,VALUATION OFFICE AGENCY,,Public Bodies,,215253886,5106235936,Financial,Planning changes to support infrastructure of communities,W1D 5BU,968.64,
"Housing, Communities & Local Government",MHCLG,02/05/2018,Professional services,Decentralisation and Local Growth,VALUATION OFFICE AGENCY,,Public Bodies,,215253886,5106235937,Financial,Planning changes to support infrastructure of communities,W1D 5BU,"1,130.92",
"Housing, Communities & Local Government",MHCLG,02/05/2018,Professional services,Housing & BSP,EXOVA (UK) LTD,,Large,,229005434,5106235969,Operation of Industrial Facilities,fire door testing,EH52 5AU,"10,188.00",
"Housing, Communities & Local Government",MHCLG,02/05/2018,Publications,Chief Finance Office,JONES YARRELL LEADENHALL LTD,,Large,,505670265,5106235955,Learning and Development Materials,DCLG Journals subs 2017-18,E3 3JH,268.97,
"Housing, Communities & Local Government",MHCLG,02/05/2018,Training,Chief Finance Office,LSR TRAINING AND DEVELOPMENT LTD,,Micro,,,5106235902,Development and Training,Civil Service Training,YO42 4RE,670.00,
"Housing, Communities & Local Government",MHCLG,02/05/2018,Training,Decentralisation and Local Growth,HAYMARKET PUBLISHING SERVS LTD,,Large,,516858800,5106235938,Development and Training,Civil Service Training,TW1 3SP,349.00,
"Housing, Communities & Local Government",MHCLG,03/05/2018,Advertising,Decentralisation and Local Growth,APS GROUP,,Micro,,212228001,5106235993,Advertising,Right to Buy Summary Booklets,SK3 02P,"1,842.88",
"Housing, Communities & Local Government",MHCLG,03/05/2018,Conferences and Meeting Facilities,Decentralisation and Local Growth,CALDER CONFERENCES  LTD,,Small,,,2100282364,Business Travel Accommodation,Conferences,LS16 6RF,"1,337.28",
"Housing, Communities & Local Government",MHCLG,03/05/2018,Current Grants to Non Profit Bodies,Local Government & Public Services,FAITH ACTION,Yes,Medium,,,2100282361,,Community-Based English language Programme,RM8 3QS,"204,667.00",Yes
"Housing, Communities & Local Government",MHCLG,03/05/2018,Current Grants to Non Profit Bodies,Local Government & Public Services,ONE20,Yes,Small,,217857528,2100282360,,Community-Based English Language Programme,WC1H 8BS,"162,322.67",Yes
"Housing, Communities & Local Government",MHCLG,03/05/2018,ERDF Work in Progress � Capital,Decentralisation and Local Growth,SHROPSHIRE WILDLIFE TRUST,,Small,,,7700002010,,ERDF Grant payment,SY2 6AH,"452,024.99",Yes
"Housing, Communities & Local Government",MHCLG,03/05/2018,ERDF Work in Progress � Resource,Decentralisation and Local Growth,EAST MIDLANDS CHAMBER(DNL),,,,,7700002013,,ERDF Grant payment,S41 8ND,"247,714.51",Yes
"Housing, Communities & Local Government",MHCLG,03/05/2018,ERDF Work in Progress � Resource,Decentralisation and Local Growth,EAST RIDING OF YORKSHIRE COUNCIL,,,,,7700002009,,ERDF Grant payment,HU17 9BA,"40,652.31",Yes
"Housing, Communities & Local Government",MHCLG,03/05/2018,ERDF Work in Progress � Resource,Decentralisation and Local Growth,EAST RIDING OF YORKSHIRE COUNCIL,,,,,7700002012,,ERDF Grant payment,HU17 9BA,"40,400.07",Yes
"Housing, Communities & Local Government",MHCLG,03/05/2018,ERDF Work in Progress � Resource,Decentralisation and Local Growth,SHROPSHIRE WILDLIFE TRUST,,Small,,,7700002010,,ERDF Grant payment,SY2 6AH,"14,714.83",Yes
"Housing, Communities & Local Government",MHCLG,03/05/2018,ERDF Work in Progress � Resource,Decentralisation and Local Growth,WILTSHIRE COUNCIL,,Large,,,7700002011,,ERDF Grant payment,BA14 8JN,"13,688.59",Yes
"Housing, Communities & Local Government",MHCLG,03/05/2018,EXP � PURCHASE OF GOODS /SERVICES R & D,Local Government & Public Services,BUILDING RESEARCH ESTABLISHMENT,,Large,,896495033,5106235994,Research,Cladding Sample Testing (WPS),WD25 9XX,"2,700.00",
"Housing, Communities & Local Government",MHCLG,03/05/2018,Fixed Maintenance,Chief Finance Office,TRILLIUM (PRIME) LIMITED,,Large,,,5106235985,Property Occupation,Relocate 10 6ft x 3ft cupboards,LS 4JB,416.66,
"Housing, Communities & Local Government",MHCLG,03/05/2018,Security,Local Government & Public Services,SERVEST SECURITY SERVICES LTD,,,,,5106235995,Security,Unveiling Ceremony M.Fawcett -Security,IP28 6LG,"1,627.84",
"Housing, Communities & Local Government",MHCLG,03/05/2018,Steady State Service Provision,Chief Finance Office,H M TREASURY,,Public Bodies,,233590996,5106235977,Business Process Outsourcing Services,GIAA counter-fraud work 17-18,NR1 0HS,"3,914.76",
"Housing, Communities & Local Government",MHCLG,03/05/2018,Steady State Service Provision,Chief Finance Office,H M TREASURY,,Public Bodies,,233590996,5106235977,Business Process Outsourcing Services,GIAA counter-fraud activity 17-18,NR1 0HS,"9,000.00",
"Housing, Communities & Local Government",MHCLG,03/05/2018,Travel and Subsistence Account,Decentralisation and Local Growth,DIAL A CAB,,Medium,,225338235,2100282363,Business Travel,Official Travel & Subsistence,N1 6AH,430.78,
"Housing, Communities & Local Government",MHCLG,03/05/2018,Travel and Subsistence Account,Decentralisation and Local Growth,DIAL A CAB,,Medium,,225338235,2100282363,Business Travel,Official Travel & Subsistence,N1 6AH,33.29,
"Housing, Communities & Local Government",MHCLG,03/05/2018,Travel and Subsistence Account,Decentralisation and Local Growth,DIAL A CAB,,Medium,,225338235,2100282363,Business Travel,Official Travel & Subsistence,N1 6AH,12.02,
"Housing, Communities & Local Government",MHCLG,04/05/2018,Advertising,Decentralisation and Local Growth,APS GROUP,,Micro,,212228001,5106236043,Advertising,Right to Buy Summary Booklets,SK3 02P,"1,570.40",
"Housing, Communities & Local Government",MHCLG,04/05/2018,Agency Staff,Chief Finance Office,CAPITA BUS. SERV. LTD (CON LAB),,Large,,,5106235970,Contingent Labour,User Research Lead - RRJ,DL1 9WQ,"7,656.34",
"Housing, Communities & Local Government",MHCLG,04/05/2018,Agency Staff,Chief Finance Office,CAPITA BUS. SERV. LTD (CON LAB),,Large,,,5106235997,Contingent Labour,User Research Lead - RRJ,DL1 9WQ,"2,552.11",
"Housing, Communities & Local Government",MHCLG,04/05/2018,Agency Staff,Chief Finance Office,CAPITA BUS. SERV. LTD (CON LAB),,Large,,,5106235999,Contingent Labour,Interim Manager,DL1 9WQ,"4,126.14",
"Housing, Communities & Local Government",MHCLG,04/05/2018,Agency Staff,Chief Finance Office,CAPITA BUS. SERV. LTD (CON LAB),,Large,,,5106236000,Contingent Labour,Interim Manager,DL1 9WQ,"3,472.20",
"Housing, Communities & Local Government",MHCLG,04/05/2018,Agency Staff,Chief Finance Office,CAPITA BUS. SERV. LTD (CON LAB),,Large,,,5106236004,Contingent Labour,BST tech support and testing EO (6 month,DL1 9WQ,"1,145.94",
"Housing, Communities & Local Government",MHCLG,04/05/2018,Agency Staff,Chief Finance Office,CAPITA BUS. SERV. LTD (CON LAB),,Large,,,5106236006,Contingent Labour,Interim Manager,DL1 9WQ,"3,826.14",
"Housing, Communities & Local Government",MHCLG,04/05/2018,Agency Staff,Chief Finance Office,CAPITA BUS. SERV. LTD (CON LAB),,Large,,,5106236008,Contingent Labour,business analyst,DL1 9WQ,"2,394.29",
"Housing, Communities & Local Government",MHCLG,04/05/2018,Agency Staff,Chief Finance Office,CAPITA BUS. SERV. LTD (CON LAB),,Large,,,5106236009,Contingent Labour,Developing Digital Cap ext apr-sept 18,DL1 9WQ,"2,402.45",
"Housing, Communities & Local Government",MHCLG,04/05/2018,Agency Staff,Chief Finance Office,CAPITA BUS. SERV. LTD (CON LAB),,Large,,,5106236012,Contingent Labour,Capita Business Services - Business planning,DL1 9WQ,"4,126.14",
"Housing, Communities & Local Government",MHCLG,04/05/2018,Agency Staff,Chief Finance Office,CAPITA BUS. SERV. LTD (CON LAB),,Large,,,5106236018,Contingent Labour,Cloud architecture - Interim Manager,DL1 9WQ,"3,445.10",
"Housing, Communities & Local Government",MHCLG,04/05/2018,Agency Staff,Chief Finance Office,CAPITA BUS. SERV. LTD (CON LAB),,Large,,,5106236019,Contingent Labour,cyber adviser extension,DL1 9WQ,"4,798.51",
"Housing, Communities & Local Government",MHCLG,04/05/2018,Agency Staff,Decentralisation and Local Growth,CAPITA BUS. SERV. LTD (CON LAB),,Large,,,5106236016,Contingent Labour,Interim Staff,DL1 9WQ,"2,594.40",
"Housing, Communities & Local Government",MHCLG,04/05/2018,Agency Staff,Decentralisation and Local Growth,CAPITA BUS. SERV. LTD (CON LAB),,Large,,,5106236020,Contingent Labour,Official Travel & Subsistence,DL1 9WQ,80.10,
"Housing, Communities & Local Government",MHCLG,04/05/2018,Agency Staff,Decentralisation and Local Growth,CAPITA BUS. SERV. LTD (CON LAB),,Large,,,5106236020,Contingent Labour,RGF Grant payment ,DL1 9WQ,"1,410.34",
"Housing, Communities & Local Government",MHCLG,04/05/2018,Agency Staff,Housing & BSP,ALLEN LANE LTD,,Medium,Yes,,5106235975,Contingent Labour,BSP Recruitment - Project Specialist - C,,"2,688.00",
"Housing, Communities & Local Government",MHCLG,04/05/2018,Agency Staff,Housing & BSP,CAPITA BUS. SERV. LTD (CON LAB),,Large,,,5106236002,Contingent Labour,Interim Manager,DL1 9WQ,"1,387.14",
"Housing, Communities & Local Government",MHCLG,04/05/2018,Agency Staff,Housing & BSP,CAPITA BUS. SERV. LTD (CON LAB),,Large,,,5106236007,Contingent Labour,Interim Admin support,DL1 9WQ,"1,861.74",
"Housing, Communities & Local Government",MHCLG,04/05/2018,Agency Staff,Housing & BSP,CAPITA BUS. SERV. LTD (CON LAB),,Large,,,5106236013,Contingent Labour,Interim Manager,DL1 9WQ,"12,214.43",
"Housing, Communities & Local Government",MHCLG,04/05/2018,Agency Staff,Housing & BSP,CAPITA BUS. SERV. LTD (CON LAB),,Large,,,5106236014,Contingent Labour,Recruitment costs,DL1 9WQ,"4,294.14",
"Housing, Communities & Local Government",MHCLG,04/05/2018,Cap Grants to Local Authorities (DEL),Housing & BSP,DURHAM COUNTY COUNCIL,,,,224004882,5000399985,,Land Release Fund,DH1 5UE,"50,000.00",Yes
"Housing, Communities & Local Government",MHCLG,04/05/2018,Cap Grants to Local Authorities (DEL),Housing & BSP,HARTLEPOOL BOROUGH COUNCIL,,,,424291797,5000399980,,Land Release Fund,TS24 8AY,"112,000.00",Yes
"Housing, Communities & Local Government",MHCLG,04/05/2018,Cap Grants to Local Authorities (DEL),Housing & BSP,PLYMOUTH CITY CNCL,,Public Bodies,,236416095,5000399981,,Land Release Fund,PL1 2AA,"682,500.00",Yes
"Housing, Communities & Local Government",MHCLG,04/05/2018,Cap Grants to Local Authorities (DEL),Housing & BSP,SALFORD CITY CNCL,,,,213180073,5000399982,,Land Release Fund,M27 5AW,"110,000.00",Yes
"Housing, Communities & Local Government",MHCLG,04/05/2018,Cap Grants to Local Authorities (DEL),Housing & BSP,TORBAY BC,,,,,5000399983,,Land Release Fund,TQ1 3DR,"450,000.00",Yes
"Housing, Communities & Local Government",MHCLG,04/05/2018,Cap Grants to Local Authorities (DEL),Housing & BSP,WORCESTER CITY CNCL,,,,227419751,5000399984,,Land Release Fund,WR1 2EZ,"150,000.00",Yes
"Housing, Communities & Local Government",MHCLG,04/05/2018,Cap Grants to Local Authorities (DEL),Housing & BSP,WYCHAVON DISTRICT COUNCIL,,,,232257139,5000399979,,Land Release Fund,WR10 1PT,"30,000.00",Yes
"Housing, Communities & Local Government",MHCLG,04/05/2018,Conferences and Meeting Facilities,Housing & BSP,M U ENTERPRISES LTD,,Small,,569582521,5106236050,Business Travel Accommodation,16/3 London Roundtable Event,SW1P 3RB,340.50,
"Housing, Communities & Local Government",MHCLG,04/05/2018,Conferences and Meeting Facilities,Local Government & Public Services,HILTON LONDON OLYMPIA,,Large,,,5106236022,Business Travel Accommodation,Official Travel & Subsistence,W14 8NL,"1,081.79",
"Housing, Communities & Local Government",MHCLG,04/05/2018,Current Grants to Non Profit Bodies,Local Government & Public Services,NAT ASSOC LOCAL COUNCILS,,,,580214963,2100282371,,Grant claimed for period 18/12/17 - 23/03/18,WC1B 3LD,857.04,Yes
"Housing, Communities & Local Government",MHCLG,04/05/2018,ERDF Work in Progress � Resource,Decentralisation and Local Growth,EAST RIDING OF YORKSHIRE COUNCIL,,,,,7700002014,,ERDF Grant payment,HU17 9BA,"18,376.70",Yes
"Housing, Communities & Local Government",MHCLG,04/05/2018,EXP � PURCHASE OF GOODS /SERVICES R & D,Housing & BSP,ADROIT ECONOMICS LTD,,Micro,,347660925,5106235826,Research,Evaluation & Analytical Services,WA15 9RE,"4,906.58",
"Housing, Communities & Local Government",MHCLG,04/05/2018,Grant in Aid to NDPBs (non budget),Housing & BSP,LEASEHOLD ADVISORY SERVICE,,Small,,378000152,2100282370,,GiA to LEASE,WT1 7BN,"114,569.00",Yes
"Housing, Communities & Local Government",MHCLG,04/05/2018,IT - Service Contracts,Chief Finance Office,CAPITA BUS. SERV. LTD (CON LAB),,Large,,,5106236001,Contingent Labour,Digital Service Director - SP,DL1 9WQ,"4,366.87",
"Housing, Communities & Local Government",MHCLG,04/05/2018,IT - Service Contracts,Chief Finance Office,FUJITSU SERVICES LTD,,Large,,423375062,5106236044,IT Managed / Outsourced Services,"DRP Charges ""DRP1Table Charges  17-18",WA3 6GD,"17,652.42",
"Housing, Communities & Local Government",MHCLG,04/05/2018,IT - Service Contracts,Chief Finance Office,FUJITSU SERVICES LTD,,Large,,423375062,5106236045,IT Managed / Outsourced Services,"FY 17/18 WAN Management(""W""Table Charges",WA3 6GD,"2,645.18",
"Housing, Communities & Local Government",MHCLG,04/05/2018,IT - Service Contracts,Chief Finance Office,FUJITSU SERVICES LTD,,Large,,423375062,5106236046,IT Managed / Outsourced Services,Horizon Services charges 17/18,WA3 6GD,"7,787.81",
"Housing, Communities & Local Government",MHCLG,04/05/2018,IT - Service Contracts,Chief Finance Office,FUJITSU SERVICES LTD,,Large,,423375062,5106236047,IT Managed / Outsourced Services,FY17/18 L1 Table LOBA Charges,WA3 6GD,"18,388.87",
"Housing, Communities & Local Government",MHCLG,04/05/2018,IT Maintenance,Chief Finance Office,ORACLE CORPORATION UK LTD,,Large,,291601524,5106236031,ICT Services,Oracle Premier Support for Systems,RG6 1RA,"1,493.00",
"Housing, Communities & Local Government",MHCLG,04/05/2018,IT Maintenance,Chief Finance Office,ORACLE CORPORATION UK LTD,,Large,,291601524,5106236033,ICT Services,Hardware Tech Support Service SUN-GB1005,RG6 1RA,"4,303.00",
"Housing, Communities & Local Government",MHCLG,04/05/2018,IT Maintenance,Corporate Services,FUJITSU SERVICES LTD,,Large,,423375062,5106235953,ICT Services,Reasonable Adjustment software & hardware costs,WA3 6GD,"6,152.53",
"Housing, Communities & Local Government",MHCLG,04/05/2018,Online Database Information Retrieval,Chief Finance Office,PDP,,Micro,,219697385,5106236005,ICT Services,PDP Journals 2018-21,SW9 6DE,"2,754.00",
"Housing, Communities & Local Government",MHCLG,04/05/2018,Physical Storage,Chief Finance Office,IRON MOUNTAIN (UK) LIMITED,,Large,,501338354,5106236021,Warehousing and Storage,Storage - off site tapes 2017-2018,EH54 7DF,523.46,
"Housing, Communities & Local Government",MHCLG,04/05/2018,Professional services,Chief Finance Office,CAPITA BUS. SERV. LTD (CON LAB),,Large,,,5106236017,Contingent Labour,ATLAS Project costs,DL1 9WQ,"2,878.14",
"Housing, Communities & Local Government",MHCLG,04/05/2018,Professional services,Local Government & Public Services,TURNER&TOWNSEND PROJECT MAN LTD,,Large,,,5106235971,Financial,Project & cost management services Holocaust Memorial,LS18 4GH,"53,854.50",
"Housing, Communities & Local Government",MHCLG,04/05/2018,Publications,Decentralisation and Local Growth,HAYMARKET PUBLISHING SERVS LTD,,Large,,516858800,5106235974,Learning and Development Materials,Online Planning Encyclopaedia,TW1 3SP,"1,848.00",
"Housing, Communities & Local Government",MHCLG,04/05/2018,Repayments of LA Grant (Cap),Decentralisation and Local Growth,SHEFFIELD CITY COUNCIL,,Large,,228153011,2300002906,,RGF Grant repayment,DL1 9UT,"-56,700.00",
"Housing, Communities & Local Government",MHCLG,04/05/2018,Steady State Service Provision,Decentralisation and Local Growth,GROUNDWORK UK,Yes,,,739193758,5106236015,Business Process Outsourcing Services,Grant admin costs,B1 2RR,"1,129.00",
"Housing, Communities & Local Government",MHCLG,04/05/2018,Training,Corporate Services,BRECKLAND DC,,,,232611384,5106235904,Development and Training,Civil Service Training,NR19 1EE,"4,210.00",
"Housing, Communities & Local Government",MHCLG,04/05/2018,Training,Decentralisation and Local Growth,HAYMARKET PUBLISHING SERVS LTD,,Large,,516858800,5106235973,Development and Training,Civil Service Training,TW1 3SP,"1,281.00",
"Housing, Communities & Local Government",MHCLG,08/05/2018,Advertising,Decentralisation and Local Growth,CARAT LTD,,Large,,211589882,5106236069,Advertising,Northern Powerhouse - ABSOF Fee,NW1 3BF,1.39,
"Housing, Communities & Local Government",MHCLG,08/05/2018,Advertising,Decentralisation and Local Growth,CARAT LTD,,Large,,211589882,5106236069,Advertising,Media campaign for Northern Powerhouse,NW1 3BF,"1,794.62",
"Housing, Communities & Local Government",MHCLG,08/05/2018,Advertising,Decentralisation and Local Growth,CARAT LTD,,Large,,211589882,5106236070,Advertising,VAT readjustment,NW1 3BF,8.22,
"Housing, Communities & Local Government",MHCLG,08/05/2018,Advertising,Decentralisation and Local Growth,CARAT LTD,,Large,,211589882,5106236070,Advertising,Mayoral Campaign Media & Advertising,NW1 3BF,"10,329.28",
"Housing, Communities & Local Government",MHCLG,08/05/2018,Agency Staff,Chief Finance Office,BROOK STREET UK LTD,,Large,,364940028,5106236056,Contingent Labour,Interim Admin support,AL1 4JB,683.76,
"Housing, Communities & Local Government",MHCLG,08/05/2018,Agency Staff,Corporate Services,BROOK STREET UK LTD,,Large,,364940028,5106236057,Contingent Labour,Support Worker - Reasonable Adjustment,AL1 4JB,586.66,
"Housing, Communities & Local Government",MHCLG,08/05/2018,Agency Staff,Local Government & Public Services,BROOK STREET UK LTD,,Large,,364940028,5106236054,Contingent Labour,Interim Admin support,AL1 4JB,807.91,
"Housing, Communities & Local Government",MHCLG,08/05/2018,Catering,Housing & BSP,ST MATTHEW'S CONFERENCE CENTRE LTD,,Small,,,5106236058,Business Support,St Matthew Conference ,SW1P 2BU,350.00,
"Housing, Communities & Local Government",MHCLG,08/05/2018,Current Grants to Non Profit Bodies,Housing & BSP,CEL GROUP,,Medium,,394794614,5106236059,Technical Services,Home Improvement Agencies 01.04.18 - 30.09.20,WA2 0YL,"78,609.92",Yes
"Housing, Communities & Local Government",MHCLG,08/05/2018,ERDF Work in Progress � Capital,Decentralisation and Local Growth, WEST YORKSHIRE COMBINED AUTHORITY,,Large,,,7700002022,,ERDF Grant payment,LS1 2DE,"146,223.48",Yes
"Housing, Communities & Local Government",MHCLG,08/05/2018,ERDF Work in Progress � Capital,Decentralisation and Local Growth,HIGHWAYS ENGLAND,,,,,7700002019,,ERDF Grant payment,GU1 4LZ,"1,194,032.63",Yes
"Housing, Communities & Local Government",MHCLG,08/05/2018,ERDF Work in Progress � Resource,Decentralisation and Local Growth, WEST YORKSHIRE COMBINED AUTHORITY,,Large,,,7700002022,,ERDF Grant payment,LS1 2DE,"22,803.58",Yes
"Housing, Communities & Local Government",MHCLG,08/05/2018,ERDF Work in Progress � Resource,Decentralisation and Local Growth,GWE BUSINESS WEST LTD,,,,,7700002020,,ERDF Grant payment,BS8 3RA,"45,172.76",Yes
"Housing, Communities & Local Government",MHCLG,08/05/2018,ERDF Work in Progress � Resource,Decentralisation and Local Growth,NORTH EAST COMBINED AUTHORITY,,,,,7700002015,,ERDF Grant payment,NE27 0BY,"9,034.08",Yes
"Housing, Communities & Local Government",MHCLG,08/05/2018,ERDF Work in Progress � Resource,Decentralisation and Local Growth,NOTTINGHAM CITY COUNCIL,,Large,,,7700002018,,ERDF Grant payment,NG2 3NG,"5,996.49",Yes
"Housing, Communities & Local Government",MHCLG,08/05/2018,ERDF Work in Progress � Resource,Decentralisation and Local Growth,TEESSIDE UNIVERSITY,,Large,,,7700002016,,ERDF Grant payment,TS1 3BA,"303,871.87",Yes
"Housing, Communities & Local Government",MHCLG,08/05/2018,ERDF Work in Progress � Resource,Decentralisation and Local Growth,TEESSIDE UNIVERSITY,,Large,,,7700002017,,ERDF Grant payment offset,TS1 3BA,"-2,782.52",Yes
"Housing, Communities & Local Government",MHCLG,08/05/2018,ERDF Work in Progress � Resource,Decentralisation and Local Growth,VEDAS RECRUITMENT & TRAINING LTD,,,,,7700002021,,ERDF Grant payment,BB10 1DR,"148,287.20",Yes
"Housing, Communities & Local Government",MHCLG,08/05/2018,Grant in Aid to NDPBs (non budget),Housing & BSP,EBBSFLEET DEVELOPMENT CORPORATION,,,,,2100282369,,GiA to EDS,DA11 8DB,"6,594,000.00",Yes
"Housing, Communities & Local Government",MHCLG,08/05/2018,Grant in Aid to NDPBs (non budget),Local Government & Public Services,COMMISSION LOCAL ADMINISTRATION,,,,215271508,2100282368,,DCLG DEL 17/18 budget contribution for the CLAE,CV1 3BH,"875,000.00",Yes
"Housing, Communities & Local Government",MHCLG,08/05/2018,Grant in Aid to NDPBs (non budget),Local Government & Public Services,VALUATION TRIBUNAL SERVICE,,,,211218366,2100282396,,GIA to VTS for NDR appeals,E1 8EU,"510,000.00",Yes
"Housing, Communities & Local Government",MHCLG,08/05/2018,"IT - PC, Network & Hardware",Local Government & Public Services,FIFTY FIFTY POST PRODUCTION LTD,,Small,,,5106236071,ICT Hardware,UKHMF Testimonies Production Services,W1F 8EH,600.00,
"Housing, Communities & Local Government",MHCLG,08/05/2018,IT - Software Maintenance,Chief Finance Office,INTERQUEST GROUP UK LIMITED,,Large,,423935241,5106236055,IT Managed / Outsourced Services,SAP BASIS Support Services,EC4R 0AN,"14,729.40",
"Housing, Communities & Local Government",MHCLG,08/05/2018,Mobile phone costs,Chief Finance Office,VODAFONE UK(FSSD USE ONLY),,Large,,397467572,2100282455,Telecoms,QUARTERLY CONSOLIDATED PHONE CHARGE,RG14 5FF,"82,639.35",
"Housing, Communities & Local Government",MHCLG,08/05/2018,Mobile phone costs,Chief Finance Office,VODAFONE UK(FSSD USE ONLY),,Large,,397467572,2100282455,Telecoms,QUARTERLY CONSOLIDATED PHONE CHARGE,RG14 5FF,2.40,
"Housing, Communities & Local Government",MHCLG,08/05/2018,Property/Estates Consultancy,Decentralisation and Local Growth,GVA GRIMLEY LTD,,Large,,210158990,5106236052,Consultancy,Valuation,B1 2JB,"5,734.80",
"Housing, Communities & Local Government",MHCLG,08/05/2018,Steady State Service Provision,Chief Finance Office,ALLPAY LIMITED,,Medium,,738359918,5106236024,Business Process Outsourcing Services,BACS Processing Services,HR1 3SE,735.12,
"Housing, Communities & Local Government",MHCLG,08/05/2018,Training,Corporate Services,KORN FERRY HAY GROUP LTD,,Large,,,5106236065,Development and Training,Civil Service Training,SW1Y 6QB,272.00,
"Housing, Communities & Local Government",MHCLG,09/05/2018,Accommodation - actuals,Chief Finance Office,REDFERN TRAVEL LIMITED,,Small,,213089972,2100282529,Business Travel Accommodation,Consolidated Monthly Travel Aprils Hotels,BD1 3AZ,791.71,
"Housing, Communities & Local Government",MHCLG,09/05/2018,Accommodation - actuals,Chief Finance Office,REDFERN TRAVEL LIMITED,,Small,,213089972,2100282529,Business Travel Accommodation,Consolidated Monthly Travel Aprils Hotels,BD1 3AZ,257.50,
"Housing, Communities & Local Government",MHCLG,09/05/2018,Accommodation - actuals,Corporate Services,REDFERN TRAVEL LIMITED,,Small,,213089972,2100282529,Business Travel Accommodation,Consolidated Monthly Travel Aprils Hotels,BD1 3AZ,"3,959.89",
"Housing, Communities & Local Government",MHCLG,09/05/2018,Accommodation - actuals,Decentralisation and Local Growth,REDFERN TRAVEL LIMITED,,Small,,213089972,2100282529,Business Travel Accommodation,Consolidated Monthly Travel Aprils Hotels,BD1 3AZ,304.00,
"Housing, Communities & Local Government",MHCLG,09/05/2018,Accommodation - actuals,Decentralisation and Local Growth,REDFERN TRAVEL LIMITED,,Small,,213089972,2100282529,Business Travel Accommodation,Consolidated Monthly Travel Aprils Hotels,BD1 3AZ,626.08,
"Housing, Communities & Local Government",MHCLG,09/05/2018,Accommodation - actuals,Decentralisation and Local Growth,REDFERN TRAVEL LIMITED,,Small,,213089972,2100282529,Business Travel Accommodation,Consolidated Monthly Travel Aprils Hotels,BD1 3AZ,281.86,
"Housing, Communities & Local Government",MHCLG,09/05/2018,Accommodation - actuals,Decentralisation and Local Growth,REDFERN TRAVEL LIMITED,,Small,,213089972,2100282529,Business Travel Accommodation,Consolidated Monthly Travel Aprils Hotels,BD1 3AZ,"2,240.94",
"Housing, Communities & Local Government",MHCLG,09/05/2018,Accommodation - actuals,Decentralisation and Local Growth,REDFERN TRAVEL LIMITED,,Small,,213089972,2100282529,Business Travel Accommodation,Consolidated Monthly Travel Aprils Hotels,BD1 3AZ,326.88,
"Housing, Communities & Local Government",MHCLG,09/05/2018,Accommodation - actuals,Decentralisation and Local Growth,REDFERN TRAVEL LIMITED,,Small,,213089972,2100282529,Business Travel Accommodation,Consolidated Monthly Travel Aprils Hotels,BD1 3AZ,393.00,
"Housing, Communities & Local Government",MHCLG,09/05/2018,Accommodation - actuals,Decentralisation and Local Growth,REDFERN TRAVEL LIMITED,,Small,,213089972,2100282529,Business Travel Accommodation,Consolidated Monthly Travel Aprils Hotels,BD1 3AZ,475.15,
"Housing, Communities & Local Government",MHCLG,09/05/2018,Accommodation - actuals,Decentralisation and Local Growth,REDFERN TRAVEL LIMITED,,Small,,213089972,2100282529,Business Travel Accommodation,Consolidated Monthly Travel Aprils Hotels,BD1 3AZ,"1,757.33",
"Housing, Communities & Local Government",MHCLG,09/05/2018,Accommodation - actuals,Decentralisation and Local Growth,REDFERN TRAVEL LIMITED,,Small,,213089972,2100282529,Business Travel Accommodation,Consolidated Monthly Travel Aprils Hotels,BD1 3AZ,"1,684.06",
"Housing, Communities & Local Government",MHCLG,09/05/2018,Accommodation - actuals,Housing & BSP,REDFERN TRAVEL LIMITED,,Small,,213089972,2100282529,Business Travel Accommodation,Consolidated Monthly Travel Aprils Hotels,BD1 3AZ,378.00,
"Housing, Communities & Local Government",MHCLG,09/05/2018,Accommodation - actuals,Housing & BSP,REDFERN TRAVEL LIMITED,,Small,,213089972,2100282529,Business Travel Accommodation,Consolidated Monthly Travel Aprils Hotels,BD1 3AZ,390.35,
"Housing, Communities & Local Government",MHCLG,09/05/2018,Accommodation - actuals,Housing & BSP,REDFERN TRAVEL LIMITED,,Small,,213089972,2100282529,Business Travel Accommodation,Consolidated Monthly Travel Aprils Hotels,BD1 3AZ,"1,550.56",
"Housing, Communities & Local Government",MHCLG,09/05/2018,Accommodation - actuals,Local Government & Public Services,REDFERN TRAVEL LIMITED,,Small,,213089972,2100282529,Business Travel Accommodation,Consolidated Monthly Travel Aprils Hotels,BD1 3AZ,250.00,
"Housing, Communities & Local Government",MHCLG,09/05/2018,Accommodation - actuals,Local Government & Public Services,REDFERN TRAVEL LIMITED,,Small,,213089972,2100282529,Business Travel Accommodation,Consolidated Monthly Travel Aprils Hotels,BD1 3AZ,921.75,
"Housing, Communities & Local Government",MHCLG,09/05/2018,Accommodation - actuals,Local Government & Public Services,REDFERN TRAVEL LIMITED,,Small,,213089972,2100282529,Business Travel Accommodation,Consolidated Monthly Travel Aprils Hotels,BD1 3AZ,311.96,
"Housing, Communities & Local Government",MHCLG,09/05/2018,Accommodation - actuals,Local Government & Public Services,REDFERN TRAVEL LIMITED,,Small,,213089972,2100282529,Business Travel Accommodation,Consolidated Monthly Travel Aprils Hotels,BD1 3AZ,402.63,
"Housing, Communities & Local Government",MHCLG,09/05/2018,Accommodation - actuals,Local Government & Public Services,REDFERN TRAVEL LIMITED,,Small,,213089972,2100282529,Business Travel Accommodation,Consolidated Monthly Travel Aprils Hotels,BD1 3AZ,982.88,
"Housing, Communities & Local Government",MHCLG,09/05/2018,Accommodation - actuals,Local Government & Public Services,REDFERN TRAVEL LIMITED,,Small,,213089972,2100282529,Business Travel Accommodation,Consolidated Monthly Travel Aprils Hotels,BD1 3AZ,"1,992.72",
"Housing, Communities & Local Government",MHCLG,09/05/2018,Accommodation - actuals,Local Government & Public Services,REDFERN TRAVEL LIMITED,,Small,,213089972,2100282529,Business Travel Accommodation,Consolidated Monthly Travel Aprils Hotels,BD1 3AZ,285.28,
"Housing, Communities & Local Government",MHCLG,09/05/2018,Accommodation - actuals,Local Government & Public Services,REDFERN TRAVEL LIMITED,,Small,,213089972,2100282529,Business Travel Accommodation,Consolidated Monthly Travel Aprils Hotels,BD1 3AZ,742.00,
"Housing, Communities & Local Government",MHCLG,09/05/2018,Agency Staff,Chief Finance Office,BROOK STREET UK LTD,,Large,,364940028,5106236096,Contingent Labour,Interim Admin support,AL1 4JB,683.76,
"Housing, Communities & Local Government",MHCLG,09/05/2018,Air Travel,Corporate Services,REDFERN TRAVEL LIMITED,,Small,,213089972,2100282529,Air,Consolidated Monthly Travel April Air Tickets,BD1 3AZ,272.53,
"Housing, Communities & Local Government",MHCLG,09/05/2018,Air Travel,Decentralisation and Local Growth,REDFERN TRAVEL LIMITED,,Small,,213089972,2100282529,Air,Consolidated Monthly Travel April Air Tickets,BD1 3AZ,"1,290.60",
"Housing, Communities & Local Government",MHCLG,09/05/2018,Air Travel,Decentralisation and Local Growth,REDFERN TRAVEL LIMITED,,Small,,213089972,2100282529,Air,Consolidated Monthly Travel April Air Tickets,BD1 3AZ,"1,701.77",
"Housing, Communities & Local Government",MHCLG,09/05/2018,Air Travel,Decentralisation and Local Growth,REDFERN TRAVEL LIMITED,,Small,,213089972,2100282529,Air,Consolidated Monthly Travel April Air Tickets,BD1 3AZ,592.60,
"Housing, Communities & Local Government",MHCLG,09/05/2018,Air Travel,Housing & BSP,REDFERN TRAVEL LIMITED,,Small,,213089972,2100282529,Air,Consolidated Monthly Travel April Air Tickets,BD1 3AZ,288.12,
"Housing, Communities & Local Government",MHCLG,09/05/2018,Capital Grants to People Non Profit,Decentralisation and Local Growth,NORTH YORK MOORS NPA,,,,642237580,2100282497,,Coastal Communities Fund,YO62 5BP,"2,119.54",Yes
"Housing, Communities & Local Government",MHCLG,09/05/2018,Capital Grants to People Non Profit,Decentralisation and Local Growth,SWANAGE PIER TRUST,,,,,2100282495,,Coastal Communities Fund,BH19 2AW,"300,000.00",Yes
"Housing, Communities & Local Government",MHCLG,09/05/2018,Capital Grants to People Non Profit,Decentralisation and Local Growth,WELLS MALTING TRUST,,,,,2100282496,,Coastal Communities Fund,NR23 1BT,"77,386.00",Yes
"Housing, Communities & Local Government",MHCLG,09/05/2018,Current Grants to Non Profit Bodies,Decentralisation and Local Growth,NORTH YORK MOORS NPA,,,,642237580,2100282498,,Coastal Communities Fund,YO62 5BP,"11,304.00",Yes
"Housing, Communities & Local Government",MHCLG,09/05/2018,Current Grants to Non Profit Bodies,Housing & BSP,CLARENCE WAY MANAGEMENT ORG CIC,,Micro,,,5000389026,,Overpayment of Grant recovered by Exchequer,NW1 8PS,"-2,036.00",Yes
"Housing, Communities & Local Government",MHCLG,09/05/2018,Current Grants to Non Profit Bodies,Local Government & Public Services,APASENTH,,,,,2100282493,,Community-Based English language Programme,E14 7FF,"148,668.00",Yes
"Housing, Communities & Local Government",MHCLG,09/05/2018,Current Grants to Non Profit Bodies,Local Government & Public Services,GOOD THINGS FOUNDATION,Yes,Medium,,,2100282494,,Community-Based English Language Programme,S1 2ET,"487,500.04",Yes
"Housing, Communities & Local Government",MHCLG,09/05/2018,Facilities Management (ISD use only),Local Government & Public Services,M U ENTERPRISES LTD,,Small,,569582521,5106236131,Property Occupation,Room booking for LGP event,SW1P 3RB,-372.33,
"Housing, Communities & Local Government",MHCLG,09/05/2018,IT - Service Contracts,Chief Finance Office,INTERQUEST GROUP UK LIMITED,,Large,,423935241,5106236080,IT Managed / Outsourced Services,SAP specialist,EC4R 0AN,"10,450.00",
"Housing, Communities & Local Government",MHCLG,09/05/2018,IT - Service Contracts,Chief Finance Office,INTERQUEST GROUP UK LIMITED,,Large,,423935241,5106236082,IT Managed / Outsourced Services,SAP consultancy,EC4R 0AN,"10,687.50",
"Housing, Communities & Local Government",MHCLG,09/05/2018,IT - Service Contracts,Chief Finance Office,PERFORM GREEN LTD,,Micro,,,5106236084,IT Managed / Outsourced Services,Digital Transformation - call off,BS1 6QH,900.00,
"Housing, Communities & Local Government",MHCLG,09/05/2018,IT - Service Contracts,Chief Finance Office,SWIRRL IT LIMITED,,Micro,,211074993,5106236087,IT Managed / Outsourced Services,Open Data Communities Development work,FK7 7WT,"30,258.24",
"Housing, Communities & Local Government",MHCLG,09/05/2018,Legal Fees,Housing & BSP,HER MAJESTYS COURTS & TRIBUNAL SERV,,Public Bodies,,212437904,5106236099,Legal,Legal Advice,NP10 8FZ,"14,080.00",
"Housing, Communities & Local Government",MHCLG,09/05/2018,Legal Fees,Housing & BSP,HER MAJESTYS COURTS & TRIBUNAL SERV,,Public Bodies,,212437904,5106236102,Legal,Legal Advice,NP10 8FZ,"2,011.00",
"Housing, Communities & Local Government",MHCLG,09/05/2018,Legal Fees,Housing & BSP,MINISTRY OF JUSTICE,,,,211860841,5106236089,Legal,Legal Advice,NP10 8ZF,"19,712.00",
"Housing, Communities & Local Government",MHCLG,09/05/2018,Professional services,Housing & BSP,EXOVA (UK) LTD,,Large,,229005434,5106236097,Operation of Industrial Facilities,fire door testing,EH52 5AU,"10,188.00",
"Housing, Communities & Local Government",MHCLG,09/05/2018,"Rail, Underground and Eurostar",Chief Finance Office,REDFERN TRAVEL LIMITED,,Small,,213089972,2100282529,Rail,Consolidated Monthly Travel April Rail,BD1 3AZ,"2,891.80",
"Housing, Communities & Local Government",MHCLG,09/05/2018,"Rail, Underground and Eurostar",Chief Finance Office,REDFERN TRAVEL LIMITED,,Small,,213089972,2100282529,Rail,Consolidated Monthly Travel April Rail,BD1 3AZ,615.50,
"Housing, Communities & Local Government",MHCLG,09/05/2018,"Rail, Underground and Eurostar",Chief Finance Office,REDFERN TRAVEL LIMITED,,Small,,213089972,2100282529,Rail,Consolidated Monthly Travel April Rail,BD1 3AZ,269.45,
"Housing, Communities & Local Government",MHCLG,09/05/2018,"Rail, Underground and Eurostar",Chief Finance Office,REDFERN TRAVEL LIMITED,,Small,,213089972,2100282529,Rail,Consolidated Monthly Travel April Rail,BD1 3AZ,807.70,
"Housing, Communities & Local Government",MHCLG,09/05/2018,"Rail, Underground and Eurostar",Chief Finance Office,REDFERN TRAVEL LIMITED,,Small,,213089972,2100282529,Rail,Consolidated Monthly Travel April Rail,BD1 3AZ,856.50,
"Housing, Communities & Local Government",MHCLG,09/05/2018,"Rail, Underground and Eurostar",Chief Finance Office,REDFERN TRAVEL LIMITED,,Small,,213089972,2100282529,Rail,Consolidated Monthly Travel April Rail,BD1 3AZ,"1,047.20",
"Housing, Communities & Local Government",MHCLG,09/05/2018,"Rail, Underground and Eurostar",Chief Finance Office,REDFERN TRAVEL LIMITED,,Small,,213089972,2100282529,Rail,Consolidated Monthly Travel April Rail,BD1 3AZ,416.80,
"Housing, Communities & Local Government",MHCLG,09/05/2018,"Rail, Underground and Eurostar",Chief Finance Office,REDFERN TRAVEL LIMITED,,Small,,213089972,2100282529,Rail,Consolidated Monthly Travel April Rail,BD1 3AZ,318.60,
"Housing, Communities & Local Government",MHCLG,09/05/2018,"Rail, Underground and Eurostar",Chief Finance Office,REDFERN TRAVEL LIMITED,,Small,,213089972,2100282529,Rail,Consolidated Monthly Travel April Rail,BD1 3AZ,"1,405.00",
"Housing, Communities & Local Government",MHCLG,09/05/2018,"Rail, Underground and Eurostar",Chief Finance Office,REDFERN TRAVEL LIMITED,,Small,,213089972,2100282529,Rail,Consolidated Monthly Travel April Rail,BD1 3AZ,"1,338.80",
"Housing, Communities & Local Government",MHCLG,09/05/2018,"Rail, Underground and Eurostar",Chief Finance Office,REDFERN TRAVEL LIMITED,,Small,,213089972,2100282529,Rail,Consolidated Monthly Travel April Rail,BD1 3AZ,251.60,
"Housing, Communities & Local Government",MHCLG,09/05/2018,"Rail, Underground and Eurostar",Chief Finance Office,REDFERN TRAVEL LIMITED,,Small,,213089972,2100282529,Rail,Consolidated Monthly Travel April Rail,BD1 3AZ,424.90,
"Housing, Communities & Local Government",MHCLG,09/05/2018,"Rail, Underground and Eurostar",Corporate Services,REDFERN TRAVEL LIMITED,,Small,,213089972,2100282529,Rail,Consolidated Monthly Travel April Rail,BD1 3AZ,"15,309.45",
"Housing, Communities & Local Government",MHCLG,09/05/2018,"Rail, Underground and Eurostar",Decentralisation and Local Growth,REDFERN TRAVEL LIMITED,,Small,,213089972,2100282529,Rail,Consolidated Monthly Travel April Rail,BD1 3AZ,355.40,
"Housing, Communities & Local Government",MHCLG,09/05/2018,"Rail, Underground and Eurostar",Decentralisation and Local Growth,REDFERN TRAVEL LIMITED,,Small,,213089972,2100282529,Rail,Consolidated Monthly Travel April Rail,BD1 3AZ,"2,143.56",
"Housing, Communities & Local Government",MHCLG,09/05/2018,"Rail, Underground and Eurostar",Decentralisation and Local Growth,REDFERN TRAVEL LIMITED,,Small,,213089972,2100282529,Rail,Consolidated Monthly Travel April Rail,BD1 3AZ,"1,165.10",
"Housing, Communities & Local Government",MHCLG,09/05/2018,"Rail, Underground and Eurostar",Decentralisation and Local Growth,REDFERN TRAVEL LIMITED,,Small,,213089972,2100282529,Rail,Consolidated Monthly Travel April Rail,BD1 3AZ,"2,458.00",
"Housing, Communities & Local Government",MHCLG,09/05/2018,"Rail, Underground and Eurostar",Decentralisation and Local Growth,REDFERN TRAVEL LIMITED,,Small,,213089972,2100282529,Rail,Consolidated Monthly Travel April Rail,BD1 3AZ,"1,947.00",
"Housing, Communities & Local Government",MHCLG,09/05/2018,"Rail, Underground and Eurostar",Decentralisation and Local Growth,REDFERN TRAVEL LIMITED,,Small,,213089972,2100282529,Rail,Consolidated Monthly Travel April Rail,BD1 3AZ,"4,484.30",
"Housing, Communities & Local Government",MHCLG,09/05/2018,"Rail, Underground and Eurostar",Decentralisation and Local Growth,REDFERN TRAVEL LIMITED,,Small,,213089972,2100282529,Rail,Consolidated Monthly Travel April Rail,BD1 3AZ,402.00,
"Housing, Communities & Local Government",MHCLG,09/05/2018,"Rail, Underground and Eurostar",Decentralisation and Local Growth,REDFERN TRAVEL LIMITED,,Small,,213089972,2100282529,Rail,Consolidated Monthly Travel April Rail,BD1 3AZ,980.50,
"Housing, Communities & Local Government",MHCLG,09/05/2018,"Rail, Underground and Eurostar",Decentralisation and Local Growth,REDFERN TRAVEL LIMITED,,Small,,213089972,2100282529,Rail,Consolidated Monthly Travel April Rail,BD1 3AZ,"1,445.35",
"Housing, Communities & Local Government",MHCLG,09/05/2018,"Rail, Underground and Eurostar",Decentralisation and Local Growth,REDFERN TRAVEL LIMITED,,Small,,213089972,2100282529,Rail,Consolidated Monthly Travel April Rail,BD1 3AZ,"2,040.25",
"Housing, Communities & Local Government",MHCLG,09/05/2018,"Rail, Underground and Eurostar",Decentralisation and Local Growth,REDFERN TRAVEL LIMITED,,Small,,213089972,2100282529,Rail,Consolidated Monthly Travel April Rail,BD1 3AZ,"3,373.05",
"Housing, Communities & Local Government",MHCLG,09/05/2018,"Rail, Underground and Eurostar",Decentralisation and Local Growth,REDFERN TRAVEL LIMITED,,Small,,213089972,2100282529,Rail,Consolidated Monthly Travel April Rail,BD1 3AZ,"1,724.41",
"Housing, Communities & Local Government",MHCLG,09/05/2018,"Rail, Underground and Eurostar",Decentralisation and Local Growth,REDFERN TRAVEL LIMITED,,Small,,213089972,2100282529,Rail,Consolidated Monthly Travel April Rail,BD1 3AZ,"1,542.60",
"Housing, Communities & Local Government",MHCLG,09/05/2018,"Rail, Underground and Eurostar",Decentralisation and Local Growth,REDFERN TRAVEL LIMITED,,Small,,213089972,2100282529,Rail,Consolidated Monthly Travel April Rail,BD1 3AZ,"1,475.75",
"Housing, Communities & Local Government",MHCLG,09/05/2018,"Rail, Underground and Eurostar",Decentralisation and Local Growth,REDFERN TRAVEL LIMITED,,Small,,213089972,2100282529,Rail,Consolidated Monthly Travel April Rail,BD1 3AZ,960.10,
"Housing, Communities & Local Government",MHCLG,09/05/2018,"Rail, Underground and Eurostar",Decentralisation and Local Growth,REDFERN TRAVEL LIMITED,,Small,,213089972,2100282529,Rail,Consolidated Monthly Travel April Rail,BD1 3AZ,"2,272.80",
"Housing, Communities & Local Government",MHCLG,09/05/2018,"Rail, Underground and Eurostar",Decentralisation and Local Growth,REDFERN TRAVEL LIMITED,,Small,,213089972,2100282529,Rail,Consolidated Monthly Travel April Rail,BD1 3AZ,"3,064.46",
"Housing, Communities & Local Government",MHCLG,09/05/2018,"Rail, Underground and Eurostar",Decentralisation and Local Growth,REDFERN TRAVEL LIMITED,,Small,,213089972,2100282529,Rail,Consolidated Monthly Travel April Rail,BD1 3AZ,"1,078.16",
"Housing, Communities & Local Government",MHCLG,09/05/2018,"Rail, Underground and Eurostar",Decentralisation and Local Growth,REDFERN TRAVEL LIMITED,,Small,,213089972,2100282529,Rail,Consolidated Monthly Travel April Rail,BD1 3AZ,461.20,
"Housing, Communities & Local Government",MHCLG,09/05/2018,"Rail, Underground and Eurostar",Decentralisation and Local Growth,REDFERN TRAVEL LIMITED,,Small,,213089972,2100282529,Rail,Consolidated Monthly Travel April Rail,BD1 3AZ,672.90,
"Housing, Communities & Local Government",MHCLG,09/05/2018,"Rail, Underground and Eurostar",Decentralisation and Local Growth,REDFERN TRAVEL LIMITED,,Small,,213089972,2100282529,Rail,Consolidated Monthly Travel April Rail,BD1 3AZ,772.40,
"Housing, Communities & Local Government",MHCLG,09/05/2018,"Rail, Underground and Eurostar",Decentralisation and Local Growth,REDFERN TRAVEL LIMITED,,Small,,213089972,2100282529,Rail,Consolidated Monthly Travel April Rail,BD1 3AZ,378.10,
"Housing, Communities & Local Government",MHCLG,09/05/2018,"Rail, Underground and Eurostar",Decentralisation and Local Growth,REDFERN TRAVEL LIMITED,,Small,,213089972,2100282529,Rail,Consolidated Monthly Travel April Rail,BD1 3AZ,"7,237.36",
"Housing, Communities & Local Government",MHCLG,09/05/2018,"Rail, Underground and Eurostar",Decentralisation and Local Growth,REDFERN TRAVEL LIMITED,,Small,,213089972,2100282529,Rail,Consolidated Monthly Travel April Rail,BD1 3AZ,353.60,
"Housing, Communities & Local Government",MHCLG,09/05/2018,"Rail, Underground and Eurostar",Decentralisation and Local Growth,REDFERN TRAVEL LIMITED,,Small,,213089972,2100282529,Rail,Consolidated Monthly Travel April Rail,BD1 3AZ,"3,919.75",
"Housing, Communities & Local Government",MHCLG,09/05/2018,"Rail, Underground and Eurostar",Decentralisation and Local Growth,REDFERN TRAVEL LIMITED,,Small,,213089972,2100282529,Rail,Consolidated Monthly Travel April Rail,BD1 3AZ,696.00,
"Housing, Communities & Local Government",MHCLG,09/05/2018,"Rail, Underground and Eurostar",Decentralisation and Local Growth,REDFERN TRAVEL LIMITED,,Small,,213089972,2100282529,Rail,Consolidated Monthly Travel April Rail,BD1 3AZ,"1,124.20",
"Housing, Communities & Local Government",MHCLG,09/05/2018,"Rail, Underground and Eurostar",Decentralisation and Local Growth,REDFERN TRAVEL LIMITED,,Small,,213089972,2100282529,Rail,Consolidated Monthly Travel April Rail,BD1 3AZ,541.20,
"Housing, Communities & Local Government",MHCLG,09/05/2018,"Rail, Underground and Eurostar",Decentralisation and Local Growth,REDFERN TRAVEL LIMITED,,Small,,213089972,2100282529,Rail,Consolidated Monthly Travel April Rail,BD1 3AZ,595.10,
"Housing, Communities & Local Government",MHCLG,09/05/2018,"Rail, Underground and Eurostar",Decentralisation and Local Growth,REDFERN TRAVEL LIMITED,,Small,,213089972,2100282529,Rail,Consolidated Monthly Travel April Rail,BD1 3AZ,337.60,
"Housing, Communities & Local Government",MHCLG,09/05/2018,"Rail, Underground and Eurostar",Decentralisation and Local Growth,REDFERN TRAVEL LIMITED,,Small,,213089972,2100282529,Rail,Consolidated Monthly Travel April Rail,BD1 3AZ,349.95,
"Housing, Communities & Local Government",MHCLG,09/05/2018,"Rail, Underground and Eurostar",Housing & BSP,REDFERN TRAVEL LIMITED,,Small,,213089972,2100282529,Rail,Consolidated Monthly Travel April Rail,BD1 3AZ,364.40,
"Housing, Communities & Local Government",MHCLG,09/05/2018,"Rail, Underground and Eurostar",Housing & BSP,REDFERN TRAVEL LIMITED,,Small,,213089972,2100282529,Rail,Consolidated Monthly Travel April Rail,BD1 3AZ,378.00,
"Housing, Communities & Local Government",MHCLG,09/05/2018,"Rail, Underground and Eurostar",Housing & BSP,REDFERN TRAVEL LIMITED,,Small,,213089972,2100282529,Rail,Consolidated Monthly Travel April Rail,BD1 3AZ,768.40,
"Housing, Communities & Local Government",MHCLG,09/05/2018,"Rail, Underground and Eurostar",Housing & BSP,REDFERN TRAVEL LIMITED,,Small,,213089972,2100282529,Rail,Consolidated Monthly Travel April Rail,BD1 3AZ,-254.00,
"Housing, Communities & Local Government",MHCLG,09/05/2018,"Rail, Underground and Eurostar",Housing & BSP,REDFERN TRAVEL LIMITED,,Small,,213089972,2100282529,Rail,Consolidated Monthly Travel April Rail,BD1 3AZ,860.40,
"Housing, Communities & Local Government",MHCLG,09/05/2018,"Rail, Underground and Eurostar",Housing & BSP,REDFERN TRAVEL LIMITED,,Small,,213089972,2100282529,Rail,Consolidated Monthly Travel April Rail,BD1 3AZ,405.70,
"Housing, Communities & Local Government",MHCLG,09/05/2018,"Rail, Underground and Eurostar",Housing & BSP,REDFERN TRAVEL LIMITED,,Small,,213089972,2100282529,Rail,Consolidated Monthly Travel April Rail,BD1 3AZ,"1,824.00",
"Housing, Communities & Local Government",MHCLG,09/05/2018,"Rail, Underground and Eurostar",Housing & BSP,REDFERN TRAVEL LIMITED,,Small,,213089972,2100282529,Rail,Consolidated Monthly Travel April Rail,BD1 3AZ,300.35,
"Housing, Communities & Local Government",MHCLG,09/05/2018,"Rail, Underground and Eurostar",Housing & BSP,REDFERN TRAVEL LIMITED,,Small,,213089972,2100282529,Rail,Consolidated Monthly Travel April Rail,BD1 3AZ,"1,923.55",
"Housing, Communities & Local Government",MHCLG,09/05/2018,"Rail, Underground and Eurostar",Housing & BSP,REDFERN TRAVEL LIMITED,,Small,,213089972,2100282529,Rail,Consolidated Monthly Travel April Rail,BD1 3AZ,"1,757.50",
"Housing, Communities & Local Government",MHCLG,09/05/2018,"Rail, Underground and Eurostar",Local Government & Public Services,REDFERN TRAVEL LIMITED,,Small,,213089972,2100282529,Rail,Consolidated Monthly Travel April Rail,BD1 3AZ,"1,666.50",
"Housing, Communities & Local Government",MHCLG,09/05/2018,"Rail, Underground and Eurostar",Local Government & Public Services,REDFERN TRAVEL LIMITED,,Small,,213089972,2100282529,Rail,Consolidated Monthly Travel April Rail,BD1 3AZ,"1,119.30",
"Housing, Communities & Local Government",MHCLG,09/05/2018,"Rail, Underground and Eurostar",Local Government & Public Services,REDFERN TRAVEL LIMITED,,Small,,213089972,2100282529,Rail,Consolidated Monthly Travel April Rail,BD1 3AZ,606.95,
"Housing, Communities & Local Government",MHCLG,09/05/2018,"Rail, Underground and Eurostar",Local Government & Public Services,REDFERN TRAVEL LIMITED,,Small,,213089972,2100282529,Rail,Consolidated Monthly Travel April Rail,BD1 3AZ,"1,661.70",
"Housing, Communities & Local Government",MHCLG,09/05/2018,"Rail, Underground and Eurostar",Local Government & Public Services,REDFERN TRAVEL LIMITED,,Small,,213089972,2100282529,Rail,Consolidated Monthly Travel April Rail,BD1 3AZ,"2,338.60",
"Housing, Communities & Local Government",MHCLG,09/05/2018,"Rail, Underground and Eurostar",Local Government & Public Services,REDFERN TRAVEL LIMITED,,Small,,213089972,2100282529,Rail,Consolidated Monthly Travel April Rail,BD1 3AZ,296.00,
"Housing, Communities & Local Government",MHCLG,09/05/2018,"Rail, Underground and Eurostar",Local Government & Public Services,REDFERN TRAVEL LIMITED,,Small,,213089972,2100282529,Rail,Consolidated Monthly Travel April Rail,BD1 3AZ,"4,697.70",
"Housing, Communities & Local Government",MHCLG,09/05/2018,"Rail, Underground and Eurostar",Local Government & Public Services,REDFERN TRAVEL LIMITED,,Small,,213089972,2100282529,Rail,Consolidated Monthly Travel April Rail,BD1 3AZ,504.70,
"Housing, Communities & Local Government",MHCLG,09/05/2018,"Rail, Underground and Eurostar",Local Government & Public Services,REDFERN TRAVEL LIMITED,,Small,,213089972,2100282529,Rail,Consolidated Monthly Travel April Rail,BD1 3AZ,730.20,
"Housing, Communities & Local Government",MHCLG,09/05/2018,"Rail, Underground and Eurostar",Local Government & Public Services,REDFERN TRAVEL LIMITED,,Small,,213089972,2100282529,Rail,Consolidated Monthly Travel April Rail,BD1 3AZ,"8,193.92",
"Housing, Communities & Local Government",MHCLG,09/05/2018,"Rail, Underground and Eurostar",Local Government & Public Services,REDFERN TRAVEL LIMITED,,Small,,213089972,2100282529,Rail,Consolidated Monthly Travel April Rail,BD1 3AZ,844.00,
"Housing, Communities & Local Government",MHCLG,09/05/2018,"Rail, Underground and Eurostar",Local Government & Public Services,REDFERN TRAVEL LIMITED,,Small,,213089972,2100282529,Rail,Consolidated Monthly Travel April Rail,BD1 3AZ,748.00,
"Housing, Communities & Local Government",MHCLG,09/05/2018,Training,Chief Finance Office,LSR TRAINING AND DEVELOPMENT LTD,,Micro,,,5106236085,Development and Training,Civil Service Training,YO42 4RE,"1,680.00",
"Housing, Communities & Local Government",MHCLG,09/05/2018,Training,Corporate Services,ASSOC RESIDENTIAL MANAGING AGENTS,,Micro,,738742019,5106235947,Development and Training,Civil Service Training,SW19 4DP,"2,700.00",
"Housing, Communities & Local Government",MHCLG,09/05/2018,Travel and Subsistence Account,Decentralisation and Local Growth,REDFERN TRAVEL LIMITED,,Small,,213089972,2100282529,Business Travel,Consolidated Monthly Travel April Misc T&S,BD1 3AZ,700.86,
"Housing, Communities & Local Government",MHCLG,09/05/2018,Travel and Subsistence Account,Housing & BSP,REDFERN TRAVEL LIMITED,,Small,,213089972,2100282529,Business Travel,Consolidated Monthly Travel April Misc T&S,BD1 3AZ,"7,909.89",
"Housing, Communities & Local Government",MHCLG,09/05/2018,Web Services,Decentralisation and Local Growth,HELPFUL TECHNOLOGY LTD,,Micro,,216608694,5106236093,ICT Services,Web hosting for MHCLG Intranet,BR3 4EY,"2,520.00",
"Housing, Communities & Local Government",MHCLG,09/05/2018,Web Services,Decentralisation and Local Growth,HELPFUL TECHNOLOGY LTD,,Micro,,216608694,5106236094,ICT Services,Web hosting for MHCLG Intranet,BR3 4EY,"2,520.00",
"Housing, Communities & Local Government",MHCLG,10/05/2018,ERDF Work in Progress � Capital,Decentralisation and Local Growth,CORNWALL COUNCIL,,Large,,,7700002024,,ERDF Grant payment,TR1 3AY,"14,589.32",Yes
"Housing, Communities & Local Government",MHCLG,10/05/2018,ERDF Work in Progress � Resource,Decentralisation and Local Growth, WEST YORKSHIRE COMBINED AUTHORITY,,Large,,,7700002026,,ERDF Grant payment,LS1 2DE,"32,664.51",Yes
"Housing, Communities & Local Government",MHCLG,10/05/2018,ERDF Work in Progress � Resource,Decentralisation and Local Growth,GWE BUSINESS WEST LTD,,,,,7700002025,,ERDF Grant payment,BS8 3RA,"49,219.40",Yes
"Housing, Communities & Local Government",MHCLG,10/05/2018,ERDF Work in Progress � Resource,Decentralisation and Local Growth,H & W CHAMBER OF COMMERCE,,Medium,,,7700002023,,ERDF Grant payment,WR4 9NE,"34,590.47",Yes
"Housing, Communities & Local Government",MHCLG,10/05/2018,EXP � PURCHASE OF GOODS /SERVICES R & D,Chief Finance Office,MARKET & OPINION RESEARCH INT LTD,,Large,,227257185,5106236118,Research,Research - Evaluation of Help to Buy Equity Loan,E1W 1YW,"52,812.50",
"Housing, Communities & Local Government",MHCLG,10/05/2018,EXP � PURCHASE OF GOODS /SERVICES R & D,Chief Finance Office,OXFORD CONS SOCIAL INCLUSION LTD,,Micro,,735385184,5106236109,Research,Research - Indices of Deprivation,BN1 4GQ,"22,884.62",
"Housing, Communities & Local Government",MHCLG,10/05/2018,EXP � PURCHASE OF GOODS /SERVICES R & D,Chief Finance Office,OXFORD CONS SOCIAL INCLUSION LTD,,Micro,,735385184,5106236110,Research,Research - Indices of Deprivation,BN1 4GQ,"4,623.54",
"Housing, Communities & Local Government",MHCLG,10/05/2018,EXP � PURCHASE OF GOODS /SERVICES R & D,Local Government & Public Services,MARKET & OPINION RESEARCH INT LTD,,Large,,227257185,5106236120,Research,Troubled Families Family survey Milestone payment,E1W 1YW,"38,218.80",
"Housing, Communities & Local Government",MHCLG,10/05/2018,Facilities Management (ISD use only),Local Government & Public Services,M U ENTERPRISES LTD,,Small,,569582521,5106236132,Property Occupation,Room booking for LGP event,SW1P 3RB,384.00,
"Housing, Communities & Local Government",MHCLG,10/05/2018,IT - Software Maintenance,Chief Finance Office,BYTES SOFTWARE SERVICES LTD,,Medium,,225273754,5106236136,IT Managed / Outsourced Services,Two-year SSL Web Server certificate,KT22 7TW,479.52,
"Housing, Communities & Local Government",MHCLG,10/05/2018,IT - Software Maintenance,Chief Finance Office,INSIGHT DIRECT (UK) LTD,,Large,,,5106236060,IT Managed / Outsourced Services,IBM Cognos Software subscription & support renewal,UB8 1PH,"44,592.34",
"Housing, Communities & Local Government",MHCLG,10/05/2018,Management Consultancy,Housing & BSP,PETER BRETT ASSOCIATES LLP,,Large,,,5106235018,Consultancy,Additional Evidence Assessment,RG1 8DN,"5,552.40",
"Housing, Communities & Local Government",MHCLG,10/05/2018,Professional services,Decentralisation and Local Growth,LOCALITY,,Medium,,347998312,5106236116,Technical Services,Local plan intervention work,N1 6DR,"60,927.55",
"Housing, Communities & Local Government",MHCLG,10/05/2018,Professional services,Decentralisation and Local Growth,VALUATION OFFICE AGENCY,,Public Bodies,,215253886,5106236137,Financial,Planning changes to support infrastructure of communities,W1D 5BU,"1,532.60",
"Housing, Communities & Local Government",MHCLG,10/05/2018,Professional services,Housing & BSP,ATKINS LTD,,Large,,293650339,5106236133,Technical Services,Technical solutions,KT18 5BW,"1,485.00",
"Housing, Communities & Local Government",MHCLG,10/05/2018,Steady State Service Provision,Decentralisation and Local Growth,LOCALITY,,Medium,,347998312,5106236114,Business Process Outsourcing Services,Neighbourhood Planning & CRTB,N1 6DR,"8,506.94",
"Housing, Communities & Local Government",MHCLG,10/05/2018,Steady State Service Provision,Decentralisation and Local Growth,LOCALITY,,Medium,,347998312,5106236115,Business Process Outsourcing Services,Neighbourhood Planning Support 18/19 fixed costs,N1 6DR,"61,916.66",
"Housing, Communities & Local Government",MHCLG,10/05/2018,Training,Chief Finance Office,iNUDGEYOU,,Micro,,,5106236134,Development and Training,Civil Service Training,1208,"-6,833.98",
"Housing, Communities & Local Government",MHCLG,10/05/2018,Training,Chief Finance Office,iNUDGEYOU,,Micro,,,5106236158,Development and Training,Civil Service Training,1208,"5,694.98",
"Housing, Communities & Local Government",MHCLG,10/05/2018,Training,Corporate Services,KORN FERRY HAY GROUP LTD,,Large,,,5106236135,Development and Training,Civil Service Training,SW1Y 6QB,272.00,
"Housing, Communities & Local Government",MHCLG,10/05/2018,Training,Corporate Services,KPMG LLP (CSL),,Large,,,5106236107,Development and Training,Civil Service Training,E14 5GL,345.00,
"Housing, Communities & Local Government",MHCLG,10/05/2018,Training,Decentralisation and Local Growth,CONTACT PROPERTY TRAINING LTD,,Micro,,764461323,5106236119,Development and Training,Civil Service Training,RG2 8LW,260.00,
"Housing, Communities & Local Government",MHCLG,11/05/2018,Catering,Chief Finance Office,BOUYGUES E&S FM UK LTD (CATERING),,Large,,,2100282601,Business Support,Condsolidated Monthly Catering April 2018,SE1 7EU,127.56,
"Housing, Communities & Local Government",MHCLG,11/05/2018,Catering,Housing & BSP,BOUYGUES E&S FM UK LTD (CATERING),,Large,,,2100282601,Business Support,Condsolidated Monthly Catering April 2018,SE1 7EU,21.60,
"Housing, Communities & Local Government",MHCLG,11/05/2018,Catering,Housing & BSP,BOUYGUES E&S FM UK LTD (CATERING),,Large,,,2100282601,Business Support,Condsolidated Monthly Catering April 2018,SE1 7EU,36.00,
"Housing, Communities & Local Government",MHCLG,11/05/2018,Catering,Housing & BSP,BOUYGUES E&S FM UK LTD (CATERING),,Large,,,2100282601,Business Support,Condsolidated Monthly Catering April 2018,SE1 7EU,29.64,
"Housing, Communities & Local Government",MHCLG,11/05/2018,Catering,Housing & BSP,BOUYGUES E&S FM UK LTD (CATERING),,Large,,,2100282601,Business Support,Condsolidated Monthly Catering April 2018,SE1 7EU,120.60,
"Housing, Communities & Local Government",MHCLG,11/05/2018,Catering,Housing & BSP,BOUYGUES E&S FM UK LTD (CATERING),,Large,,,2100282601,Business Support,Condsolidated Monthly Catering April 2018,SE1 7EU,9.90,
"Housing, Communities & Local Government",MHCLG,11/05/2018,Catering,Local Government & Public Services,BOUYGUES E&S FM UK LTD (CATERING),,Large,,,2100282601,Business Support,Condsolidated Monthly Catering April 2018,SE1 7EU,270.60,
"Housing, Communities & Local Government",MHCLG,11/05/2018,Catering,Local Government & Public Services,BOUYGUES E&S FM UK LTD (CATERING),,Large,,,2100282601,Business Support,Condsolidated Monthly Catering April 2018,SE1 7EU,30.24,
"Housing, Communities & Local Government",MHCLG,11/05/2018,Catering,Local Government & Public Services,BOUYGUES E&S FM UK LTD (CATERING),,Large,,,2100282601,Business Support,Condsolidated Monthly Catering April 2018,SE1 7EU,78.24,
"Housing, Communities & Local Government",MHCLG,11/05/2018,Catering,Local Government & Public Services,BOUYGUES E&S FM UK LTD (CATERING),,Large,,,2100282601,Business Support,Condsolidated Monthly Catering April 2018,SE1 7EU,43.50,
"Housing, Communities & Local Government",MHCLG,11/05/2018,Conferences and Meeting Facilities,Housing & BSP,HOMES IN SEDGEMOOR,,Medium,,,5106236142,Business Travel Accommodation,Ministrial Tenant Engagement Event,TA6 3AR,"2,247.60",
"Housing, Communities & Local Government",MHCLG,11/05/2018,Current (non AEF) Grants to Local Authorities,Local Government & Public Services,BARKING & DAGENHAM LB (HSG),,,,217142293,5000400470,,Additional Better Care Fund element,RM10 7BY,"436,033.00",Yes
"Housing, Communities & Local Government",MHCLG,11/05/2018,Current (non AEF) Grants to Local Authorities,Local Government & Public Services,BARKING & DAGENHAM LB (HSG),,,,217142293,5000400471,,Adult Social Care Support Grant,RM10 7BY,"95,107.00",Yes
"Housing, Communities & Local Government",MHCLG,11/05/2018,Current (non AEF) Grants to Local Authorities,Local Government & Public Services,BARKING & DAGENHAM LB (HSG),,,,217142293,5000400472,,Improved Better Care Fund,RM10 7BY,"818,327.00",Yes
"Housing, Communities & Local Government",MHCLG,11/05/2018,Current (non AEF) Grants to Local Authorities,Local Government & Public Services,BARNSLEY MBC,,,,211178595,5000400542,,Additional Better Care Fund element,S70 2AQ,"589,942.00",Yes
"Housing, Communities & Local Government",MHCLG,11/05/2018,Current (non AEF) Grants to Local Authorities,Local Government & Public Services,BARNSLEY MBC,,,,211178595,5000400543,,Adult Social Care Support Grant,S70 2AQ,"128,995.00",Yes
"Housing, Communities & Local Government",MHCLG,11/05/2018,Current (non AEF) Grants to Local Authorities,Local Government & Public Services,BARNSLEY MBC,,,,211178595,5000400544,,Improved Better Care Fund,S70 2AQ,"975,880.00",Yes
"Housing, Communities & Local Government",MHCLG,11/05/2018,Current (non AEF) Grants to Local Authorities,Local Government & Public Services,BATH & NE SOMERSET DC (HSG),,,,214502499,5000400473,,Additional Better Care Fund element,BA1 5AW,"343,908.00",Yes
"Housing, Communities & Local Government",MHCLG,11/05/2018,Current (non AEF) Grants to Local Authorities,Local Government & Public Services,BATH & NE SOMERSET DC (HSG),,,,214502499,5000400474,,Adult Social Care Support Grant,BA1 5AW,"76,013.00",Yes
"Housing, Communities & Local Government",MHCLG,11/05/2018,Current (non AEF) Grants to Local Authorities,Local Government & Public Services,BATH & NE SOMERSET DC (HSG),,,,214502499,5000400475,,Improved Better Care Fund,BA1 5AW,"232,312.00",Yes
"Housing, Communities & Local Government",MHCLG,11/05/2018,Current (non AEF) Grants to Local Authorities,Local Government & Public Services,BEDFORD UNITARY AUTHORITY,,,,225682160,5000400894,,Additional Better Care Fund element,MK40 1SJ,"291,665.00",Yes
"Housing, Communities & Local Government",MHCLG,11/05/2018,Current (non AEF) Grants to Local Authorities,Local Government & Public Services,BEDFORD UNITARY AUTHORITY,,,,225682160,5000400895,,Adult Social Care Support Grant,MK40 1SJ,"64,665.00",Yes
"Housing, Communities & Local Government",MHCLG,11/05/2018,Current (non AEF) Grants to Local Authorities,Local Government & Public Services,BEDFORD UNITARY AUTHORITY,,,,225682160,5000400896,,Improved Better Care Fund,MK40 1SJ,"114,671.00",Yes
"Housing, Communities & Local Government",MHCLG,11/05/2018,Current (non AEF) Grants to Local Authorities,Local Government & Public Services,BEXLEY LB (HSG),,,,,5000400476,,Additional Better Care Fund element,DA8 1TL,"438,039.00",Yes
"Housing, Communities & Local Government",MHCLG,11/05/2018,Current (non AEF) Grants to Local Authorities,Local Government & Public Services,BEXLEY LB (HSG),,,,,5000400477,,Adult Social Care Support Grant,DA8 1TL,"96,702.00",Yes
"Housing, Communities & Local Government",MHCLG,11/05/2018,Current (non AEF) Grants to Local Authorities,Local Government & Public Services,BEXLEY LB (HSG),,,,,5000400478,,Improved Better Care Fund,DA8 1TL,"344,065.00",Yes
"Housing, Communities & Local Government",MHCLG,11/05/2018,Current (non AEF) Grants to Local Authorities,Local Government & Public Services,BIRMINGHAM CITY CNCL,,,,213780559,5000400545,,Additional Better Care Fund element,B2 2AJ,"2,676,512.00",Yes
"Housing, Communities & Local Government",MHCLG,11/05/2018,Current (non AEF) Grants to Local Authorities,Local Government & Public Services,BIRMINGHAM CITY CNCL,,,,213780559,5000400546,,Adult Social Care Support Grant,B2 2AJ,"583,341.00",Yes
"Housing, Communities & Local Government",MHCLG,11/05/2018,Current (non AEF) Grants to Local Authorities,Local Government & Public Services,BIRMINGHAM CITY CNCL,,,,213780559,5000400547,,Improved Better Care Fund,B2 2AJ,"5,211,125.00",Yes
"Housing, Communities & Local Government",MHCLG,11/05/2018,Current (non AEF) Grants to Local Authorities,Local Government & Public Services,BLACKBURN WITH DARWEN BC,,,,,5000400548,,Additional Better Care Fund element,BB1 7DY,"364,329.00",Yes
"Housing, Communities & Local Government",MHCLG,11/05/2018,Current (non AEF) Grants to Local Authorities,Local Government & Public Services,BLACKBURN WITH DARWEN BC,,,,,5000400549,,Adult Social Care Support Grant,BB1 7DY,"79,623.00",Yes
"Housing, Communities & Local Government",MHCLG,11/05/2018,Current (non AEF) Grants to Local Authorities,Local Government & Public Services,BLACKBURN WITH DARWEN BC,,,,,5000400550,,Improved Better Care Fund,BB1 7DY,"619,058.00",Yes
"Housing, Communities & Local Government",MHCLG,11/05/2018,Current (non AEF) Grants to Local Authorities,Local Government & Public Services,BLACKPOOL BC,,,,,5000400551,,Additional Better Care Fund element,FY1 1NA,"431,761.00",Yes
"Housing, Communities & Local Government",MHCLG,11/05/2018,Current (non AEF) Grants to Local Authorities,Local Government & Public Services,BLACKPOOL BC,,,,,5000400552,,Adult Social Care Support Grant,FY1 1NA,"94,130.00",Yes
"Housing, Communities & Local Government",MHCLG,11/05/2018,Current (non AEF) Grants to Local Authorities,Local Government & Public Services,BLACKPOOL BC,,,,,5000400553,,Improved Better Care Fund,FY1 1NA,"828,830.00",Yes
"Housing, Communities & Local Government",MHCLG,11/05/2018,Current (non AEF) Grants to Local Authorities,Local Government & Public Services,BOLTON MBC,,,,,5000400554,,Additional Better Care Fund element,BL1 1RU,"661,844.00",Yes
"Housing, Communities & Local Government",MHCLG,11/05/2018,Current (non AEF) Grants to Local Authorities,Local Government & Public Services,BOLTON MBC,,,,,5000400555,,Adult Social Care Support Grant,BL1 1RU,"144,797.00",Yes
"Housing, Communities & Local Government",MHCLG,11/05/2018,Current (non AEF) Grants to Local Authorities,Local Government & Public Services,BOLTON MBC,,,,,5000400556,,Improved Better Care Fund,BL1 1RU,"1,061,922.00",Yes
"Housing, Communities & Local Government",MHCLG,11/05/2018,Current (non AEF) Grants to Local Authorities,Local Government & Public Services,BOURNEMOUTH DC,,,,,5000400557,,Additional Better Care Fund element,BH2 6EB,"418,472.00",Yes
"Housing, Communities & Local Government",MHCLG,11/05/2018,Current (non AEF) Grants to Local Authorities,Local Government & Public Services,BOURNEMOUTH DC,,,,,5000400558,,Adult Social Care Support Grant,BH2 6EB,"92,071.00",Yes
"Housing, Communities & Local Government",MHCLG,11/05/2018,Current (non AEF) Grants to Local Authorities,Local Government & Public Services,BOURNEMOUTH DC,,,,,5000400559,,Improved Better Care Fund,BH2 6EB,"457,324.00",Yes
"Housing, Communities & Local Government",MHCLG,11/05/2018,Current (non AEF) Grants to Local Authorities,Local Government & Public Services,BRACKNELL FOREST DC,,,,236184867,5000400560,,Additional Better Care Fund element,RG12 1AQ,"169,381.00",Yes
"Housing, Communities & Local Government",MHCLG,11/05/2018,Current (non AEF) Grants to Local Authorities,Local Government & Public Services,BRACKNELL FOREST DC,,,,236184867,5000400561,,Adult Social Care Support Grant,RG12 1AQ,"37,690.00",Yes
"Housing, Communities & Local Government",MHCLG,11/05/2018,Current (non AEF) Grants to Local Authorities,Local Government & Public Services,BRACKNELL FOREST DC,,,,236184867,5000400562,,Improved Better Care Fund,RG12 1AQ,"10,403.00",Yes
"Housing, Communities & Local Government",MHCLG,11/05/2018,Current (non AEF) Grants to Local Authorities,Local Government & Public Services,BRADFORD MBC,,,,,5000400563,,Additional Better Care Fund element,BD1 1HX,"1,092,550.00",Yes
"Housing, Communities & Local Government",MHCLG,11/05/2018,Current (non AEF) Grants to Local Authorities,Local Government & Public Services,BRADFORD MBC,,,,,5000400564,,Adult Social Care Support Grant,BD1 1HX,"239,283.00",Yes
"Housing, Communities & Local Government",MHCLG,11/05/2018,Current (non AEF) Grants to Local Authorities,Local Government & Public Services,BRADFORD MBC,,,,,5000400565,,Improved Better Care Fund,BD1 1HX,"1,646,576.00",Yes
"Housing, Communities & Local Government",MHCLG,11/05/2018,Current (non AEF) Grants to Local Authorities,Local Government & Public Services,BRENT LB (HSG),,,,,5000400479,,Additional Better Care Fund element,HA9 9HD,"638,446.00",Yes
"Housing, Communities & Local Government",MHCLG,11/05/2018,Current (non AEF) Grants to Local Authorities,Local Government & Public Services,BRENT LB (HSG),,,,,5000400480,,Adult Social Care Support Grant,HA9 9HD,"139,894.00",Yes
"Housing, Communities & Local Government",MHCLG,11/05/2018,Current (non AEF) Grants to Local Authorities,Local Government & Public Services,BRENT LB (HSG),,,,,5000400481,,Improved Better Care Fund,HA9 9HD,"934,939.00",Yes
"Housing, Communities & Local Government",MHCLG,11/05/2018,Current (non AEF) Grants to Local Authorities,Local Government & Public Services,BRIGHTON & HOVE CITY COUNCIL,,Large,,228455218,5000400566,,Additional Better Care Fund element,BN1 3JE,"580,551.00",Yes
"Housing, Communities & Local Government",MHCLG,11/05/2018,Current (non AEF) Grants to Local Authorities,Local Government & Public Services,BRIGHTON & HOVE CITY COUNCIL,,Large,,228455218,5000400567,,Adult Social Care Support Grant,BN1 3JE,"127,980.00",Yes
"Housing, Communities & Local Government",MHCLG,11/05/2018,Current (non AEF) Grants to Local Authorities,Local Government & Public Services,BRIGHTON & HOVE CITY COUNCIL,,Large,,228455218,5000400568,,Improved Better Care Fund,BN1 3JE,"531,394.00",Yes
"Housing, Communities & Local Government",MHCLG,11/05/2018,Current (non AEF) Grants to Local Authorities,Local Government & Public Services,BRISTOL CITY COUNCIL (HSG),,,,211103882,5000400482,,Additional Better Care Fund element,BS3 9FS,"960,200.00",Yes
"Housing, Communities & Local Government",MHCLG,11/05/2018,Current (non AEF) Grants to Local Authorities,Local Government & Public Services,BRISTOL CITY COUNCIL (HSG),,,,211103882,5000400483,,Adult Social Care Support Grant,BS3 9FS,"211,280.00",Yes
"Housing, Communities & Local Government",MHCLG,11/05/2018,Current (non AEF) Grants to Local Authorities,Local Government & Public Services,BRISTOL CITY COUNCIL (HSG),,,,211103882,5000400484,,Improved Better Care Fund,BS3 9FS,"1,041,213.00",Yes
"Housing, Communities & Local Government",MHCLG,11/05/2018,Current (non AEF) Grants to Local Authorities,Local Government & Public Services,BROMLEY LB,,,,211331954,5000400569,,Additional Better Care Fund element,BR1 3UH,"560,549.00",Yes
"Housing, Communities & Local Government",MHCLG,11/05/2018,Current (non AEF) Grants to Local Authorities,Local Government & Public Services,BROMLEY LB,,,,211331954,5000400570,,Adult Social Care Support Grant,BR1 3UH,"124,001.00",Yes
"Housing, Communities & Local Government",MHCLG,11/05/2018,Current (non AEF) Grants to Local Authorities,Local Government & Public Services,BROMLEY LB,,,,211331954,5000400571,,Improved Better Care Fund,BR1 3UH,"335,549.00",Yes
"Housing, Communities & Local Government",MHCLG,11/05/2018,Current (non AEF) Grants to Local Authorities,Local Government & Public Services,BUCKINGHAMSHIRE CC,,,,293750923,5000400572,,Additional Better Care Fund element,HP20 1UD,"609,582.00",Yes
"Housing, Communities & Local Government",MHCLG,11/05/2018,Current (non AEF) Grants to Local Authorities,Local Government & Public Services,BUCKINGHAMSHIRE CC,,,,293750923,5000400573,,Adult Social Care Support Grant,HP20 1UD,"174,089.00",Yes
"Housing, Communities & Local Government",MHCLG,11/05/2018,Current (non AEF) Grants to Local Authorities,Local Government & Public Services,BURY MBC,,,,,5000400574,,Additional Better Care Fund element,BL9 0SW,"387,387.00",Yes
"Housing, Communities & Local Government",MHCLG,11/05/2018,Current (non AEF) Grants to Local Authorities,Local Government & Public Services,BURY MBC,,,,,5000400575,,Adult Social Care Support Grant,BL9 0SW,"85,071.00",Yes
"Housing, Communities & Local Government",MHCLG,11/05/2018,Current (non AEF) Grants to Local Authorities,Local Government & Public Services,BURY MBC,,,,,5000400576,,Improved Better Care Fund,BL9 0SW,"489,761.00",Yes
"Housing, Communities & Local Government",MHCLG,11/05/2018,Current (non AEF) Grants to Local Authorities,Local Government & Public Services,CALDERDALE MBC,,,,,5000400577,,Additional Better Care Fund element,HX1 1YP,"436,585.00",Yes
"Housing, Communities & Local Government",MHCLG,11/05/2018,Current (non AEF) Grants to Local Authorities,Local Government & Public Services,CALDERDALE MBC,,,,,5000400578,,Adult Social Care Support Grant,HX1 1YP,"95,894.00",Yes
"Housing, Communities & Local Government",MHCLG,11/05/2018,Current (non AEF) Grants to Local Authorities,Local Government & Public Services,CALDERDALE MBC,,,,,5000400579,,Improved Better Care Fund,HX1 1YP,"544,063.00",Yes
"Housing, Communities & Local Government",MHCLG,11/05/2018,Current (non AEF) Grants to Local Authorities,Local Government & Public Services,CAMBRIDGESHIRE COUNTY CNCL,,,,219047347,5000400580,,Additional Better Care Fund element,CB3 0AP,"1,094,616.00",Yes
"Housing, Communities & Local Government",MHCLG,11/05/2018,Current (non AEF) Grants to Local Authorities,Local Government & Public Services,CAMBRIDGESHIRE COUNTY CNCL,,,,219047347,5000400581,,Adult Social Care Support Grant,CB3 0AP,"242,079.00",Yes
"Housing, Communities & Local Government",MHCLG,11/05/2018,Current (non AEF) Grants to Local Authorities,Local Government & Public Services,CAMBRIDGESHIRE COUNTY CNCL,,,,219047347,5000400582,,Improved Better Care Fund,CB3 0AP,"681,691.00",Yes
"Housing, Communities & Local Government",MHCLG,11/05/2018,Current (non AEF) Grants to Local Authorities,Local Government & Public Services,CAMDEN LB,,,,211651836,5000400583,,Additional Better Care Fund element,WC1H 8NG,"611,162.00",Yes
"Housing, Communities & Local Government",MHCLG,11/05/2018,Current (non AEF) Grants to Local Authorities,Local Government & Public Services,CAMDEN LB,,,,211651836,5000400584,,Adult Social Care Support Grant,WC1H 8NG,"133,928.00",Yes
"Housing, Communities & Local Government",MHCLG,11/05/2018,Current (non AEF) Grants to Local Authorities,Local Government & Public Services,CAMDEN LB,,,,211651836,5000400585,,Improved Better Care Fund,WC1H 8NG,"889,865.00",Yes
"Housing, Communities & Local Government",MHCLG,11/05/2018,Current (non AEF) Grants to Local Authorities,Local Government & Public Services,CENTRAL BEDFORDSHIRE COUNCIL,,,,232624882,5000400886,,Additional Better Care Fund element,SG17 5TQ,"326,035.00",Yes
"Housing, Communities & Local Government",MHCLG,11/05/2018,Current (non AEF) Grants to Local Authorities,Local Government & Public Services,CENTRAL BEDFORDSHIRE COUNCIL,,,,232624882,5000400887,,Adult Social Care Support Grant,SG17 5TQ,"90,202.00",Yes
"Housing, Communities & Local Government",MHCLG,11/05/2018,Current (non AEF) Grants to Local Authorities,Local Government & Public Services,CHESHIRE EAST COUNCIL,,Large,,,5000400888,,Additional Better Care Fund element,CW11 1HZ,"682,046.00",Yes
"Housing, Communities & Local Government",MHCLG,11/05/2018,Current (non AEF) Grants to Local Authorities,Local Government & Public Services,CHESHIRE EAST COUNCIL,,Large,,,5000400889,,Adult Social Care Support Grant,CW11 1HZ,"151,102.00",Yes
"Housing, Communities & Local Government",MHCLG,11/05/2018,Current (non AEF) Grants to Local Authorities,Local Government & Public Services,CHESHIRE EAST COUNCIL,,Large,,,5000400890,,Improved Better Care Fund,CW11 1HZ,"315,622.00",Yes
"Housing, Communities & Local Government",MHCLG,11/05/2018,Current (non AEF) Grants to Local Authorities,Local Government & Public Services,CHESHIRE WEST & CHESTER UA,,Large,,215584383,5000400891,,Additional Better Care Fund element,CH1 2NP,"692,526.00",Yes
"Housing, Communities & Local Government",MHCLG,11/05/2018,Current (non AEF) Grants to Local Authorities,Local Government & Public Services,CHESHIRE WEST & CHESTER UA,,Large,,215584383,5000400892,,Adult Social Care Support Grant,CH1 2NP,"152,829.00",Yes
"Housing, Communities & Local Government",MHCLG,11/05/2018,Current (non AEF) Grants to Local Authorities,Local Government & Public Services,CHESHIRE WEST & CHESTER UA,,Large,,215584383,5000400893,,Improved Better Care Fund,CH1 2NP,"566,037.00",Yes
"Housing, Communities & Local Government",MHCLG,11/05/2018,Current (non AEF) Grants to Local Authorities,Local Government & Public Services,CITY OF LONDON (HSG),,,,217471460,5000400485,,Additional Better Care Fund element,EC2P 2EJ,"22,988.00",Yes
"Housing, Communities & Local Government",MHCLG,11/05/2018,Current (non AEF) Grants to Local Authorities,Local Government & Public Services,CITY OF LONDON (HSG),,,,217471460,5000400486,,Adult Social Care Support Grant,EC2P 2EJ,"5,082.00",Yes
"Housing, Communities & Local Government",MHCLG,11/05/2018,Current (non AEF) Grants to Local Authorities,Local Government & Public Services,CITY OF LONDON (HSG),,,,217471460,5000400487,,Improved Better Care Fund,EC2P 2EJ,"15,080.00",Yes
"Housing, Communities & Local Government",MHCLG,11/05/2018,Current (non AEF) Grants to Local Authorities,Local Government & Public Services,CITY OF SUNDERLAND (HSG),,,,215599312,5000400488,,Additional Better Care Fund element,SR2 7DN,"748,898.00",Yes
"Housing, Communities & Local Government",MHCLG,11/05/2018,Current (non AEF) Grants to Local Authorities,Local Government & Public Services,CITY OF SUNDERLAND (HSG),,,,215599312,5000400489,,Adult Social Care Support Grant,SR2 7DN,"163,304.00",Yes
"Housing, Communities & Local Government",MHCLG,11/05/2018,Current (non AEF) Grants to Local Authorities,Local Government & Public Services,CITY OF SUNDERLAND (HSG),,,,215599312,5000400490,,Improved Better Care Fund,SR2 7DN,"1,423,974.00",Yes
"Housing, Communities & Local Government",MHCLG,11/05/2018,Current (non AEF) Grants to Local Authorities,Local Government & Public Services,CITY OF WAKEFIELD MDC,,,,,5000400839,,Additional Better Care Fund element,WF1 2QW,"784,833.00",Yes
"Housing, Communities & Local Government",MHCLG,11/05/2018,Current (non AEF) Grants to Local Authorities,Local Government & Public Services,CITY OF WAKEFIELD MDC,,,,,5000400840,,Adult Social Care Support Grant,WF1 2QW,"171,751.00",Yes
"Housing, Communities & Local Government",MHCLG,11/05/2018,Current (non AEF) Grants to Local Authorities,Local Government & Public Services,CITY OF WAKEFIELD MDC,,,,,5000400841,,Improved Better Care Fund,WF1 2QW,"1,239,830.00",Yes
"Housing, Communities & Local Government",MHCLG,11/05/2018,Current (non AEF) Grants to Local Authorities,Local Government & Public Services,CORNWALL UNITARY AUTHORITY,,,,211334404,5000400900,,Additional Better Care Fund element,TR1 3AY,"1,323,212.00",Yes
"Housing, Communities & Local Government",MHCLG,11/05/2018,Current (non AEF) Grants to Local Authorities,Local Government & Public Services,CORNWALL UNITARY AUTHORITY,,,,211334404,5000400901,,Adult Social Care Support Grant,TR1 3AY,"290,966.00",Yes
"Housing, Communities & Local Government",MHCLG,11/05/2018,Current (non AEF) Grants to Local Authorities,Local Government & Public Services,CORNWALL UNITARY AUTHORITY,,,,211334404,5000400902,,Improved Better Care Fund,TR1 3AY,"1,513,191.00",Yes
"Housing, Communities & Local Government",MHCLG,11/05/2018,Current (non AEF) Grants to Local Authorities,Local Government & Public Services,COVENTRY CITY CNCL,,,,210384802,5000400586,,Additional Better Care Fund element,CV1 2QL,"737,654.00",Yes
"Housing, Communities & Local Government",MHCLG,11/05/2018,Current (non AEF) Grants to Local Authorities,Local Government & Public Services,COVENTRY CITY CNCL,,,,210384802,5000400587,,Adult Social Care Support Grant,CV1 2QL,"161,563.00",Yes
"Housing, Communities & Local Government",MHCLG,11/05/2018,Current (non AEF) Grants to Local Authorities,Local Government & Public Services,COVENTRY CITY CNCL,,,,210384802,5000400588,,Improved Better Care Fund,CV1 2QL,"1,109,086.00",Yes
"Housing, Communities & Local Government",MHCLG,11/05/2018,Current (non AEF) Grants to Local Authorities,Local Government & Public Services,CROYDON LB,,,,212419973,5000400589,,Additional Better Care Fund element,CR0 1EA,"661,218.00",Yes
"Housing, Communities & Local Government",MHCLG,11/05/2018,Current (non AEF) Grants to Local Authorities,Local Government & Public Services,CROYDON LB,,,,212419973,5000400590,,Adult Social Care Support Grant,CR0 1EA,"145,967.00",Yes
"Housing, Communities & Local Government",MHCLG,11/05/2018,Current (non AEF) Grants to Local Authorities,Local Government & Public Services,CROYDON LB,,,,212419973,5000400591,,Improved Better Care Fund,CR0 1EA,"520,983.00",Yes
"Housing, Communities & Local Government",MHCLG,11/05/2018,Current (non AEF) Grants to Local Authorities,Local Government & Public Services,CUMBRIA COUNTY CNCL,,,,211316542,5000400592,,Additional Better Care Fund element,CA3 8NA,"1,190,087.00",Yes
"Housing, Communities & Local Government",MHCLG,11/05/2018,Current (non AEF) Grants to Local Authorities,Local Government & Public Services,CUMBRIA COUNTY CNCL,,,,211316542,5000400593,,Adult Social Care Support Grant,CA3 8NA,"261,159.00",Yes
"Housing, Communities & Local Government",MHCLG,11/05/2018,Current (non AEF) Grants to Local Authorities,Local Government & Public Services,CUMBRIA COUNTY CNCL,,,,211316542,5000400594,,Improved Better Care Fund,CA3 8NA,"1,581,464.00",Yes
"Housing, Communities & Local Government",MHCLG,11/05/2018,Current (non AEF) Grants to Local Authorities,Local Government & Public Services,DARLINGTON BC,,,,,5000400595,,Additional Better Care Fund element,TS19 1JA,"237,587.00",Yes
"Housing, Communities & Local Government",MHCLG,11/05/2018,Current (non AEF) Grants to Local Authorities,Local Government & Public Services,DARLINGTON BC,,,,,5000400596,,Adult Social Care Support Grant,TS19 1JA,"52,203.00",Yes
"Housing, Communities & Local Government",MHCLG,11/05/2018,Current (non AEF) Grants to Local Authorities,Local Government & Public Services,DARLINGTON BC,,,,,5000400597,,Improved Better Care Fund,TS19 1JA,"288,428.00",Yes
"Housing, Communities & Local Government",MHCLG,11/05/2018,Current (non AEF) Grants to Local Authorities,Local Government & Public Services,DERBY CITY CNCL,,,,229641378,5000400598,,Additional Better Care Fund element,DE1 2FS,"546,581.00",Yes
"Housing, Communities & Local Government",MHCLG,11/05/2018,Current (non AEF) Grants to Local Authorities,Local Government & Public Services,DERBY CITY CNCL,,,,229641378,5000400599,,Adult Social Care Support Grant,DE1 2FS,"119,638.00",Yes
"Housing, Communities & Local Government",MHCLG,11/05/2018,Current (non AEF) Grants to Local Authorities,Local Government & Public Services,DERBY CITY CNCL,,,,229641378,5000400600,,Improved Better Care Fund,DE1 2FS,"852,991.00",Yes
"Housing, Communities & Local Government",MHCLG,11/05/2018,Current (non AEF) Grants to Local Authorities,Local Government & Public Services,DERBYSHIRE COUNTYCOUNCIL,,,,232152967,5000400601,,Additional Better Care Fund element,DE4 3AG,"1,723,268.00",Yes
"Housing, Communities & Local Government",MHCLG,11/05/2018,Current (non AEF) Grants to Local Authorities,Local Government & Public Services,DERBYSHIRE COUNTYCOUNCIL,,,,232152967,5000400602,,Adult Social Care Support Grant,DE4 3AG,"377,829.00",Yes
"Housing, Communities & Local Government",MHCLG,11/05/2018,Current (non AEF) Grants to Local Authorities,Local Government & Public Services,DERBYSHIRE COUNTYCOUNCIL,,,,232152967,5000400603,,Improved Better Care Fund,DE4 3AG,"2,427,594.00",Yes
"Housing, Communities & Local Government",MHCLG,11/05/2018,Current (non AEF) Grants to Local Authorities,Local Government & Public Services,DEVON COUNTY CNCL,,,,213754018,5000400604,,Additional Better Care Fund element,EX2 4QJ,"1,691,221.00",Yes
"Housing, Communities & Local Government",MHCLG,11/05/2018,Current (non AEF) Grants to Local Authorities,Local Government & Public Services,DEVON COUNTY CNCL,,,,213754018,5000400605,,Adult Social Care Support Grant,EX2 4QJ,"372,436.00",Yes
"Housing, Communities & Local Government",MHCLG,11/05/2018,Current (non AEF) Grants to Local Authorities,Local Government & Public Services,DEVON COUNTY CNCL,,,,213754018,5000400606,,Improved Better Care Fund,EX2 4QJ,"1,707,853.00",Yes
"Housing, Communities & Local Government",MHCLG,11/05/2018,Current (non AEF) Grants to Local Authorities,Local Government & Public Services,DONCASTER MBC,,,,,5000400607,,Additional Better Care Fund element,DN1 3QA,"719,333.00",Yes
"Housing, Communities & Local Government",MHCLG,11/05/2018,Current (non AEF) Grants to Local Authorities,Local Government & Public Services,DONCASTER MBC,,,,,5000400608,,Adult Social Care Support Grant,DN1 3QA,"157,273.00",Yes
"Housing, Communities & Local Government",MHCLG,11/05/2018,Current (non AEF) Grants to Local Authorities,Local Government & Public Services,DONCASTER MBC,,,,,5000400609,,Improved Better Care Fund,DN1 3QA,"1,195,880.00",Yes
"Housing, Communities & Local Government",MHCLG,11/05/2018,Current (non AEF) Grants to Local Authorities,Local Government & Public Services,DORSET COUNTY CNCL,,,,225431279,5000400610,,Additional Better Care Fund element,DT1 1XJ,"913,063.00",Yes
"Housing, Communities & Local Government",MHCLG,11/05/2018,Current (non AEF) Grants to Local Authorities,Local Government & Public Services,DORSET COUNTY CNCL,,,,225431279,5000400611,,Adult Social Care Support Grant,DT1 1XJ,"201,574.00",Yes
"Housing, Communities & Local Government",MHCLG,11/05/2018,Current (non AEF) Grants to Local Authorities,Local Government & Public Services,DORSET COUNTY CNCL,,,,225431279,5000400612,,Improved Better Care Fund,DT1 1XJ,"714,876.00",Yes
"Housing, Communities & Local Government",MHCLG,11/05/2018,Current (non AEF) Grants to Local Authorities,Local Government & Public Services,DUDLEY MBC,,,,,5000400613,,Adult Social Care Support Grant,DY1 1HF,"162,662.00",Yes
"Housing, Communities & Local Government",MHCLG,11/05/2018,Current (non AEF) Grants to Local Authorities,Local Government & Public Services,DUDLEY MBC,,,,,5000400614,,Additional Better Care Fund element,DY1 1HF,"743,545.00",Yes
"Housing, Communities & Local Government",MHCLG,11/05/2018,Current (non AEF) Grants to Local Authorities,Local Government & Public Services,DUDLEY MBC,,,,,5000400615,,Improved Better Care Fund,DY1 1HF,"1,196,586.00",Yes
"Housing, Communities & Local Government",MHCLG,11/05/2018,Current (non AEF) Grants to Local Authorities,Local Government & Public Services,DURHAM COUNTY COUNCIL,,,,224004882,5000400903,,Improved Better Care Fund,DH1 5UE,"2,234,482.00",Yes
"Housing, Communities & Local Government",MHCLG,11/05/2018,Current (non AEF) Grants to Local Authorities,Local Government & Public Services,DURHAM COUNTY COUNCIL,,,,224004882,5000400904,,Additional Better Care Fund element,DH1 5UE,"1,344,618.00",Yes
"Housing, Communities & Local Government",MHCLG,11/05/2018,Current (non AEF) Grants to Local Authorities,Local Government & Public Services,DURHAM COUNTY COUNCIL,,,,224004882,5000400905,,Adult Social Care Support Grant,DH1 5UE,"293,986.00",Yes
"Housing, Communities & Local Government",MHCLG,11/05/2018,Current (non AEF) Grants to Local Authorities,Local Government & Public Services,EALING LB,,,,,5000400616,,Additional Better Care Fund element,W5 2HL,"672,010.00",Yes
"Housing, Communities & Local Government",MHCLG,11/05/2018,Current (non AEF) Grants to Local Authorities,Local Government & Public Services,EALING LB,,,,,5000400617,,Adult Social Care Support Grant,W5 2HL,"147,657.00",Yes
"Housing, Communities & Local Government",MHCLG,11/05/2018,Current (non AEF) Grants to Local Authorities,Local Government & Public Services,EALING LB,,,,,5000400618,,Improved Better Care Fund,W5 2HL,"815,280.00",Yes
"Housing, Communities & Local Government",MHCLG,11/05/2018,Current (non AEF) Grants to Local Authorities,Local Government & Public Services,EAST RIDING OF YORKS (HSG),,,,423159987,5000400491,,Additional Better Care Fund element,HU17 9BA,"683,664.00",Yes
"Housing, Communities & Local Government",MHCLG,11/05/2018,Current (non AEF) Grants to Local Authorities,Local Government & Public Services,EAST RIDING OF YORKS (HSG),,,,423159987,5000400492,,Adult Social Care Support Grant,HU17 9BA,"150,616.00",Yes
"Housing, Communities & Local Government",MHCLG,11/05/2018,Current (non AEF) Grants to Local Authorities,Local Government & Public Services,EAST RIDING OF YORKS (HSG),,,,423159987,5000400493,,Improved Better Care Fund,HU17 9BA,"665,271.00",Yes
"Housing, Communities & Local Government",MHCLG,11/05/2018,Current (non AEF) Grants to Local Authorities,Local Government & Public Services,EAST SUSSEX COUNTY CNCL,,,,,5000400619,,Additional Better Care Fund element,BN7 1SF,"1,223,740.00",Yes
"Housing, Communities & Local Government",MHCLG,11/05/2018,Current (non AEF) Grants to Local Authorities,Local Government & Public Services,EAST SUSSEX COUNTY CNCL,,,,,5000400620,,Adult Social Care Support Grant,BN7 1SF,"269,328.00",Yes
"Housing, Communities & Local Government",MHCLG,11/05/2018,Current (non AEF) Grants to Local Authorities,Local Government & Public Services,EAST SUSSEX COUNTY CNCL,,,,,5000400621,,Improved Better Care Fund,BN7 1SF,"1,302,260.00",Yes
"Housing, Communities & Local Government",MHCLG,11/05/2018,Current (non AEF) Grants to Local Authorities,Local Government & Public Services,ENFIELD LB,,,,,5000400622,,Additional Better Care Fund element,EN1 3XF,"615,751.00",Yes
"Housing, Communities & Local Government",MHCLG,11/05/2018,Current (non AEF) Grants to Local Authorities,Local Government & Public Services,ENFIELD LB,,,,,5000400623,,Adult Social Care Support Grant,EN1 3XF,"135,269.00",Yes
"Housing, Communities & Local Government",MHCLG,11/05/2018,Current (non AEF) Grants to Local Authorities,Local Government & Public Services,ENFIELD LB,,,,,5000400624,,Improved Better Care Fund,EN1 3XF,"758,108.00",Yes
"Housing, Communities & Local Government",MHCLG,11/05/2018,Current (non AEF) Grants to Local Authorities,Local Government & Public Services,ESSEX COUNTY CNCL,,,,233572986,5000400625,,Additional Better Care Fund element,CM1 1JZ,"2,797,769.00",Yes
"Housing, Communities & Local Government",MHCLG,11/05/2018,Current (non AEF) Grants to Local Authorities,Local Government & Public Services,ESSEX COUNTY CNCL,,,,233572986,5000400626,,Adult Social Care Support Grant,CM1 1JZ,"616,589.00",Yes
"Housing, Communities & Local Government",MHCLG,11/05/2018,Current (non AEF) Grants to Local Authorities,Local Government & Public Services,ESSEX COUNTY CNCL,,,,233572986,5000400627,,Improved Better Care Fund,CM1 1JZ,"2,630,448.00",Yes
"Housing, Communities & Local Government",MHCLG,11/05/2018,Current (non AEF) Grants to Local Authorities,Local Government & Public Services,GATESHEAD COUNCIL,,,,216116041,5000400628,,Additional Better Care Fund element,NE8 1HH,"538,867.00",Yes
"Housing, Communities & Local Government",MHCLG,11/05/2018,Current (non AEF) Grants to Local Authorities,Local Government & Public Services,GATESHEAD COUNCIL,,,,216116041,5000400629,,Adult Social Care Support Grant,NE8 1HH,"118,046.00",Yes
"Housing, Communities & Local Government",MHCLG,11/05/2018,Current (non AEF) Grants to Local Authorities,Local Government & Public Services,GATESHEAD COUNCIL,,,,216116041,5000400630,,Improved Better Care Fund,NE8 1HH,"801,116.00",Yes
"Housing, Communities & Local Government",MHCLG,11/05/2018,Current (non AEF) Grants to Local Authorities,Local Government & Public Services,GLOUCESTERSHIRE COUNTY CNCL,,,,211272067,5000400631,,Improved Better Care Fund,GL1 2TG,"1,139,673.00",Yes
"Housing, Communities & Local Government",MHCLG,11/05/2018,Current (non AEF) Grants to Local Authorities,Local Government & Public Services,GLOUCESTERSHIRE COUNTY CNCL,,,,211272067,5000400632,,Additional Better Care Fund element,GL1 2TG,"1,195,930.00",Yes
"Housing, Communities & Local Government",MHCLG,11/05/2018,Current (non AEF) Grants to Local Authorities,Local Government & Public Services,GLOUCESTERSHIRE COUNTY CNCL,,,,211272067,5000400633,,Adult Social Care Support Grant,GL1 2TG,"263,529.00",Yes
"Housing, Communities & Local Government",MHCLG,11/05/2018,Current (non AEF) Grants to Local Authorities,Local Government & Public Services,GREENWICH LB,,,,,5000400634,,Improved Better Care Fund,SE18 6HQ,"1,166,856.00",Yes
"Housing, Communities & Local Government",MHCLG,11/05/2018,Current (non AEF) Grants to Local Authorities,Local Government & Public Services,GREENWICH LB,,,,,5000400635,,Additional Better Care Fund element,SE18 6HQ,"634,998.00",Yes
"Housing, Communities & Local Government",MHCLG,11/05/2018,Current (non AEF) Grants to Local Authorities,Local Government & Public Services,GREENWICH LB,,,,,5000400636,,Adult Social Care Support Grant,SE18 6HQ,"138,565.00",Yes
"Housing, Communities & Local Government",MHCLG,11/05/2018,Current (non AEF) Grants to Local Authorities,Local Government & Public Services,HALTON BC (HSG),,,,,5000400494,,Adult Social Care Support Grant,WA8 7QF,"66,574.00",Yes
"Housing, Communities & Local Government",MHCLG,11/05/2018,Current (non AEF) Grants to Local Authorities,Local Government & Public Services,HAMMERSMITH & FULHAM LB,,,,216929489,5000400640,,Improved Better Care Fund,W6 9JU,"737,439.00",Yes
"Housing, Communities & Local Government",MHCLG,11/05/2018,Current (non AEF) Grants to Local Authorities,Local Government & Public Services,HAMMERSMITH & FULHAM LB,,,,216929489,5000400641,,Adult Social Care Support Grant,W6 9JU,"95,661.00",Yes
"Housing, Communities & Local Government",MHCLG,11/05/2018,Current (non AEF) Grants to Local Authorities,Local Government & Public Services,HAMMERSMITH & FULHAM LB,,,,216929489,5000400642,,Additional Better Care Fund element,W6 9JU,"437,642.00",Yes
"Housing, Communities & Local Government",MHCLG,11/05/2018,Current (non AEF) Grants to Local Authorities,Local Government & Public Services,HAMPSHIRE COUNTY COUNCIL,,,,211325832,5000400643,,Improved Better Care Fund,SO23 8UB,"1,401,999.00",Yes
"Housing, Communities & Local Government",MHCLG,11/05/2018,Current (non AEF) Grants to Local Authorities,Local Government & Public Services,HAMPSHIRE COUNTY COUNCIL,,,,211325832,5000400644,,Adult Social Care Support Grant,SO23 8UB,"495,240.00",Yes
"Housing, Communities & Local Government",MHCLG,11/05/2018,Current (non AEF) Grants to Local Authorities,Local Government & Public Services,HAMPSHIRE COUNTY COUNCIL,,,,211325832,5000400645,,Additional Better Care Fund element,SO23 8UB,"2,239,419.00",Yes
"Housing, Communities & Local Government",MHCLG,11/05/2018,Current (non AEF) Grants to Local Authorities,Local Government & Public Services,HARINGEY LB,,,,217471767,5000400646,,Improved Better Care Fund,N22 4TR,"638,756.00",Yes
"Housing, Communities & Local Government",MHCLG,11/05/2018,Current (non AEF) Grants to Local Authorities,Local Government & Public Services,HARINGEY LB,,,,217471767,5000400647,,Adult Social Care Support Grant,N22 4TR,"119,600.00",Yes
"Housing, Communities & Local Government",MHCLG,11/05/2018,Current (non AEF) Grants to Local Authorities,Local Government & Public Services,HARINGEY LB,,,,217471767,5000400648,,Additional Better Care Fund element,N22 4TR,"544,080.00",Yes
"Housing, Communities & Local Government",MHCLG,11/05/2018,Current (non AEF) Grants to Local Authorities,Local Government & Public Services,HARROW LB,,,,,5000400649,,Improved Better Care Fund,HA1 2UZ,"322,645.00",Yes
"Housing, Communities & Local Government",MHCLG,11/05/2018,Current (non AEF) Grants to Local Authorities,Local Government & Public Services,HARROW LB,,,,,5000400650,,Adult Social Care Support Grant,HA1 2UZ,"101,020.00",Yes
"Housing, Communities & Local Government",MHCLG,11/05/2018,Current (non AEF) Grants to Local Authorities,Local Government & Public Services,HARROW LB,,,,,5000400651,,Additional Better Care Fund element,HA1 2UZ,"457,198.00",Yes
"Housing, Communities & Local Government",MHCLG,11/05/2018,Current (non AEF) Grants to Local Authorities,Local Government & Public Services,HARTLEPOOL BOROUGH COUNCIL,,,,424291797,5000400652,,Additional Better Care Fund element,TS24 8AY,"238,606.00",Yes
"Housing, Communities & Local Government",MHCLG,11/05/2018,Current (non AEF) Grants to Local Authorities,Local Government & Public Services,HARTLEPOOL BOROUGH COUNCIL,,,,424291797,5000400653,,Adult Social Care Support Grant,TS24 8AY,"52,198.00",Yes
"Housing, Communities & Local Government",MHCLG,11/05/2018,Current (non AEF) Grants to Local Authorities,Local Government & Public Services,HARTLEPOOL BOROUGH COUNCIL,,,,424291797,5000400654,,Improved Better Care Fund,TS24 8AY,"384,229.00",Yes
"Housing, Communities & Local Government",MHCLG,11/05/2018,Current (non AEF) Grants to Local Authorities,Local Government & Public Services,HAVERING LB,,,,211209770,5000400655,,Additional Better Care Fund element,RM1 3BB,"474,047.00",Yes
"Housing, Communities & Local Government",MHCLG,11/05/2018,Current (non AEF) Grants to Local Authorities,Local Government & Public Services,HAVERING LB,,,,211209770,5000400656,,Improved Better Care Fund,RM1 3BB,"329,586.00",Yes
"Housing, Communities & Local Government",MHCLG,11/05/2018,Current (non AEF) Grants to Local Authorities,Local Government & Public Services,HAVERING LB,,,,211209770,5000400657,,Adult Social Care Support Grant,RM1 3BB,"104,754.00",Yes
"Housing, Communities & Local Government",MHCLG,11/05/2018,Current (non AEF) Grants to Local Authorities,Local Government & Public Services,HEREFORDSHIRE COUNCIL,,,,,5000400495,,Additional Better Care Fund element,HR4 0XH,"415,989.00",Yes
"Housing, Communities & Local Government",MHCLG,11/05/2018,Current (non AEF) Grants to Local Authorities,Local Government & Public Services,HEREFORDSHIRE COUNCIL,,,,,5000400496,,Adult Social Care Support Grant,HR4 0XH,"91,727.00",Yes
"Housing, Communities & Local Government",MHCLG,11/05/2018,Current (non AEF) Grants to Local Authorities,Local Government & Public Services,HEREFORDSHIRE COUNCIL,,,,,5000400497,,Improved Better Care Fund,HR4 0XH,"370,975.00",Yes
"Housing, Communities & Local Government",MHCLG,11/05/2018,Current (non AEF) Grants to Local Authorities,Local Government & Public Services,HERTFORDSHIRE COUNTY CNCL,,,,210659897,5000400658,,Additional Better Care Fund element,SG13 8DQ,"1,942,663.00",Yes
"Housing, Communities & Local Government",MHCLG,11/05/2018,Current (non AEF) Grants to Local Authorities,Local Government & Public Services,HERTFORDSHIRE COUNTY CNCL,,,,210659897,5000400659,,Adult Social Care Support Grant,SG13 8DQ,"430,651.00",Yes
"Housing, Communities & Local Government",MHCLG,11/05/2018,Current (non AEF) Grants to Local Authorities,Local Government & Public Services,HERTFORDSHIRE COUNTY CNCL,,,,210659897,5000400660,,Improved Better Care Fund,SG13 8DQ,"787,821.00",Yes
"Housing, Communities & Local Government",MHCLG,11/05/2018,Current (non AEF) Grants to Local Authorities,Local Government & Public Services,HILLINGDON LB,,,,211198585,5000400661,,Additional Better Care Fund element,UB8 1UW,"491,222.00",Yes
"Housing, Communities & Local Government",MHCLG,11/05/2018,Current (non AEF) Grants to Local Authorities,Local Government & Public Services,HILLINGDON LB,,,,211198585,5000400662,,Adult Social Care Support Grant,UB8 1UW,"108,444.00",Yes
"Housing, Communities & Local Government",MHCLG,11/05/2018,Current (non AEF) Grants to Local Authorities,Local Government & Public Services,HILLINGDON LB,,,,211198585,5000400663,,Improved Better Care Fund,UB8 1UW,"385,043.00",Yes
"Housing, Communities & Local Government",MHCLG,11/05/2018,Current (non AEF) Grants to Local Authorities,Local Government & Public Services,HOUNSLOW LB,,Public Bodies,,210388999,5000400664,,Additional Better Care Fund element,TW3 4DN,"472,827.00",Yes
"Housing, Communities & Local Government",MHCLG,11/05/2018,Current (non AEF) Grants to Local Authorities,Local Government & Public Services,HOUNSLOW LB,,Public Bodies,,210388999,5000400665,,Adult Social Care Support Grant,TW3 4DN,"104,094.00",Yes
"Housing, Communities & Local Government",MHCLG,11/05/2018,Current (non AEF) Grants to Local Authorities,Local Government & Public Services,HOUNSLOW LB,,Public Bodies,,210388999,5000400666,,Improved Better Care Fund,TW3 4DN,"490,188.00",Yes
"Housing, Communities & Local Government",MHCLG,11/05/2018,Current (non AEF) Grants to Local Authorities,Local Government & Public Services,HULL CITY COUNCIL,,,,217460984,5000400682,,Additional Better Care Fund element,HU1 2AA,"694,876.00",Yes
"Housing, Communities & Local Government",MHCLG,11/05/2018,Current (non AEF) Grants to Local Authorities,Local Government & Public Services,HULL CITY COUNCIL,,,,217460984,5000400683,,Adult Social Care Support Grant,HU1 2AA,"151,342.00",Yes
"Housing, Communities & Local Government",MHCLG,11/05/2018,Current (non AEF) Grants to Local Authorities,Local Government & Public Services,HULL CITY COUNCIL,,,,217460984,5000400684,,Improved Better Care Fund,HU1 2AA,"1,396,206.00",Yes
"Housing, Communities & Local Government",MHCLG,11/05/2018,Current (non AEF) Grants to Local Authorities,Local Government & Public Services,ISLE OF WIGHT CNCL,,,,236431730,5000400667,,Additional Better Care Fund element,PO30 1UD,"362,500.00",Yes
"Housing, Communities & Local Government",MHCLG,11/05/2018,Current (non AEF) Grants to Local Authorities,Local Government & Public Services,ISLE OF WIGHT CNCL,,,,236431730,5000400668,,Adult Social Care Support Grant,PO30 1UD,"79,832.00",Yes
"Housing, Communities & Local Government",MHCLG,11/05/2018,Current (non AEF) Grants to Local Authorities,Local Government & Public Services,ISLE OF WIGHT CNCL,,,,236431730,5000400669,,Improved Better Care Fund,PO30 1UD,"364,876.00",Yes
"Housing, Communities & Local Government",MHCLG,11/05/2018,Current (non AEF) Grants to Local Authorities,Local Government & Public Services,ISLES OF SCILLY COUNCIL,,,,214146040,5000400670,,Additional Better Care Fund element,TR21 0LW,"5,961.00",Yes
"Housing, Communities & Local Government",MHCLG,11/05/2018,Current (non AEF) Grants to Local Authorities,Local Government & Public Services,ISLES OF SCILLY COUNCIL,,,,214146040,5000400671,,Adult Social Care Support Grant,TR21 0LW,"1,319.00",Yes
"Housing, Communities & Local Government",MHCLG,11/05/2018,Current (non AEF) Grants to Local Authorities,Local Government & Public Services,ISLES OF SCILLY COUNCIL,,,,214146040,5000400672,,Improved Better Care Fund,TR21 0LW,"3,384.00",Yes
"Housing, Communities & Local Government",MHCLG,11/05/2018,Current (non AEF) Grants to Local Authorities,Local Government & Public Services,ISLINGTON LB,,,,225716729,5000400673,,Additional Better Care Fund element,N1 1XR,"613,285.00",Yes
"Housing, Communities & Local Government",MHCLG,11/05/2018,Current (non AEF) Grants to Local Authorities,Local Government & Public Services,ISLINGTON LB,,,,225716729,5000400674,,Adult Social Care Support Grant,N1 1XR,"133,941.00",Yes
"Housing, Communities & Local Government",MHCLG,11/05/2018,Current (non AEF) Grants to Local Authorities,Local Government & Public Services,ISLINGTON LB,,,,225716729,5000400675,,Improved Better Care Fund,N1 1XR,"1,079,630.00",Yes
"Housing, Communities & Local Government",MHCLG,11/05/2018,Current (non AEF) Grants to Local Authorities,Local Government & Public Services,KENT COUNTY CNCL,,,,211334420,5000400679,,Additional Better Care Fund element,ME14 1RF,"2,915,510.00",Yes
"Housing, Communities & Local Government",MHCLG,11/05/2018,Current (non AEF) Grants to Local Authorities,Local Government & Public Services,KENT COUNTY CNCL,,,,211334420,5000400680,,Adult Social Care Support Grant,ME14 1RF,"642,103.00",Yes
"Housing, Communities & Local Government",MHCLG,11/05/2018,Current (non AEF) Grants to Local Authorities,Local Government & Public Services,KENT COUNTY CNCL,,,,211334420,5000400681,,Improved Better Care Fund,ME14 1RF,"2,920,740.00",Yes
"Housing, Communities & Local Government",MHCLG,11/05/2018,Current (non AEF) Grants to Local Authorities,Local Government & Public Services,KINGSTON UPON THAMES  (HSG),,,,211379941,5000400498,,Additional Better Care Fund element,KT1 1EU,"213,053.00",Yes
"Housing, Communities & Local Government",MHCLG,11/05/2018,Current (non AEF) Grants to Local Authorities,Local Government & Public Services,KINGSTON UPON THAMES  (HSG),,,,211379941,5000400499,,Adult Social Care Support Grant,KT1 1EU,"59,704.00",Yes
"Housing, Communities & Local Government",MHCLG,11/05/2018,Current (non AEF) Grants to Local Authorities,Local Government & Public Services,KIRKLEES COUNCIL (HSG),,Large,,,5000400500,,Additional Better Care Fund element,HD1 2YU,"882,935.00",Yes
"Housing, Communities & Local Government",MHCLG,11/05/2018,Current (non AEF) Grants to Local Authorities,Local Government & Public Services,KIRKLEES COUNCIL (HSG),,Large,,,5000400501,,Adult Social Care Support Grant,HD1 2YU,"193,730.00",Yes
"Housing, Communities & Local Government",MHCLG,11/05/2018,Current (non AEF) Grants to Local Authorities,Local Government & Public Services,KIRKLEES COUNCIL (HSG),,Large,,,5000400502,,Improved Better Care Fund,HD1 2YU,"1,183,913.00",Yes
"Housing, Communities & Local Government",MHCLG,11/05/2018,Current (non AEF) Grants to Local Authorities,Local Government & Public Services,KNOWSLEY MBC,,,,,5000400685,,Adult Social Care Support Grant,L36 9YZ,"101,773.00",Yes
"Housing, Communities & Local Government",MHCLG,11/05/2018,Current (non AEF) Grants to Local Authorities,Local Government & Public Services,LANCASHIRE COUNTY CNCL,,,,233136584,5000400689,,Additional Better Care Fund element,PR1 8RD,"2,622,476.00",Yes
"Housing, Communities & Local Government",MHCLG,11/05/2018,Current (non AEF) Grants to Local Authorities,Local Government & Public Services,LANCASHIRE COUNTY CNCL,,,,233136584,5000400690,,Adult Social Care Support Grant,PR1 8RD,"574,785.00",Yes
"Housing, Communities & Local Government",MHCLG,11/05/2018,Current (non AEF) Grants to Local Authorities,Local Government & Public Services,LANCASHIRE COUNTY CNCL,,,,233136584,5000400691,,Improved Better Care Fund,PR1 8RD,"3,775,858.00",Yes
"Housing, Communities & Local Government",MHCLG,11/05/2018,Current (non AEF) Grants to Local Authorities,Local Government & Public Services,LEEDS CITY CNCL,,Micro,,,5000400692,,Additional Better Care Fund element,LS1 1JF,"1,571,643.00",Yes
"Housing, Communities & Local Government",MHCLG,11/05/2018,Current (non AEF) Grants to Local Authorities,Local Government & Public Services,LEEDS CITY CNCL,,Micro,,,5000400693,,Adult Social Care Support Grant,LS1 1JF,"344,854.00",Yes
"Housing, Communities & Local Government",MHCLG,11/05/2018,Current (non AEF) Grants to Local Authorities,Local Government & Public Services,LEEDS CITY CNCL,,Micro,,,5000400694,,Improved Better Care Fund,LS1 1JF,"2,103,044.00",Yes
"Housing, Communities & Local Government",MHCLG,11/05/2018,Current (non AEF) Grants to Local Authorities,Local Government & Public Services,LEICESTER CITY CNCL,,,,228219960,5000400503,,Additional Better Care Fund element,LE1 1FZ,"750,412.00",Yes
"Housing, Communities & Local Government",MHCLG,11/05/2018,Current (non AEF) Grants to Local Authorities,Local Government & Public Services,LEICESTER CITY CNCL,,,,228219960,5000400504,,Adult Social Care Support Grant,LE1 1FZ,"163,924.00",Yes
"Housing, Communities & Local Government",MHCLG,11/05/2018,Current (non AEF) Grants to Local Authorities,Local Government & Public Services,LEICESTER CITY CNCL,,,,228219960,5000400505,,Improved Better Care Fund,LE1 1FZ,"1,306,734.00",Yes
"Housing, Communities & Local Government",MHCLG,11/05/2018,Current (non AEF) Grants to Local Authorities,Local Government & Public Services,LEICESTERSHIRE COUNTY CNCL,,,,423679836,5000400695,,Additional Better Care Fund element,LE3 8RB,"1,139,512.00",Yes
"Housing, Communities & Local Government",MHCLG,11/05/2018,Current (non AEF) Grants to Local Authorities,Local Government & Public Services,LEICESTERSHIRE COUNTY CNCL,,,,423679836,5000400696,,Adult Social Care Support Grant,LE3 8RB,"251,474.00",Yes
"Housing, Communities & Local Government",MHCLG,11/05/2018,Current (non AEF) Grants to Local Authorities,Local Government & Public Services,LEICESTERSHIRE COUNTY CNCL,,,,423679836,5000400697,,Improved Better Care Fund,LE3 8RB,"930,335.00",Yes
"Housing, Communities & Local Government",MHCLG,11/05/2018,Current (non AEF) Grants to Local Authorities,Local Government & Public Services,LEWISHAM LB (HSG),,Large,,235653300,5000400506,,Additional Better Care Fund element,SE6 4RU,"651,789.00",Yes
"Housing, Communities & Local Government",MHCLG,11/05/2018,Current (non AEF) Grants to Local Authorities,Local Government & Public Services,LEWISHAM LB (HSG),,Large,,235653300,5000400507,,Adult Social Care Support Grant,SE6 4RU,"142,482.00",Yes
"Housing, Communities & Local Government",MHCLG,11/05/2018,Current (non AEF) Grants to Local Authorities,Local Government & Public Services,LEWISHAM LB (HSG),,Large,,235653300,5000400508,,Improved Better Care Fund,SE6 4RU,"1,093,166.00",Yes
"Housing, Communities & Local Government",MHCLG,11/05/2018,Current (non AEF) Grants to Local Authorities,Local Government & Public Services,LINCOLNSHIRE COUNTY COUNCIL,,,,,5000400698,,Additional Better Care Fund element,LN2 1DY,"1,601,365.00",Yes
"Housing, Communities & Local Government",MHCLG,11/05/2018,Current (non AEF) Grants to Local Authorities,Local Government & Public Services,LINCOLNSHIRE COUNTY COUNCIL,,,,,5000400699,,Adult Social Care Support Grant,LN2 1DY,"350,814.00",Yes
"Housing, Communities & Local Government",MHCLG,11/05/2018,Current (non AEF) Grants to Local Authorities,Local Government & Public Services,LINCOLNSHIRE COUNTY COUNCIL,,,,,5000400700,,Improved Better Care Fund,LN2 1DY,"2,374,745.00",Yes
"Housing, Communities & Local Government",MHCLG,11/05/2018,Current (non AEF) Grants to Local Authorities,Local Government & Public Services,LIVERPOOL CITY COUNCIL,,,,,5000400701,,Adult Social Care Support Grant,L2 2DH,"308,020.00",Yes
"Housing, Communities & Local Government",MHCLG,11/05/2018,Current (non AEF) Grants to Local Authorities,Local Government & Public Services,LONDON BOROUGH OF BARNET,,,,211049507,5000400539,,Additional Better Care Fund element,NN1 1NP,"682,118.00",Yes
"Housing, Communities & Local Government",MHCLG,11/05/2018,Current (non AEF) Grants to Local Authorities,Local Government & Public Services,LONDON BOROUGH OF BARNET,,,,211049507,5000400540,,Adult Social Care Support Grant,NN1 1NP,"150,774.00",Yes
"Housing, Communities & Local Government",MHCLG,11/05/2018,Current (non AEF) Grants to Local Authorities,Local Government & Public Services,LONDON BOROUGH OF BARNET,,,,211049507,5000400541,,Improved Better Care Fund,NN1 1NP,"457,662.00",Yes
"Housing, Communities & Local Government",MHCLG,11/05/2018,Current (non AEF) Grants to Local Authorities,Local Government & Public Services,LONDON BOROUGH OF HACKNEY,,,,225221597,5000400637,,Additional Better Care Fund element,E8 4RU,"671,241.00",Yes
"Housing, Communities & Local Government",MHCLG,11/05/2018,Current (non AEF) Grants to Local Authorities,Local Government & Public Services,LONDON BOROUGH OF HACKNEY,,,,225221597,5000400638,,Adult Social Care Support Grant,E8 4RU,"146,349.00",Yes
"Housing, Communities & Local Government",MHCLG,11/05/2018,Current (non AEF) Grants to Local Authorities,Local Government & Public Services,LONDON BOROUGH OF HACKNEY,,,,225221597,5000400639,,Improved Better Care Fund,E8 4RU,"1,285,029.00",Yes
"Housing, Communities & Local Government",MHCLG,11/05/2018,Current (non AEF) Grants to Local Authorities,Local Government & Public Services,LONDON BOROUGH OF LAMBETH,,,,228216479,5000400686,,Additional Better Care Fund element,SW2 1RL,"717,459.00",Yes
"Housing, Communities & Local Government",MHCLG,11/05/2018,Current (non AEF) Grants to Local Authorities,Local Government & Public Services,LONDON BOROUGH OF LAMBETH,,,,228216479,5000400687,,Adult Social Care Support Grant,SW2 1RL,"157,173.00",Yes
"Housing, Communities & Local Government",MHCLG,11/05/2018,Current (non AEF) Grants to Local Authorities,Local Government & Public Services,LONDON BOROUGH OF LAMBETH,,,,228216479,5000400688,,Improved Better Care Fund,SW2 1RL,"1,065,040.00",Yes
"Housing, Communities & Local Government",MHCLG,11/05/2018,Current (non AEF) Grants to Local Authorities,Local Government & Public Services,LONDON BOROUGH OF NEWHAM,,,,211381004,5000400717,,Additional Better Care Fund element,E16 2QU,"701,466.00",Yes
"Housing, Communities & Local Government",MHCLG,11/05/2018,Current (non AEF) Grants to Local Authorities,Local Government & Public Services,LONDON BOROUGH OF NEWHAM,,,,211381004,5000400718,,Adult Social Care Support Grant,E16 2QU,"152,954.00",Yes
"Housing, Communities & Local Government",MHCLG,11/05/2018,Current (non AEF) Grants to Local Authorities,Local Government & Public Services,LONDON BOROUGH OF NEWHAM,,,,211381004,5000400719,,Improved Better Care Fund,E16 2QU,"1,336,654.00",Yes
"Housing, Communities & Local Government",MHCLG,11/05/2018,Current (non AEF) Grants to Local Authorities,Local Government & Public Services,LONDON BOROUGH OF REDBRIDGE,,,,211341417,5000400759,,Additional Better Care Fund element,IG1 1NN,"529,101.00",Yes
"Housing, Communities & Local Government",MHCLG,11/05/2018,Current (non AEF) Grants to Local Authorities,Local Government & Public Services,LONDON BOROUGH OF REDBRIDGE,,,,211341417,5000400760,,Adult Social Care Support Grant,IG1 1NN,"116,243.00",Yes
"Housing, Communities & Local Government",MHCLG,11/05/2018,Current (non AEF) Grants to Local Authorities,Local Government & Public Services,LONDON BOROUGH OF REDBRIDGE,,,,211341417,5000400761,,Improved Better Care Fund,IG1 1NN,"647,590.00",Yes
"Housing, Communities & Local Government",MHCLG,11/05/2018,Current (non AEF) Grants to Local Authorities,Local Government & Public Services,LUTON BC,,,,365112155,5000400702,,Additional Better Care Fund element,LU1 2BQ,"374,129.00",Yes
"Housing, Communities & Local Government",MHCLG,11/05/2018,Current (non AEF) Grants to Local Authorities,Local Government & Public Services,LUTON BC,,,,365112155,5000400703,,Adult Social Care Support Grant,LU1 2BQ,"82,093.00",Yes
"Housing, Communities & Local Government",MHCLG,11/05/2018,Current (non AEF) Grants to Local Authorities,Local Government & Public Services,LUTON BC,,,,365112155,5000400704,,Improved Better Care Fund,LU1 2BQ,"500,354.00",Yes
"Housing, Communities & Local Government",MHCLG,11/05/2018,Current (non AEF) Grants to Local Authorities,Local Government & Public Services,MANCHESTER CITY CNCL (HSG),,,,211241393,5000400509,,Additional Better Care Fund element,M60 2JR,"1,273,943.00",Yes
"Housing, Communities & Local Government",MHCLG,11/05/2018,Current (non AEF) Grants to Local Authorities,Local Government & Public Services,MANCHESTER CITY CNCL (HSG),,,,211241393,5000400510,,Adult Social Care Support Grant,M60 2JR,"277,702.00",Yes
"Housing, Communities & Local Government",MHCLG,11/05/2018,Current (non AEF) Grants to Local Authorities,Local Government & Public Services,MANCHESTER CITY CNCL (HSG),,,,211241393,5000400511,,Improved Better Care Fund,M60 2JR,"2,460,181.00",Yes
"Housing, Communities & Local Government",MHCLG,11/05/2018,Current (non AEF) Grants to Local Authorities,Local Government & Public Services,MANCHESTER CITY COUNCIL,,,,211241393,2100282603,,Community-Based English Language Programme,M60 2JR,"337,258.50",Yes
"Housing, Communities & Local Government",MHCLG,11/05/2018,Current (non AEF) Grants to Local Authorities,Local Government & Public Services,MEDWAY TOWNS D C (HSG),,,,,5000400512,,Additional Better Care Fund element,ME4 4TR,"471,023.00",Yes
"Housing, Communities & Local Government",MHCLG,11/05/2018,Current (non AEF) Grants to Local Authorities,Local Government & Public Services,MEDWAY TOWNS D C (HSG),,,,,5000400513,,Adult Social Care Support Grant,ME4 4TR,"103,941.00",Yes
"Housing, Communities & Local Government",MHCLG,11/05/2018,Current (non AEF) Grants to Local Authorities,Local Government & Public Services,MEDWAY TOWNS D C (HSG),,,,,5000400514,,Improved Better Care Fund,ME4 4TR,"387,537.00",Yes
"Housing, Communities & Local Government",MHCLG,11/05/2018,Current (non AEF) Grants to Local Authorities,Local Government & Public Services,MERTON LB,,,,,5000400705,,Additional Better Care Fund element,SM4 5DX,"352,428.00",Yes
"Housing, Communities & Local Government",MHCLG,11/05/2018,Current (non AEF) Grants to Local Authorities,Local Government & Public Services,MERTON LB,,,,,5000400706,,Adult Social Care Support Grant,SM4 5DX,"77,904.00",Yes
"Housing, Communities & Local Government",MHCLG,11/05/2018,Current (non AEF) Grants to Local Authorities,Local Government & Public Services,MERTON LB,,,,,5000400707,,Improved Better Care Fund,SM4 5DX,"234,721.00",Yes
"Housing, Communities & Local Government",MHCLG,11/05/2018,Current (non AEF) Grants to Local Authorities,Local Government & Public Services,MIDDLESBROUGH BC,,Large,,,5000400708,,Additional Better Care Fund element,TS1 9GA,"361,550.00",Yes
"Housing, Communities & Local Government",MHCLG,11/05/2018,Current (non AEF) Grants to Local Authorities,Local Government & Public Services,MIDDLESBROUGH BC,,Large,,,5000400709,,Adult Social Care Support Grant,TS1 9GA,"78,949.00",Yes
"Housing, Communities & Local Government",MHCLG,11/05/2018,Current (non AEF) Grants to Local Authorities,Local Government & Public Services,MIDDLESBROUGH BC,,Large,,,5000400710,,Improved Better Care Fund,TS1 9GA,"642,245.00",Yes
"Housing, Communities & Local Government",MHCLG,11/05/2018,Current (non AEF) Grants to Local Authorities,Local Government & Public Services,MILTON KEYNES BC,,,,,5000400711,,Additional Better Care Fund element,MK9 3WJ,"428,064.00",Yes
"Housing, Communities & Local Government",MHCLG,11/05/2018,Current (non AEF) Grants to Local Authorities,Local Government & Public Services,MILTON KEYNES BC,,,,,5000400712,,Adult Social Care Support Grant,MK9 3WJ,"94,588.00",Yes
"Housing, Communities & Local Government",MHCLG,11/05/2018,Current (non AEF) Grants to Local Authorities,Local Government & Public Services,MILTON KEYNES BC,,,,,5000400713,,Improved Better Care Fund,MK9 3WJ,"299,900.00",Yes
"Housing, Communities & Local Government",MHCLG,11/05/2018,Current (non AEF) Grants to Local Authorities,Local Government & Public Services,NEWCASTLE UPON TYNE DC,,,,239154040,5000400714,,Additional Better Care Fund element,NE99 2BN,"715,624.00",Yes
"Housing, Communities & Local Government",MHCLG,11/05/2018,Current (non AEF) Grants to Local Authorities,Local Government & Public Services,NEWCASTLE UPON TYNE DC,,,,239154040,5000400715,,Adult Social Care Support Grant,NE99 2BN,"156,330.00",Yes
"Housing, Communities & Local Government",MHCLG,11/05/2018,Current (non AEF) Grants to Local Authorities,Local Government & Public Services,NEWCASTLE UPON TYNE DC,,,,239154040,5000400716,,Improved Better Care Fund,NE99 2BN,"1,244,056.00",Yes
"Housing, Communities & Local Government",MHCLG,11/05/2018,Current (non AEF) Grants to Local Authorities,Local Government & Public Services,NORFOLK COUNTY COUNCIL,,,,232602789,5000400720,,Additional Better Care Fund element,NR1 2DW,"1,983,490.00",Yes
"Housing, Communities & Local Government",MHCLG,11/05/2018,Current (non AEF) Grants to Local Authorities,Local Government & Public Services,NORFOLK COUNTY COUNCIL,,,,232602789,5000400721,,Adult Social Care Support Grant,NR1 2DW,"435,262.00",Yes
"Housing, Communities & Local Government",MHCLG,11/05/2018,Current (non AEF) Grants to Local Authorities,Local Government & Public Services,NORFOLK COUNTY COUNCIL,,,,232602789,5000400722,,Improved Better Care Fund,NR1 2DW,"2,637,951.00",Yes
"Housing, Communities & Local Government",MHCLG,11/05/2018,Current (non AEF) Grants to Local Authorities,Local Government & Public Services,NORTH EAST LINCOLN DC (HSG),,,,211242737,5000400515,,Improved Better Care Fund,DN35 8LN,"566,103.00",Yes
"Housing, Communities & Local Government",MHCLG,11/05/2018,Current (non AEF) Grants to Local Authorities,Local Government & Public Services,NORTH EAST LINCOLN DC (HSG),,,,211242737,5000400516,,Additional Better Care Fund element,DN35 8LN,"370,908.00",Yes
"Housing, Communities & Local Government",MHCLG,11/05/2018,Current (non AEF) Grants to Local Authorities,Local Government & Public Services,NORTH EAST LINCOLN DC (HSG),,,,211242737,5000400517,,Adult Social Care Support Grant,DN35 8LN,"81,217.00",Yes
"Housing, Communities & Local Government",MHCLG,11/05/2018,Current (non AEF) Grants to Local Authorities,Local Government & Public Services,NORTH LINCOLNSHIRE DC (HSG),,Public Bodies,,424005502,5000400518,,Additional Better Care Fund element,DN16 1AB,"361,171.00",Yes
"Housing, Communities & Local Government",MHCLG,11/05/2018,Current (non AEF) Grants to Local Authorities,Local Government & Public Services,NORTH LINCOLNSHIRE DC (HSG),,Public Bodies,,424005502,5000400519,,Adult Social Care Support Grant,DN16 1AB,"79,259.00",Yes
"Housing, Communities & Local Government",MHCLG,11/05/2018,Current (non AEF) Grants to Local Authorities,Local Government & Public Services,NORTH LINCOLNSHIRE DC (HSG),,Public Bodies,,424005502,5000400520,,Improved Better Care Fund,DN16 1AB,"479,093.00",Yes
"Housing, Communities & Local Government",MHCLG,11/05/2018,Current (non AEF) Grants to Local Authorities,Local Government & Public Services,NORTH SOMERSET COUNCIL,,Large,,,5000400723,,Additional Better Care Fund element,BS23 1UJ,"436,393.00",Yes
"Housing, Communities & Local Government",MHCLG,11/05/2018,Current (non AEF) Grants to Local Authorities,Local Government & Public Services,NORTH SOMERSET COUNCIL,,Large,,,5000400724,,Adult Social Care Support Grant,BS23 1UJ,"96,240.00",Yes
"Housing, Communities & Local Government",MHCLG,11/05/2018,Current (non AEF) Grants to Local Authorities,Local Government & Public Services,NORTH SOMERSET COUNCIL,,Large,,,5000400725,,Improved Better Care Fund,BS23 1UJ,"383,191.00",Yes
"Housing, Communities & Local Government",MHCLG,11/05/2018,Current (non AEF) Grants to Local Authorities,Local Government & Public Services,NORTH TYNESIDE MBC,,,,,5000400726,,Additional Better Care Fund element,NE27 0BY,"489,296.00",Yes
"Housing, Communities & Local Government",MHCLG,11/05/2018,Current (non AEF) Grants to Local Authorities,Local Government & Public Services,NORTH TYNESIDE MBC,,,,,5000400727,,Adult Social Care Support Grant,NE27 0BY,"107,400.00",Yes
"Housing, Communities & Local Government",MHCLG,11/05/2018,Current (non AEF) Grants to Local Authorities,Local Government & Public Services,NORTH TYNESIDE MBC,,,,,5000400728,,Improved Better Care Fund,NE27 0BY,"639,441.00",Yes
"Housing, Communities & Local Government",MHCLG,11/05/2018,Current (non AEF) Grants to Local Authorities,Local Government & Public Services,NORTH YORKSHIRE CC (DL7 8AL),,,,,5000400729,,Additional Better Care Fund element,DL7 8AL,"1,143,300.00",Yes
"Housing, Communities & Local Government",MHCLG,11/05/2018,Current (non AEF) Grants to Local Authorities,Local Government & Public Services,NORTH YORKSHIRE CC (DL7 8AL),,,,,5000400730,,Adult Social Care Support Grant,DL7 8AL,"252,448.00",Yes
"Housing, Communities & Local Government",MHCLG,11/05/2018,Current (non AEF) Grants to Local Authorities,Local Government & Public Services,NORTH YORKSHIRE CC (DL7 8AL),,,,,5000400731,,Improved Better Care Fund,DL7 8AL,"876,364.00",Yes
"Housing, Communities & Local Government",MHCLG,11/05/2018,Current (non AEF) Grants to Local Authorities,Local Government & Public Services,NORTHAMPTONSHIRE COUNTY COUNCIL,,,,,5000400732,,Improved Better Care Fund,CB3 0AP,"1,259,162.00",Yes
"Housing, Communities & Local Government",MHCLG,11/05/2018,Current (non AEF) Grants to Local Authorities,Local Government & Public Services,NORTHAMPTONSHIRE COUNTY COUNCIL,,,,,5000400733,,Additional Better Care Fund element,CB3 0AP,"1,284,767.00",Yes
"Housing, Communities & Local Government",MHCLG,11/05/2018,Current (non AEF) Grants to Local Authorities,Local Government & Public Services,NORTHAMPTONSHIRE COUNTY COUNCIL,,,,,5000400734,,Adult Social Care Support Grant,CB3 0AP,"283,021.00",Yes
"Housing, Communities & Local Government",MHCLG,11/05/2018,Current (non AEF) Grants to Local Authorities,Local Government & Public Services,NORTHUMBERLAND COUNTY COUNCIL,,,,210308905,5000400883,,Additional Better Care Fund element,NE61 2EF,"719,605.00",Yes
"Housing, Communities & Local Government",MHCLG,11/05/2018,Current (non AEF) Grants to Local Authorities,Local Government & Public Services,NORTHUMBERLAND COUNTY COUNCIL,,,,210308905,5000400884,,Adult Social Care Support Grant,NE61 2EF,"158,478.00",Yes
"Housing, Communities & Local Government",MHCLG,11/05/2018,Current (non AEF) Grants to Local Authorities,Local Government & Public Services,NORTHUMBERLAND COUNTY COUNCIL,,,,210308905,5000400885,,Improved Better Care Fund,NE61 2EF,"723,098.00",Yes
"Housing, Communities & Local Government",MHCLG,11/05/2018,Current (non AEF) Grants to Local Authorities,Local Government & Public Services,NOTTINGHAM CITY COUNCIL,,,,214495447,5000400735,,Additional Better Care Fund element,NG2 3NG,"738,328.00",Yes
"Housing, Communities & Local Government",MHCLG,11/05/2018,Current (non AEF) Grants to Local Authorities,Local Government & Public Services,NOTTINGHAM CITY COUNCIL,,,,214495447,5000400736,,Adult Social Care Support Grant,NG2 3NG,"161,455.00",Yes
"Housing, Communities & Local Government",MHCLG,11/05/2018,Current (non AEF) Grants to Local Authorities,Local Government & Public Services,NOTTINGHAM CITY COUNCIL,,,,214495447,5000400737,,Improved Better Care Fund,NG2 3NG,"1,215,489.00",Yes
"Housing, Communities & Local Government",MHCLG,11/05/2018,Current (non AEF) Grants to Local Authorities,Local Government & Public Services,NOTTINGHAMSHIRE COUNTY CNCL,,,,,5000400738,,Additional Better Care Fund element,NG1 4BU,"1,670,937.00",Yes
"Housing, Communities & Local Government",MHCLG,11/05/2018,Current (non AEF) Grants to Local Authorities,Local Government & Public Services,NOTTINGHAMSHIRE COUNTY CNCL,,,,,5000400739,,Adult Social Care Support Grant,NG1 4BU,"367,388.00",Yes
"Housing, Communities & Local Government",MHCLG,11/05/2018,Current (non AEF) Grants to Local Authorities,Local Government & Public Services,NOTTINGHAMSHIRE COUNTY CNCL,,,,,5000400740,,Improved Better Care Fund,NG1 4BU,"1,927,314.00",Yes
"Housing, Communities & Local Government",MHCLG,11/05/2018,Current (non AEF) Grants to Local Authorities,Local Government & Public Services,OLDHAM MBC,,,,213015574,5000400741,,Additional Better Care Fund element,OL1 1UH,"533,537.00",Yes
"Housing, Communities & Local Government",MHCLG,11/05/2018,Current (non AEF) Grants to Local Authorities,Local Government & Public Services,OLDHAM MBC,,,,213015574,5000400742,,Adult Social Care Support Grant,OL1 1UH,"116,907.00",Yes
"Housing, Communities & Local Government",MHCLG,11/05/2018,Current (non AEF) Grants to Local Authorities,Local Government & Public Services,OLDHAM MBC,,,,213015574,5000400743,,Improved Better Care Fund,OL1 1UH,"781,138.00",Yes
"Housing, Communities & Local Government",MHCLG,11/05/2018,Current (non AEF) Grants to Local Authorities,Local Government & Public Services,OXFORDSHIRE CC,,,,228216438,5000400744,,Additional Better Care Fund element,OX1 1TH,"1,073,920.00",Yes
"Housing, Communities & Local Government",MHCLG,11/05/2018,Current (non AEF) Grants to Local Authorities,Local Government & Public Services,OXFORDSHIRE CC,,,,228216438,5000400745,,Adult Social Care Support Grant,OX1 1TH,"238,694.00",Yes
"Housing, Communities & Local Government",MHCLG,11/05/2018,Current (non AEF) Grants to Local Authorities,Local Government & Public Services,OXFORDSHIRE CC,,,,228216438,5000400746,,Improved Better Care Fund,OX1 1TH,"176,694.00",Yes
"Housing, Communities & Local Government",MHCLG,11/05/2018,Current (non AEF) Grants to Local Authorities,Local Government & Public Services,PETERBOROUGH CITY CNCL,,,,,5000400747,,Additional Better Care Fund element,PE1 1HG,"376,689.00",Yes
"Housing, Communities & Local Government",MHCLG,11/05/2018,Current (non AEF) Grants to Local Authorities,Local Government & Public Services,PETERBOROUGH CITY CNCL,,,,,5000400748,,Adult Social Care Support Grant,PE1 1HG,"82,670.00",Yes
"Housing, Communities & Local Government",MHCLG,11/05/2018,Current (non AEF) Grants to Local Authorities,Local Government & Public Services,PETERBOROUGH CITY CNCL,,,,,5000400749,,Improved Better Care Fund,PE1 1HG,"497,587.00",Yes
"Housing, Communities & Local Government",MHCLG,11/05/2018,Current (non AEF) Grants to Local Authorities,Local Government & Public Services,PLYMOUTH CITY CNCL,,Public Bodies,,236416095,5000400750,,Additional Better Care Fund element,PL1 2AA,"610,392.00",Yes
"Housing, Communities & Local Government",MHCLG,11/05/2018,Current (non AEF) Grants to Local Authorities,Local Government & Public Services,PLYMOUTH CITY CNCL,,Public Bodies,,236416095,5000400751,,Adult Social Care Support Grant,PL1 2AA,"133,755.00",Yes
"Housing, Communities & Local Government",MHCLG,11/05/2018,Current (non AEF) Grants to Local Authorities,Local Government & Public Services,PLYMOUTH CITY CNCL,,Public Bodies,,236416095,5000400752,,Improved Better Care Fund,PL1 2AA,"890,429.00",Yes
"Housing, Communities & Local Government",MHCLG,11/05/2018,Current (non AEF) Grants to Local Authorities,Local Government & Public Services,POOLE BC (HSG),,,,,5000400521,,Additional Better Care Fund element,BH15 2RU,"300,449.00",Yes
"Housing, Communities & Local Government",MHCLG,11/05/2018,Current (non AEF) Grants to Local Authorities,Local Government & Public Services,POOLE BC (HSG),,,,,5000400522,,Adult Social Care Support Grant,BH15 2RU,"66,409.00",Yes
"Housing, Communities & Local Government",MHCLG,11/05/2018,Current (non AEF) Grants to Local Authorities,Local Government & Public Services,POOLE BC (HSG),,,,,5000400523,,Improved Better Care Fund,BH15 2RU,"202,432.00",Yes
"Housing, Communities & Local Government",MHCLG,11/05/2018,Current (non AEF) Grants to Local Authorities,Local Government & Public Services,PORTSMOUTH CITY COUNCIL,,Large,,211183082,5000400753,,Additional Better Care Fund element,PO1 2AR,"422,936.00",Yes
"Housing, Communities & Local Government",MHCLG,11/05/2018,Current (non AEF) Grants to Local Authorities,Local Government & Public Services,PORTSMOUTH CITY COUNCIL,,Large,,211183082,5000400754,,Adult Social Care Support Grant,PO1 2AR,"92,748.00",Yes
"Housing, Communities & Local Government",MHCLG,11/05/2018,Current (non AEF) Grants to Local Authorities,Local Government & Public Services,PORTSMOUTH CITY COUNCIL,,Large,,211183082,5000400755,,Improved Better Care Fund,PO1 2AR,"588,021.00",Yes
"Housing, Communities & Local Government",MHCLG,11/05/2018,Current (non AEF) Grants to Local Authorities,Local Government & Public Services,READING BC,,,,210220399,5000400756,,Additional Better Care Fund element,RG1 7TD,"267,019.00",Yes
"Housing, Communities & Local Government",MHCLG,11/05/2018,Current (non AEF) Grants to Local Authorities,Local Government & Public Services,READING BC,,,,210220399,5000400757,,Adult Social Care Support Grant,RG1 7TD,"59,321.00",Yes
"Housing, Communities & Local Government",MHCLG,11/05/2018,Current (non AEF) Grants to Local Authorities,Local Government & Public Services,READING BC,,,,210220399,5000400758,,Improved Better Care Fund,RG1 7TD,"55,474.00",Yes
"Housing, Communities & Local Government",MHCLG,11/05/2018,Current (non AEF) Grants to Local Authorities,Local Government & Public Services,REDCAR & CLEVELAND BOROUGH COUNCIL,,,,215175196,5000400762,,Additional Better Care Fund element,TS10 1RT,"342,030.00",Yes
"Housing, Communities & Local Government",MHCLG,11/05/2018,Current (non AEF) Grants to Local Authorities,Local Government & Public Services,REDCAR & CLEVELAND BOROUGH COUNCIL,,,,215175196,5000400763,,Adult Social Care Support Grant,TS10 1RT,"75,020.00",Yes
"Housing, Communities & Local Government",MHCLG,11/05/2018,Current (non AEF) Grants to Local Authorities,Local Government & Public Services,REDCAR & CLEVELAND BOROUGH COUNCIL,,,,215175196,5000400764,,Improved Better Care Fund,TS10 1RT,"469,526.00",Yes
"Housing, Communities & Local Government",MHCLG,11/05/2018,Current (non AEF) Grants to Local Authorities,Local Government & Public Services,RICHMOND UPON THAMES LB,,,,228868535,5000400765,,Additional Better Care Fund element,TW1 3BZ,"70,783.00",Yes
"Housing, Communities & Local Government",MHCLG,11/05/2018,Current (non AEF) Grants to Local Authorities,Local Government & Public Services,RICHMOND UPON THAMES LB,,,,228868535,5000400766,,Adult Social Care Support Grant,TW1 3BZ,"68,835.00",Yes
"Housing, Communities & Local Government",MHCLG,11/05/2018,Current (non AEF) Grants to Local Authorities,Local Government & Public Services,ROCHDALE MBC,,,,,5000400767,,Additional Better Care Fund element,OL16 1YG,"528,210.00",Yes
"Housing, Communities & Local Government",MHCLG,11/05/2018,Current (non AEF) Grants to Local Authorities,Local Government & Public Services,ROCHDALE MBC,,,,,5000400768,,Adult Social Care Support Grant,OL16 1YG,"115,449.00",Yes
"Housing, Communities & Local Government",MHCLG,11/05/2018,Current (non AEF) Grants to Local Authorities,Local Government & Public Services,ROCHDALE MBC,,,,,5000400769,,Improved Better Care Fund,OL16 1YG,"893,406.00",Yes
"Housing, Communities & Local Government",MHCLG,11/05/2018,Current (non AEF) Grants to Local Authorities,Local Government & Public Services,ROTHERHAM MBC,,,,211266937,5000400770,,Additional Better Care Fund element,S60 1AE,"640,676.00",Yes
"Housing, Communities & Local Government",MHCLG,11/05/2018,Current (non AEF) Grants to Local Authorities,Local Government & Public Services,ROTHERHAM MBC,,,,211266937,5000400771,,Adult Social Care Support Grant,S60 1AE,"140,128.00",Yes
"Housing, Communities & Local Government",MHCLG,11/05/2018,Current (non AEF) Grants to Local Authorities,Local Government & Public Services,ROTHERHAM MBC,,,,211266937,5000400772,,Improved Better Care Fund,S60 1AE,"1,043,206.00",Yes
"Housing, Communities & Local Government",MHCLG,11/05/2018,Current (non AEF) Grants to Local Authorities,Local Government & Public Services,ROYAL BOROUGH OF KENSINGTON & CHELS,,,,211124466,5000400676,,Additional Better Care Fund element,W8 7NX,"410,688.00",Yes
"Housing, Communities & Local Government",MHCLG,11/05/2018,Current (non AEF) Grants to Local Authorities,Local Government & Public Services,ROYAL BOROUGH OF KENSINGTON & CHELS,,,,211124466,5000400677,,Adult Social Care Support Grant,W8 7NX,"90,289.00",Yes
"Housing, Communities & Local Government",MHCLG,11/05/2018,Current (non AEF) Grants to Local Authorities,Local Government & Public Services,ROYAL BOROUGH OF KENSINGTON & CHELS,,,,211124466,5000400678,,Improved Better Care Fund,W8 7NX,"477,457.00",Yes
"Housing, Communities & Local Government",MHCLG,11/05/2018,Current (non AEF) Grants to Local Authorities,Local Government & Public Services,RUTLAND CC,,,,,5000400773,,Additional Better Care Fund element,LE15 6HP,"27,977.00",Yes
"Housing, Communities & Local Government",MHCLG,11/05/2018,Current (non AEF) Grants to Local Authorities,Local Government & Public Services,RUTLAND CC,,,,,5000400774,,Adult Social Care Support Grant,LE15 6HP,"14,137.00",Yes
"Housing, Communities & Local Government",MHCLG,11/05/2018,Current (non AEF) Grants to Local Authorities,Local Government & Public Services,SALFORD CITY CNCL,,,,213180073,5000400775,,Additional Better Care Fund element,M27 5AW,"627,545.00",Yes
"Housing, Communities & Local Government",MHCLG,11/05/2018,Current (non AEF) Grants to Local Authorities,Local Government & Public Services,SALFORD CITY CNCL,,,,213180073,5000400776,,Adult Social Care Support Grant,M27 5AW,"137,252.00",Yes
"Housing, Communities & Local Government",MHCLG,11/05/2018,Current (non AEF) Grants to Local Authorities,Local Government & Public Services,SALFORD CITY CNCL,,,,213180073,5000400777,,Improved Better Care Fund,M27 5AW,"1,023,873.00",Yes
"Housing, Communities & Local Government",MHCLG,11/05/2018,Current (non AEF) Grants to Local Authorities,Local Government & Public Services,SANDWELL MBC,,,,,5000400778,,Additional Better Care Fund element,B69 3BS,"884,019.00",Yes
"Housing, Communities & Local Government",MHCLG,11/05/2018,Current (non AEF) Grants to Local Authorities,Local Government & Public Services,SANDWELL MBC,,,,,5000400779,,Adult Social Care Support Grant,B69 3BS,"192,485.00",Yes
"Housing, Communities & Local Government",MHCLG,11/05/2018,Current (non AEF) Grants to Local Authorities,Local Government & Public Services,SANDWELL MBC,,,,,5000400780,,Improved Better Care Fund,B69 3BS,"1,797,766.00",Yes
"Housing, Communities & Local Government",MHCLG,11/05/2018,Current (non AEF) Grants to Local Authorities,Local Government & Public Services,SEFTON MBC,,Public Bodies,,232936125,5000400781,,Adult Social Care Support Grant,L20 3NJ,"158,836.00",Yes
"Housing, Communities & Local Government",MHCLG,11/05/2018,Current (non AEF) Grants to Local Authorities,Local Government & Public Services,SHEFFIELD CITY CNCL,,,,,5000400782,,Additional Better Care Fund element,S1 1UJ,"1,288,444.00",Yes
"Housing, Communities & Local Government",MHCLG,11/05/2018,Current (non AEF) Grants to Local Authorities,Local Government & Public Services,SHEFFIELD CITY CNCL,,,,,5000400783,,Adult Social Care Support Grant,S1 1UJ,"281,787.00",Yes
"Housing, Communities & Local Government",MHCLG,11/05/2018,Current (non AEF) Grants to Local Authorities,Local Government & Public Services,SHEFFIELD CITY CNCL,,,,,5000400784,,Improved Better Care Fund,S1 1UJ,"2,106,788.00",Yes
"Housing, Communities & Local Government",MHCLG,11/05/2018,Current (non AEF) Grants to Local Authorities,Local Government & Public Services,SHROPSHIRE UNITARY AUTHORITY,,,,217036490,5000400897,,Additional Better Care Fund element,SY2 6ND,"659,882.00",Yes
"Housing, Communities & Local Government",MHCLG,11/05/2018,Current (non AEF) Grants to Local Authorities,Local Government & Public Services,SHROPSHIRE UNITARY AUTHORITY,,,,217036490,5000400898,,Adult Social Care Support Grant,SY2 6ND,"145,184.00",Yes
"Housing, Communities & Local Government",MHCLG,11/05/2018,Current (non AEF) Grants to Local Authorities,Local Government & Public Services,SHROPSHIRE UNITARY AUTHORITY,,,,217036490,5000400899,,Improved Better Care Fund,SY2 6ND,"721,439.00",Yes
"Housing, Communities & Local Government",MHCLG,11/05/2018,Current (non AEF) Grants to Local Authorities,Local Government & Public Services,SLOUGH BOROUGH COUNCIL,,,,211027123,5000400785,,Additional Better Care Fund element,SL1 3UF,"243,632.00",Yes
"Housing, Communities & Local Government",MHCLG,11/05/2018,Current (non AEF) Grants to Local Authorities,Local Government & Public Services,SLOUGH BOROUGH COUNCIL,,,,211027123,5000400786,,Adult Social Care Support Grant,SL1 3UF,"53,691.00",Yes
"Housing, Communities & Local Government",MHCLG,11/05/2018,Current (non AEF) Grants to Local Authorities,Local Government & Public Services,SLOUGH BOROUGH COUNCIL,,,,211027123,5000400787,,Improved Better Care Fund,SL1 3UF,"229,981.00",Yes
"Housing, Communities & Local Government",MHCLG,11/05/2018,Current (non AEF) Grants to Local Authorities,Local Government & Public Services,SOLIHULL MBC,,,,,5000400788,,Additional Better Care Fund element,B91 3QR,"410,840.00",Yes
"Housing, Communities & Local Government",MHCLG,11/05/2018,Current (non AEF) Grants to Local Authorities,Local Government & Public Services,SOLIHULL MBC,,,,,5000400789,,Adult Social Care Support Grant,B91 3QR,"90,659.00",Yes
"Housing, Communities & Local Government",MHCLG,11/05/2018,Current (non AEF) Grants to Local Authorities,Local Government & Public Services,SOLIHULL MBC,,,,,5000400790,,Improved Better Care Fund,B91 3QR,"338,745.00",Yes
"Housing, Communities & Local Government",MHCLG,11/05/2018,Current (non AEF) Grants to Local Authorities,Local Government & Public Services,SOMERSET COUNTY CNCL,,,,211229406,5000400791,,Additional Better Care Fund element,TA1 4DY,"1,185,134.00",Yes
"Housing, Communities & Local Government",MHCLG,11/05/2018,Current (non AEF) Grants to Local Authorities,Local Government & Public Services,SOMERSET COUNTY CNCL,,,,211229406,5000400792,,Adult Social Care Support Grant,TA1 4DY,"260,153.00",Yes
"Housing, Communities & Local Government",MHCLG,11/05/2018,Current (non AEF) Grants to Local Authorities,Local Government & Public Services,SOMERSET COUNTY CNCL,,,,211229406,5000400793,,Improved Better Care Fund,TA1 4DY,"1,541,365.00",Yes
"Housing, Communities & Local Government",MHCLG,11/05/2018,Current (non AEF) Grants to Local Authorities,Local Government & Public Services,SOUTH GLOUCESTERSHIRE DC (HSG),,,,,5000400524,,Additional Better Care Fund element,BS15 2TR,"438,702.00",Yes
"Housing, Communities & Local Government",MHCLG,11/05/2018,Current (non AEF) Grants to Local Authorities,Local Government & Public Services,SOUTH GLOUCESTERSHIRE DC (HSG),,,,,5000400525,,Adult Social Care Support Grant,BS15 2TR,"97,397.00",Yes
"Housing, Communities & Local Government",MHCLG,11/05/2018,Current (non AEF) Grants to Local Authorities,Local Government & Public Services,SOUTH GLOUCESTERSHIRE DC (HSG),,,,,5000400526,,Improved Better Care Fund,BS15 2TR,"118,100.00",Yes
"Housing, Communities & Local Government",MHCLG,11/05/2018,Current (non AEF) Grants to Local Authorities,Local Government & Public Services,SOUTH TYNESIDE COUNCIL,,,,345736438,5000400794,,Additional Better Care Fund element,NE33 2RL,"436,738.00",Yes
"Housing, Communities & Local Government",MHCLG,11/05/2018,Current (non AEF) Grants to Local Authorities,Local Government & Public Services,SOUTH TYNESIDE COUNCIL,,,,345736438,5000400795,,Adult Social Care Support Grant,NE33 2RL,"95,336.00",Yes
"Housing, Communities & Local Government",MHCLG,11/05/2018,Current (non AEF) Grants to Local Authorities,Local Government & Public Services,SOUTH TYNESIDE COUNCIL,,,,345736438,5000400796,,Improved Better Care Fund,NE33 2RL,"788,569.00",Yes
"Housing, Communities & Local Government",MHCLG,11/05/2018,Current (non AEF) Grants to Local Authorities,Local Government & Public Services,SOUTHAMPTON CITY CNCL,,,,216927475,5000400797,,Additional Better Care Fund element,SO14 7LY,"526,930.00",Yes
"Housing, Communities & Local Government",MHCLG,11/05/2018,Current (non AEF) Grants to Local Authorities,Local Government & Public Services,SOUTHAMPTON CITY CNCL,,,,216927475,5000400798,,Adult Social Care Support Grant,SO14 7LY,"115,556.00",Yes
"Housing, Communities & Local Government",MHCLG,11/05/2018,Current (non AEF) Grants to Local Authorities,Local Government & Public Services,SOUTHAMPTON CITY CNCL,,,,216927475,5000400799,,Improved Better Care Fund,SO14 7LY,"731,423.00",Yes
"Housing, Communities & Local Government",MHCLG,11/05/2018,Current (non AEF) Grants to Local Authorities,Local Government & Public Services,SOUTHEND ON SEA BC,,,,217067263,5000400800,,Additional Better Care Fund element,SS2 6EP,"391,058.00",Yes
"Housing, Communities & Local Government",MHCLG,11/05/2018,Current (non AEF) Grants to Local Authorities,Local Government & Public Services,SOUTHEND ON SEA BC,,,,217067263,5000400801,,Adult Social Care Support Grant,SS2 6EP,"85,830.00",Yes
"Housing, Communities & Local Government",MHCLG,11/05/2018,Current (non AEF) Grants to Local Authorities,Local Government & Public Services,SOUTHEND ON SEA BC,,,,217067263,5000400802,,Improved Better Care Fund,SS2 6EP,"513,746.00",Yes
"Housing, Communities & Local Government",MHCLG,11/05/2018,Current (non AEF) Grants to Local Authorities,Local Government & Public Services,SOUTHWARK LB,,,,,5000400803,,Additional Better Care Fund element,SE1 2QH,"749,413.00",Yes
"Housing, Communities & Local Government",MHCLG,11/05/2018,Current (non AEF) Grants to Local Authorities,Local Government & Public Services,SOUTHWARK LB,,,,,5000400804,,Adult Social Care Support Grant,SE1 2QH,"163,603.00",Yes
"Housing, Communities & Local Government",MHCLG,11/05/2018,Current (non AEF) Grants to Local Authorities,Local Government & Public Services,SOUTHWARK LB,,,,,5000400805,,Improved Better Care Fund,SE1 2QH,"1,347,867.00",Yes
"Housing, Communities & Local Government",MHCLG,11/05/2018,Current (non AEF) Grants to Local Authorities,Local Government & Public Services,ST HELENS MBC,,,,,5000400806,,Adult Social Care Support Grant,WA10 1HP,"100,293.00",Yes
"Housing, Communities & Local Government",MHCLG,11/05/2018,Current (non AEF) Grants to Local Authorities,Local Government & Public Services,STAFFORDSHIRE COUNTY CNCL,,Public Bodies,,,5000400807,,Additional Better Care Fund element,ST16 2DH,"1,680,002.00",Yes
"Housing, Communities & Local Government",MHCLG,11/05/2018,Current (non AEF) Grants to Local Authorities,Local Government & Public Services,STAFFORDSHIRE COUNTY CNCL,,Public Bodies,,,5000400808,,Adult Social Care Support Grant,ST16 2DH,"368,940.00",Yes
"Housing, Communities & Local Government",MHCLG,11/05/2018,Current (non AEF) Grants to Local Authorities,Local Government & Public Services,STAFFORDSHIRE COUNTY CNCL,,Public Bodies,,,5000400809,,Improved Better Care Fund,ST16 2DH,"2,120,218.00",Yes
"Housing, Communities & Local Government",MHCLG,11/05/2018,Current (non AEF) Grants to Local Authorities,Local Government & Public Services,STOCKPORT MBC,,,,228706248,5000400810,,Additional Better Care Fund element,SK1 3XE,"605,931.00",Yes
"Housing, Communities & Local Government",MHCLG,11/05/2018,Current (non AEF) Grants to Local Authorities,Local Government & Public Services,STOCKPORT MBC,,,,228706248,5000400811,,Adult Social Care Support Grant,SK1 3XE,"133,663.00",Yes
"Housing, Communities & Local Government",MHCLG,11/05/2018,Current (non AEF) Grants to Local Authorities,Local Government & Public Services,STOCKPORT MBC,,,,228706248,5000400812,,Improved Better Care Fund,SK1 3XE,"518,410.00",Yes
"Housing, Communities & Local Government",MHCLG,11/05/2018,Current (non AEF) Grants to Local Authorities,Local Government & Public Services,STOCKTON-ON-TEES BC (HSG),,,,,5000400527,,Additional Better Care Fund element,TS23 2YS,"400,217.00",Yes
"Housing, Communities & Local Government",MHCLG,11/05/2018,Current (non AEF) Grants to Local Authorities,Local Government & Public Services,STOCKTON-ON-TEES BC (HSG),,,,,5000400528,,Adult Social Care Support Grant,TS23 2YS,"88,042.00",Yes
"Housing, Communities & Local Government",MHCLG,11/05/2018,Current (non AEF) Grants to Local Authorities,Local Government & Public Services,STOCKTON-ON-TEES BC (HSG),,,,,5000400529,,Improved Better Care Fund,TS23 2YS,"442,457.00",Yes
"Housing, Communities & Local Government",MHCLG,11/05/2018,Current (non AEF) Grants to Local Authorities,Local Government & Public Services,STOKE ON TRENT CITY COUNCIL,,,,216037890,5000400813,,Additional Better Care Fund element,ST4 1HH,"635,683.00",Yes
"Housing, Communities & Local Government",MHCLG,11/05/2018,Current (non AEF) Grants to Local Authorities,Local Government & Public Services,STOKE ON TRENT CITY COUNCIL,,,,216037890,5000400814,,Adult Social Care Support Grant,ST4 1HH,"138,734.00",Yes
"Housing, Communities & Local Government",MHCLG,11/05/2018,Current (non AEF) Grants to Local Authorities,Local Government & Public Services,STOKE ON TRENT CITY COUNCIL,,,,216037890,5000400815,,Improved Better Care Fund,ST4 1HH,"1,160,153.00",Yes
"Housing, Communities & Local Government",MHCLG,11/05/2018,Current (non AEF) Grants to Local Authorities,Local Government & Public Services,SUFFOLK CC (SOCIAL CARE SERV) (H,,,,385614821,5000400530,,Additional Better Care Fund element,IP4 1LH,"1,545,607.00",Yes
"Housing, Communities & Local Government",MHCLG,11/05/2018,Current (non AEF) Grants to Local Authorities,Local Government & Public Services,SUFFOLK CC (SOCIAL CARE SERV) (H,,,,385614821,5000400531,,Adult Social Care Support Grant,IP4 1LH,"339,716.00",Yes
"Housing, Communities & Local Government",MHCLG,11/05/2018,Current (non AEF) Grants to Local Authorities,Local Government & Public Services,SUFFOLK CC (SOCIAL CARE SERV) (H,,,,385614821,5000400532,,Improved Better Care Fund,IP4 1LH,"1,830,924.00",Yes
"Housing, Communities & Local Government",MHCLG,11/05/2018,Current (non AEF) Grants to Local Authorities,Local Government & Public Services,SURREY COUNTY COUNCIL,,Public Bodies,,,5000400816,,Additional Better Care Fund element,KT1 2DN,"1,315,755.00",Yes
"Housing, Communities & Local Government",MHCLG,11/05/2018,Current (non AEF) Grants to Local Authorities,Local Government & Public Services,SURREY COUNTY COUNCIL,,Public Bodies,,,5000400817,,Adult Social Care Support Grant,KT1 2DN,"416,091.00",Yes
"Housing, Communities & Local Government",MHCLG,11/05/2018,Current (non AEF) Grants to Local Authorities,Local Government & Public Services,SUTTON LB,,,,,5000400818,,Additional Better Care Fund element,SM1 1EA,"346,453.00",Yes
"Housing, Communities & Local Government",MHCLG,11/05/2018,Current (non AEF) Grants to Local Authorities,Local Government & Public Services,SUTTON LB,,,,,5000400819,,Adult Social Care Support Grant,SM1 1EA,"76,797.00",Yes
"Housing, Communities & Local Government",MHCLG,11/05/2018,Current (non AEF) Grants to Local Authorities,Local Government & Public Services,SUTTON LB,,,,,5000400820,,Improved Better Care Fund,SM1 1EA,"142,515.00",Yes
"Housing, Communities & Local Government",MHCLG,11/05/2018,Current (non AEF) Grants to Local Authorities,Local Government & Public Services,SWINDON BC,,,,458639697,5000400821,,Additional Better Care Fund element,SN1 2JH,"362,764.00",Yes
"Housing, Communities & Local Government",MHCLG,11/05/2018,Current (non AEF) Grants to Local Authorities,Local Government & Public Services,SWINDON BC,,,,458639697,5000400822,,Adult Social Care Support Grant,SN1 2JH,"80,128.00",Yes
"Housing, Communities & Local Government",MHCLG,11/05/2018,Current (non AEF) Grants to Local Authorities,Local Government & Public Services,SWINDON BC,,,,458639697,5000400823,,Improved Better Care Fund,SN1 2JH,"266,973.00",Yes
"Housing, Communities & Local Government",MHCLG,11/05/2018,Current (non AEF) Grants to Local Authorities,Local Government & Public Services,TAMESIDE MBC,,,,212635875,5000400824,,Additional Better Care Fund element,OL6 0GA,"549,789.00",Yes
"Housing, Communities & Local Government",MHCLG,11/05/2018,Current (non AEF) Grants to Local Authorities,Local Government & Public Services,TAMESIDE MBC,,,,212635875,5000400825,,Adult Social Care Support Grant,OL6 0GA,"120,207.00",Yes
"Housing, Communities & Local Government",MHCLG,11/05/2018,Current (non AEF) Grants to Local Authorities,Local Government & Public Services,TAMESIDE MBC,,,,212635875,5000400826,,Improved Better Care Fund,OL6 0GA,"912,788.00",Yes
"Housing, Communities & Local Government",MHCLG,11/05/2018,Current (non AEF) Grants to Local Authorities,Local Government & Public Services,TELFORD & WREKIN COUNCIL,,,,230235801,5000400827,,Additional Better Care Fund element,TF3 4NT,"368,158.00",Yes
"Housing, Communities & Local Government",MHCLG,11/05/2018,Current (non AEF) Grants to Local Authorities,Local Government & Public Services,TELFORD & WREKIN COUNCIL,,,,230235801,5000400828,,Adult Social Care Support Grant,TF3 4NT,"80,652.00",Yes
"Housing, Communities & Local Government",MHCLG,11/05/2018,Current (non AEF) Grants to Local Authorities,Local Government & Public Services,TELFORD & WREKIN COUNCIL,,,,230235801,5000400829,,Improved Better Care Fund,TF3 4NT,"546,354.00",Yes
"Housing, Communities & Local Government",MHCLG,11/05/2018,Current (non AEF) Grants to Local Authorities,Local Government & Public Services,THURROCK  BOROUGH COUNCIL,,,,,5000400830,,Additional Better Care Fund element,RM17 6SL,"309,787.00",Yes
"Housing, Communities & Local Government",MHCLG,11/05/2018,Current (non AEF) Grants to Local Authorities,Local Government & Public Services,THURROCK  BOROUGH COUNCIL,,,,,5000400831,,Adult Social Care Support Grant,RM17 6SL,"68,144.00",Yes
"Housing, Communities & Local Government",MHCLG,11/05/2018,Current (non AEF) Grants to Local Authorities,Local Government & Public Services,THURROCK  BOROUGH COUNCIL,,,,,5000400832,,Improved Better Care Fund,RM17 6SL,"344,614.00",Yes
"Housing, Communities & Local Government",MHCLG,11/05/2018,Current (non AEF) Grants to Local Authorities,Local Government & Public Services,TORBAY BC,,,,,5000400833,,Additional Better Care Fund element,TQ1 3DR,"394,468.00",Yes
"Housing, Communities & Local Government",MHCLG,11/05/2018,Current (non AEF) Grants to Local Authorities,Local Government & Public Services,TORBAY BC,,,,,5000400834,,Adult Social Care Support Grant,TQ1 3DR,"86,307.00",Yes
"Housing, Communities & Local Government",MHCLG,11/05/2018,Current (non AEF) Grants to Local Authorities,Local Government & Public Services,TORBAY BC,,,,,5000400835,,Improved Better Care Fund,TQ1 3DR,"630,355.00",Yes
"Housing, Communities & Local Government",MHCLG,11/05/2018,Current (non AEF) Grants to Local Authorities,Local Government & Public Services,TOWER HAMLETS LB (HSG),,,,231315144,5000400533,,Additional Better Care Fund element,E14 2BG,"699,293.00",Yes
"Housing, Communities & Local Government",MHCLG,11/05/2018,Current (non AEF) Grants to Local Authorities,Local Government & Public Services,TOWER HAMLETS LB (HSG),,,,231315144,5000400534,,Adult Social Care Support Grant,E14 2BG,"152,594.00",Yes
"Housing, Communities & Local Government",MHCLG,11/05/2018,Current (non AEF) Grants to Local Authorities,Local Government & Public Services,TOWER HAMLETS LB (HSG),,,,231315144,5000400535,,Improved Better Care Fund,E14 2BG,"1,285,191.00",Yes
"Housing, Communities & Local Government",MHCLG,11/05/2018,Current (non AEF) Grants to Local Authorities,Local Government & Public Services,TRAFFORD MBC,,,,,5000400836,,Additional Better Care Fund element,M32 0TH,"447,910.00",Yes
"Housing, Communities & Local Government",MHCLG,11/05/2018,Current (non AEF) Grants to Local Authorities,Local Government & Public Services,TRAFFORD MBC,,,,,5000400837,,Adult Social Care Support Grant,M32 0TH,"98,507.00",Yes
"Housing, Communities & Local Government",MHCLG,11/05/2018,Current (non AEF) Grants to Local Authorities,Local Government & Public Services,TRAFFORD MBC,,,,,5000400838,,Improved Better Care Fund,M32 0TH,"506,278.00",Yes
"Housing, Communities & Local Government",MHCLG,11/05/2018,Current (non AEF) Grants to Local Authorities,Local Government & Public Services,WALSALL MBC,,,,212515585,5000400842,,Additional Better Care Fund element,WS1 1TW,"680,604.00",Yes
"Housing, Communities & Local Government",MHCLG,11/05/2018,Current (non AEF) Grants to Local Authorities,Local Government & Public Services,WALSALL MBC,,,,212515585,5000400843,,Adult Social Care Support Grant,WS1 1TW,"149,143.00",Yes
"Housing, Communities & Local Government",MHCLG,11/05/2018,Current (non AEF) Grants to Local Authorities,Local Government & Public Services,WALSALL MBC,,,,212515585,5000400844,,Improved Better Care Fund,WS1 1TW,"992,213.00",Yes
"Housing, Communities & Local Government",MHCLG,11/05/2018,Current (non AEF) Grants to Local Authorities,Local Government & Public Services,WALTHAM FOREST LB,,,,,5000400845,,Additional Better Care Fund element,E17 4JA,"516,070.00",Yes
"Housing, Communities & Local Government",MHCLG,11/05/2018,Current (non AEF) Grants to Local Authorities,Local Government & Public Services,WALTHAM FOREST LB,,,,,5000400846,,Adult Social Care Support Grant,E17 4JA,"113,401.00",Yes
"Housing, Communities & Local Government",MHCLG,11/05/2018,Current (non AEF) Grants to Local Authorities,Local Government & Public Services,WALTHAM FOREST LB,,,,,5000400847,,Improved Better Care Fund,E17 4JA,"622,981.00",Yes
"Housing, Communities & Local Government",MHCLG,11/05/2018,Current (non AEF) Grants to Local Authorities,Local Government & Public Services,WANDSWORTH LB,,,,,5000400848,,Additional Better Care Fund element,SW18 2PU,"621,730.00",Yes
"Housing, Communities & Local Government",MHCLG,11/05/2018,Current (non AEF) Grants to Local Authorities,Local Government & Public Services,WANDSWORTH LB,,,,,5000400849,,Adult Social Care Support Grant,SW18 2PU,"135,146.00",Yes
"Housing, Communities & Local Government",MHCLG,11/05/2018,Current (non AEF) Grants to Local Authorities,Local Government & Public Services,WANDSWORTH LB,,,,,5000400850,,Improved Better Care Fund,SW18 2PU,"1,358,628.00",Yes
"Housing, Communities & Local Government",MHCLG,11/05/2018,Current (non AEF) Grants to Local Authorities,Local Government & Public Services,WARRINGTON BC,,,,,5000400851,,Additional Better Care Fund element,WA1 1BN,"389,032.00",Yes
"Housing, Communities & Local Government",MHCLG,11/05/2018,Current (non AEF) Grants to Local Authorities,Local Government & Public Services,WARRINGTON BC,,,,,5000400852,,Adult Social Care Support Grant,WA1 1BN,"85,803.00",Yes
"Housing, Communities & Local Government",MHCLG,11/05/2018,Current (non AEF) Grants to Local Authorities,Local Government & Public Services,WARRINGTON BC,,,,,5000400853,,Improved Better Care Fund,WA1 1BN,"338,764.00",Yes
"Housing, Communities & Local Government",MHCLG,11/05/2018,Current (non AEF) Grants to Local Authorities,Local Government & Public Services,WARWICKSHIRE COUNTY CNCL,,,,210396290,5000400854,,Additional Better Care Fund element,CV34 4RH,"1,053,213.00",Yes
"Housing, Communities & Local Government",MHCLG,11/05/2018,Current (non AEF) Grants to Local Authorities,Local Government & Public Services,WARWICKSHIRE COUNTY CNCL,,,,210396290,5000400855,,Adult Social Care Support Grant,CV34 4RH,"232,760.00",Yes
"Housing, Communities & Local Government",MHCLG,11/05/2018,Current (non AEF) Grants to Local Authorities,Local Government & Public Services,WARWICKSHIRE COUNTY CNCL,,,,210396290,5000400856,,Improved Better Care Fund,CV34 4RH,"723,260.00",Yes
"Housing, Communities & Local Government",MHCLG,11/05/2018,Current (non AEF) Grants to Local Authorities,Local Government & Public Services,WEST BERKSHIRE COUNCIL,,,,364809181,5000400857,,Additional Better Care Fund element,RG14 2AF,"97,274.00",Yes
"Housing, Communities & Local Government",MHCLG,11/05/2018,Current (non AEF) Grants to Local Authorities,Local Government & Public Services,WEST BERKSHIRE COUNCIL,,,,364809181,5000400858,,Adult Social Care Support Grant,RG14 2AF,"52,175.00",Yes
"Housing, Communities & Local Government",MHCLG,11/05/2018,Current (non AEF) Grants to Local Authorities,Local Government & Public Services,WEST SUSSEX CC,,Public Bodies,,232198762,5000400859,,Additional Better Care Fund element,PO19 1RG,"1,554,615.00",Yes
"Housing, Communities & Local Government",MHCLG,11/05/2018,Current (non AEF) Grants to Local Authorities,Local Government & Public Services,WEST SUSSEX CC,,Public Bodies,,232198762,5000400860,,Adult Social Care Support Grant,PO19 1RG,"344,096.00",Yes
"Housing, Communities & Local Government",MHCLG,11/05/2018,Current (non AEF) Grants to Local Authorities,Local Government & Public Services,WEST SUSSEX CC,,Public Bodies,,232198762,5000400861,,Improved Better Care Fund,PO19 1RG,"850,352.00",Yes
"Housing, Communities & Local Government",MHCLG,11/05/2018,Current (non AEF) Grants to Local Authorities,Local Government & Public Services,WESTMINSTER CITY CNCL,,,,229845706,5000400862,,Additional Better Care Fund element,SW1E 6QP,"634,403.00",Yes
"Housing, Communities & Local Government",MHCLG,11/05/2018,Current (non AEF) Grants to Local Authorities,Local Government & Public Services,WESTMINSTER CITY CNCL,,,,229845706,5000400863,,Adult Social Care Support Grant,SW1E 6QP,"137,823.00",Yes
"Housing, Communities & Local Government",MHCLG,11/05/2018,Current (non AEF) Grants to Local Authorities,Local Government & Public Services,WESTMINSTER CITY CNCL,,,,229845706,5000400864,,Improved Better Care Fund,SW1E 6QP,"1,418,308.00",Yes
"Housing, Communities & Local Government",MHCLG,11/05/2018,Current (non AEF) Grants to Local Authorities,Local Government & Public Services,WIGAN MBC,,Public Bodies,,,5000400865,,Additional Better Care Fund element,WN1 1AZ,"757,847.00",Yes
"Housing, Communities & Local Government",MHCLG,11/05/2018,Current (non AEF) Grants to Local Authorities,Local Government & Public Services,WIGAN MBC,,Public Bodies,,,5000400866,,Adult Social Care Support Grant,WN1 1AZ,"165,850.00",Yes
"Housing, Communities & Local Government",MHCLG,11/05/2018,Current (non AEF) Grants to Local Authorities,Local Government & Public Services,WIGAN MBC,,Public Bodies,,,5000400867,,Improved Better Care Fund,WN1 1AZ,"1,195,311.00",Yes
"Housing, Communities & Local Government",MHCLG,11/05/2018,Current (non AEF) Grants to Local Authorities,Local Government & Public Services,WILTSHIRE COUNCIL,,,,211341656,5000400880,,Additional Better Care Fund element,BA14 4DS,"856,590.00",Yes
"Housing, Communities & Local Government",MHCLG,11/05/2018,Current (non AEF) Grants to Local Authorities,Local Government & Public Services,WILTSHIRE COUNCIL,,,,211341656,5000400881,,Adult Social Care Support Grant,BA14 4DS,"189,895.00",Yes
"Housing, Communities & Local Government",MHCLG,11/05/2018,Current (non AEF) Grants to Local Authorities,Local Government & Public Services,WILTSHIRE COUNCIL,,,,211341656,5000400882,,Improved Better Care Fund,BA14 4DS,"345,118.00",Yes
"Housing, Communities & Local Government",MHCLG,11/05/2018,Current (non AEF) Grants to Local Authorities,Local Government & Public Services,WINDSOR & MAIDENHEAD (HSG),,,,227411998,5000400536,,Additional Better Care Fund element,SL6 1RF,"223,456.00",Yes
"Housing, Communities & Local Government",MHCLG,11/05/2018,Current (non AEF) Grants to Local Authorities,Local Government & Public Services,WINDSOR & MAIDENHEAD (HSG),,,,227411998,5000400537,,Adult Social Care Support Grant,SL6 1RF,"49,629.00",Yes
"Housing, Communities & Local Government",MHCLG,11/05/2018,Current (non AEF) Grants to Local Authorities,Local Government & Public Services,WINDSOR & MAIDENHEAD (HSG),,,,227411998,5000400538,,Improved Better Care Fund,SL6 1RF,"52,176.00",Yes
"Housing, Communities & Local Government",MHCLG,11/05/2018,Current (non AEF) Grants to Local Authorities,Local Government & Public Services,WIRRAL MBC,,,,211222602,5000400868,,Adult Social Care Support Grant,CH41 6BU,"187,531.00",Yes
"Housing, Communities & Local Government",MHCLG,11/05/2018,Current (non AEF) Grants to Local Authorities,Local Government & Public Services,WOKINGHAM DC,,,,,5000400869,,Additional Better Care Fund element,RG11 1WJ,"18,796.00",Yes
"Housing, Communities & Local Government",MHCLG,11/05/2018,Current (non AEF) Grants to Local Authorities,Local Government & Public Services,WOKINGHAM DC,,,,,5000400870,,Adult Social Care Support Grant,RG11 1WJ,"41,830.00",Yes
"Housing, Communities & Local Government",MHCLG,11/05/2018,Current (non AEF) Grants to Local Authorities,Local Government & Public Services,WOLVERHAMPTON MBC,,,,229895453,5000400871,,Additional Better Care Fund element,WV1 1RL,"655,619.00",Yes
"Housing, Communities & Local Government",MHCLG,11/05/2018,Current (non AEF) Grants to Local Authorities,Local Government & Public Services,WOLVERHAMPTON MBC,,,,229895453,5000400872,,Adult Social Care Support Grant,WV1 1RL,"143,377.00",Yes
"Housing, Communities & Local Government",MHCLG,11/05/2018,Current (non AEF) Grants to Local Authorities,Local Government & Public Services,WOLVERHAMPTON MBC,,,,229895453,5000400873,,Improved Better Care Fund,WV1 1RL,"1,075,625.00",Yes
"Housing, Communities & Local Government",MHCLG,11/05/2018,Current (non AEF) Grants to Local Authorities,Local Government & Public Services,WORCESTERSHIRE COUNTY COUNCIL,,,,230359643,5000400874,,Additional Better Care Fund element,WR5 2NP,"1,127,532.00",Yes
"Housing, Communities & Local Government",MHCLG,11/05/2018,Current (non AEF) Grants to Local Authorities,Local Government & Public Services,WORCESTERSHIRE COUNTY COUNCIL,,,,230359643,5000400875,,Adult Social Care Support Grant,WR5 2NP,"248,389.00",Yes
"Housing, Communities & Local Government",MHCLG,11/05/2018,Current (non AEF) Grants to Local Authorities,Local Government & Public Services,WORCESTERSHIRE COUNTY COUNCIL,,,,230359643,5000400876,,Improved Better Care Fund,WR5 2NP,"1,102,975.00",Yes
"Housing, Communities & Local Government",MHCLG,11/05/2018,Current (non AEF) Grants to Local Authorities,Local Government & Public Services,YORK CITY CNCL,,,,,5000400877,,Additional Better Care Fund element,YO1 0EG,"345,353.00",Yes
"Housing, Communities & Local Government",MHCLG,11/05/2018,Current (non AEF) Grants to Local Authorities,Local Government & Public Services,YORK CITY CNCL,,,,,5000400878,,Adult Social Care Support Grant,YO1 0EG,"76,226.00",Yes
"Housing, Communities & Local Government",MHCLG,11/05/2018,Current (non AEF) Grants to Local Authorities,Local Government & Public Services,YORK CITY CNCL,,,,,5000400879,,Improved Better Care Fund,YO1 0EG,"277,135.00",Yes
"Housing, Communities & Local Government",MHCLG,11/05/2018,Current Grants to Non Profit Bodies,Housing & BSP,AMBITION EAST MIDLANDS LTD,,,,,5000400468,,Fair Chance Fund Payment,DE7 8HU,"17,362.00",Yes
"Housing, Communities & Local Government",MHCLG,11/05/2018,Current Grants to Non Profit Bodies,Housing & BSP,ASPIRE GLOUCESTERSHIRE LTD,,,,,5000400469,,Fair Chance Fund Payment,GL50 3DA,"18,638.00",Yes
"Housing, Communities & Local Government",MHCLG,11/05/2018,Current Grants to Non Profit Bodies,Housing & BSP,FAIR CHANCE LIVERPOOL & KNOWSLEY,,,,,5000400467,,Fair Chance Fund Payment,W1W 5BB,"6,925.00",Yes
"Housing, Communities & Local Government",MHCLG,11/05/2018,Electronic Data Storage,Chief Finance Office,TNT UK LIMITED,,Large,,,5106236148,Warehousing and Storage,Visions electronic storage,BL10 9GR,"4,425.90",
"Housing, Communities & Local Government",MHCLG,11/05/2018,ERDF Work in Progress � Resource,Decentralisation and Local Growth,CENTRAL RESEARCH LABORATORY,,Micro,,,7700002027,,ERDF Grant payment,SW1P 1DZ,"46,144.45",Yes
"Housing, Communities & Local Government",MHCLG,11/05/2018,ERDF Work in Progress � Resource,Decentralisation and Local Growth,GENERATOR NORTH EAST LTD,Yes,,,,7700002029,,ERDF Grant payment offset,NE1 2PQ,"-5,812.50",Yes
"Housing, Communities & Local Government",MHCLG,11/05/2018,ERDF Work in Progress � Resource,Decentralisation and Local Growth,GENERATOR NORTH EAST LTD,Yes,,,,7700002030,,ERDF Grant payment,NE1 2PQ,"68,475.98",Yes
"Housing, Communities & Local Government",MHCLG,11/05/2018,ERDF Work in Progress � Resource,Decentralisation and Local Growth,NORTHUMBERLAND BUSINESS SERVICE LTD,,Small,,,7700002028,,ERDF Grant payment,NE63 8AP,"256,266.76",Yes
"Housing, Communities & Local Government",MHCLG,11/05/2018,Grant in Aid to NDPBs (non budget),Housing & BSP,HOMES ENGLAND,,Public Bodies,,215576860,2100282602,,Homes England May 2018 Grant in Aid payment,NE11 0NA,"304,665,475.00",Yes
"Housing, Communities & Local Government",MHCLG,11/05/2018,"IT - PC, Network & Hardware",Chief Finance Office,PROBRAND LTD,,Medium,,,5106236180,ICT Hardware,Delivery charges (est),B1 3BP,14.40,
"Housing, Communities & Local Government",MHCLG,11/05/2018,"IT - PC, Network & Hardware",Chief Finance Office,PROBRAND LTD,,Medium,,,5106236180,ICT Hardware,Dell XPS 13,B1 3BP,"11,752.56",
"Housing, Communities & Local Government",MHCLG,11/05/2018,IT - Service Contracts,Chief Finance Office,CAJA,,Micro,,,5106236032,IT Managed / Outsourced Services,DELTA Comms manager,ST5 5NB,"1,785.00",
"Housing, Communities & Local Government",MHCLG,11/05/2018,IT - Service Contracts,Chief Finance Office,RAINMAKER SOLUTIONS LTD,,Medium,,,5106236144,IT Managed / Outsourced Services,Digital transformation,MK18 1HD,"4,520.00",
"Housing, Communities & Local Government",MHCLG,11/05/2018,IT - Service Contracts,Chief Finance Office,TEAMULTRA LTD,,Medium,,,5106236173,IT Managed / Outsourced Services,ServiceNow configuration,AL10 9TW,"36,717.50",
"Housing, Communities & Local Government",MHCLG,11/05/2018,Publications,Decentralisation and Local Growth,KANTAR MEDIA,Yes,Large,,,5106236063,Learning and Development Materials,Press monitoring service monthly subscription,EC2M 2QS,"1,250.00",
"Housing, Communities & Local Government",MHCLG,11/05/2018,Steady State Service Provision,Chief Finance Office,VODAFONE LTD FORMELY CABLE  & WIREL,,Large,,239869688,5106236172,Business Process Outsourcing Services,PSN WAN Services FY18/19,MK3 5JP,"32,677.73",
"Housing, Communities & Local Government",MHCLG,11/05/2018,Steady State Service Provision,Corporate Services,NATIONAL AUDIT OFFICE,,Public Bodies,,239831654,5106236174,Business Process Outsourcing Services,PC&C Strategy Day Venue,SW1W 9SP,750.00,
"Housing, Communities & Local Government",MHCLG,11/05/2018,Training,Chief Finance Office,SEMANTIC INTEGRATION LTD,,Small,,,5106236034,Development and Training,Civil Service Training,SE11 5JH,"1,500.00",
"Housing, Communities & Local Government",MHCLG,11/05/2018,Web Services,Decentralisation and Local Growth,DEXTROUS WEB LTD,,Micro,,211267270,5106236159,ICT Services,Web hosting for Own Your Own Home website,N1 7NG,726.60,
"Housing, Communities & Local Government",MHCLG,14/05/2018,Agency Staff,Chief Finance Office,BROOK STREET UK LTD,,Large,,364940028,5106236212,Contingent Labour,Interim Admin support,AL1 4JB,683.76,
"Housing, Communities & Local Government",MHCLG,14/05/2018,Agency Staff,Chief Finance Office,CAPITA BUS. SERV. LTD (CON LAB),,Large,,,5106236184,Contingent Labour,BST tech support and testing EO (6 month,DL1 9WQ,"1,145.94",
"Housing, Communities & Local Government",MHCLG,14/05/2018,Agency Staff,Chief Finance Office,CAPITA BUS. SERV. LTD (CON LAB),,Large,,,5106236188,Contingent Labour,Developing Digital Cap ext apr-sept 18,DL1 9WQ,"3,603.67",
"Housing, Communities & Local Government",MHCLG,14/05/2018,Agency Staff,Chief Finance Office,CAPITA BUS. SERV. LTD (CON LAB),,Large,,,5106236190,Contingent Labour,Cloud architecture - Interim Manager,DL1 9WQ,"3,445.10",
"Housing, Communities & Local Government",MHCLG,14/05/2018,Agency Staff,Chief Finance Office,CAPITA BUS. SERV. LTD (CON LAB),,Large,,,5106236193,Contingent Labour,cyber adviser ext,DL1 9WQ,"4,798.51",
"Housing, Communities & Local Government",MHCLG,14/05/2018,Agency Staff,Chief Finance Office,CAPITA BUS. SERV. LTD (CON LAB),,Large,,,5106236195,Contingent Labour,Interim Manager,DL1 9WQ,"3,472.20",
"Housing, Communities & Local Government",MHCLG,14/05/2018,Agency Staff,Chief Finance Office,CAPITA BUS. SERV. LTD (CON LAB),,Large,,,5106236196,Contingent Labour,Interim Manager,DL1 9WQ,"3,826.14",
"Housing, Communities & Local Government",MHCLG,14/05/2018,Agency Staff,Chief Finance Office,CAPITA BUS. SERV. LTD (CON LAB),,Large,,,5106236198,Contingent Labour,User Research Lead - RRJ,DL1 9WQ,"2,552.11",
"Housing, Communities & Local Government",MHCLG,14/05/2018,Agency Staff,Chief Finance Office,CAPITA BUS. SERV. LTD (CON LAB),,Large,,,5106236199,Contingent Labour,Interim Manager,DL1 9WQ,"4,126.14",
"Housing, Communities & Local Government",MHCLG,14/05/2018,Agency Staff,Corporate Services,BROOK STREET UK LTD,,Large,,364940028,5106236210,Contingent Labour,Support Worker - Reasonable Adjustment,AL1 4JB,586.66,
"Housing, Communities & Local Government",MHCLG,14/05/2018,Agency Staff,Decentralisation and Local Growth,CAPITA BUS. SERV. LTD (CON LAB),,Large,,,5106236197,Contingent Labour,Interim Staff,DL1 9WQ,"1,297.20",
"Housing, Communities & Local Government",MHCLG,14/05/2018,Agency Staff,Decentralisation and Local Growth,CAPITA BUS. SERV. LTD (CON LAB),,Large,,,5106236200,Contingent Labour,RGF Grant payment ,DL1 9WQ,"1,410.30",
"Housing, Communities & Local Government",MHCLG,14/05/2018,Agency Staff,Housing & BSP,CAPITA BUS. SERV. LTD (CON LAB),,Large,,,5106236189,Contingent Labour,Interim Admin support,DL1 9WQ,"1,489.39",
"Housing, Communities & Local Government",MHCLG,14/05/2018,Agency Staff,Housing & BSP,CAPITA BUS. SERV. LTD (CON LAB),,Large,,,5106236191,Contingent Labour,Interim Manager,DL1 9WQ,832.28,
"Housing, Communities & Local Government",MHCLG,14/05/2018,Agency Staff,Local Government & Public Services,BROOK STREET UK LTD,,Large,,364940028,5106236213,Contingent Labour,Interim Admin support,AL1 4JB,901.34,
"Housing, Communities & Local Government",MHCLG,14/05/2018,EXP � PURCHASE OF GOODS /SERVICES R & D,Chief Finance Office,NATIONAL CENTRE FOR SOCIAL RESEARCH,,Large,,424047426,5106236215,Research,Research - Private Landlord Survey,EC1V 0AX,"22,546.00",
"Housing, Communities & Local Government",MHCLG,14/05/2018,"IT - PC, Network & Hardware",Chief Finance Office,X M A LTD,,Large,,298484148,5106236143,ICT Hardware,IT Equipment,NG11 7EP,"6,284.82",
"Housing, Communities & Local Government",MHCLG,14/05/2018,IT - Service Contracts,Chief Finance Office,CAPITA BUS. SERV. LTD (CON LAB),,Large,,,5106236185,Contingent Labour,Digital Service Director - SP,DL1 9WQ,"13,100.63",
"Housing, Communities & Local Government",MHCLG,14/05/2018,IT - Service Contracts,Chief Finance Office,PERFORM GREEN LTD,,Micro,,,5106235885,IT Managed / Outsourced Services,Digital Transformation - call off,BS1 6QH,"9,000.00",
"Housing, Communities & Local Government",MHCLG,14/05/2018,IT - Service Contracts,Chief Finance Office,RAINMAKER SOLUTIONS LTD,,Medium,,,5106236257,IT Managed / Outsourced Services,IT User Research Service - Phase 2,MK18 1HD,"4,775.00",
"Housing, Communities & Local Government",MHCLG,14/05/2018,IT Maintenance,Chief Finance Office,ORACLE CORPORATION UK LTD,,Large,,291601524,5106236149,ICT Services,Oracle Support 5390971 (SL48/2540 DR),RG6 1RA,"3,738.85",
"Housing, Communities & Local Government",MHCLG,14/05/2018,IT Maintenance,Chief Finance Office,ORACLE CORPORATION UK LTD,,Large,,291601524,5106236150,ICT Services,Oracle Support GB-1011116 (SL48),RG6 1RA,"5,264.06",
"Housing, Communities & Local Government",MHCLG,14/05/2018,IT Maintenance,Chief Finance Office,ORACLE CORPORATION UK LTD,,Large,,291601524,5106236151,ICT Services,Oracle Support 6394104 (t4-1 NPCON),RG6 1RA,"2,353.06",
"Housing, Communities & Local Government",MHCLG,14/05/2018,IT Maintenance,Chief Finance Office,ORACLE CORPORATION UK LTD,,Large,,291601524,5106236153,ICT Services,Oracle Support 11527619 (T7 & T7DR),RG6 1RA,"6,594.44",
"Housing, Communities & Local Government",MHCLG,14/05/2018,IT Maintenance,Chief Finance Office,ORACLE CORPORATION UK LTD,,Large,,291601524,5106236154,ICT Services,Oracle Support 5046295 (M3000 Backnet),RG6 1RA,"3,052.90",
"Housing, Communities & Local Government",MHCLG,14/05/2018,Mobile phone costs,Chief Finance Office,GAMMA TELECOM LTD,,Large,,,5106236217,Telecoms,Running costs Non-VAT,EC4M 7RD,126.50,
"Housing, Communities & Local Government",MHCLG,14/05/2018,Mobile phone costs,Chief Finance Office,GAMMA TELECOM LTD,,Large,,,5106236217,Telecoms,SO12178 - Contract Running Costs 18/19,EC4M 7RD,"13,696.21",
"Housing, Communities & Local Government",MHCLG,14/05/2018,Physical Storage,Chief Finance Office,TNT UK LIMITED,,Large,,,5106236246,Warehousing and Storage,Offsite Records Storage FYR 18/19,BL10 9GR,"1,535.29",
"Housing, Communities & Local Government",MHCLG,14/05/2018,Physical Storage,Chief Finance Office,TNT UK LIMITED,,Large,,,5106236248,Warehousing and Storage,Offsite Records Storage FYR 18/19,BL10 9GR,"4,040.65",
"Housing, Communities & Local Government",MHCLG,14/05/2018,Physical Storage,Chief Finance Office,TNT UK LIMITED,,Large,,,5106236249,Warehousing and Storage,Offsite Records Storage FYR 18/19,BL10 9GR,"22,441.27",
"Housing, Communities & Local Government",MHCLG,14/05/2018,Physical Storage,Chief Finance Office,TNT UK LIMITED,,Large,,,5106236250,Warehousing and Storage,Offsite Records Storage FYR 18/19,BL10 9GR,875.65,
"Housing, Communities & Local Government",MHCLG,14/05/2018,Professional services,Chief Finance Office,CAPITA BUS. SERV. LTD (CON LAB),,Large,,,5106236187,Contingent Labour,ATLAS Project costs,DL1 9WQ,"5,756.28",
"Housing, Communities & Local Government",MHCLG,14/05/2018,Professional services,Housing & BSP,EXOVA (UK) LTD,,Large,,229005434,5106236206,Operation of Industrial Facilities,fire door testing,EH52 5AU,"10,188.00",
"Housing, Communities & Local Government",MHCLG,14/05/2018,Training,Chief Finance Office,LSR TRAINING AND DEVELOPMENT LTD,,Micro,,,5106236147,Development and Training,Civil Service Training,YO42 4RE,745.00,
"Housing, Communities & Local Government",MHCLG,14/05/2018,Utilisation of Unfunded Pension Scheme,Chief Finance Office,LONDON PENSIONS FUND AUTHORITY,,Public Bodies,,236915880,5106236232,Financial,Pension fund management,SE1 0LL,384.80,
"Housing, Communities & Local Government",MHCLG,15/05/2018,Agency Staff,Housing & BSP,ALLEN LANE LTD,,Medium,Yes,,5106236267,Contingent Labour,BSP Recruitment - Project Specialist,,"3,360.00",
"Housing, Communities & Local Government",MHCLG,15/05/2018,Conferences and Meeting Facilities,Housing & BSP,TPAS LTD,Yes,Small,,399552603,5106236205,Business Travel Accommodation,SHS Ministerial Engagement Events,M16 0LD,"2,090.76",
"Housing, Communities & Local Government",MHCLG,15/05/2018,Current (non AEF) Grants to Local Authorities,Housing & BSP,LONDON BOROUGH OF ENFIELD,,,,227475613,2100282667,,Rent Officer Pensions refund 18/19,EN1 3XE,"6,626.19",Yes
"Housing, Communities & Local Government",MHCLG,15/05/2018,Current Grants to Non Profit Bodies,Local Government & Public Services,CHURCH URBAN FUND,,Small,,396728263,2100282669,,Near Neighbours programme,SW1P 3AZ,"325,000.00",Yes
"Housing, Communities & Local Government",MHCLG,15/05/2018,ERDF Work in Progress � Resource,Decentralisation and Local Growth,CORNWALL DEVELOPMENT COMPANY,,Medium,,,7700002032,,ERDF Grant payment,TR15 3QG,"190,579.15",Yes
"Housing, Communities & Local Government",MHCLG,15/05/2018,ERDF Work in Progress � Resource,Decentralisation and Local Growth,CORNWALL DEVELOPMENT COMPANY,,Medium,,,7700002035,,ERDF Grant payment,TR15 3QG,"142,475.20",Yes
"Housing, Communities & Local Government",MHCLG,15/05/2018,ERDF Work in Progress � Resource,Decentralisation and Local Growth,SERCO REGIONAL SERVICES LIMITED,,,,,7700002034,,ERDF Grant payment,PL6 8LU,"232,948.23",Yes
"Housing, Communities & Local Government",MHCLG,15/05/2018,ERDF Work in Progress � Resource,Decentralisation and Local Growth,UNIVERSITY OF THE WEST OF ENGLAND,,Large,,,7700002031,,ERDF Grant payment offset,BS16 1QY,"-2,403.20",Yes
"Housing, Communities & Local Government",MHCLG,15/05/2018,ERDF Work in Progress � Resource,Decentralisation and Local Growth,UNIVERSITY OF THE WEST OF ENGLAND,,Large,,,7700002033,,ERDF Grant payment,BS16 1QY,"41,617.68",Yes
"Housing, Communities & Local Government",MHCLG,15/05/2018,ERDF Work in Progress � Resource,Decentralisation and Local Growth,WENTA,,Small,,,7700002036,,ERDF Grant payment,WD24 7ND,"47,796.12",Yes
"Housing, Communities & Local Government",MHCLG,15/05/2018,IT - Service Contracts,Chief Finance Office,DAISY CORPORATE SERVICES LTD,,Large,,221481042,5106236269,IT Managed / Outsourced Services,New DCS Contract calls 17/18,BB9 5SR,"1,058.00",
"Housing, Communities & Local Government",MHCLG,15/05/2018,Professional services,Housing & BSP,EXOVA (UK) LTD,,Large,,229005434,5106236268,Operation of Industrial Facilities,fire door testing,EH52 5AU,"10,188.00",
"Housing, Communities & Local Government",MHCLG,15/05/2018,Training,Chief Finance Office,KPMG LLP (CSL),,Large,,,5106236272,Development and Training,Civil Service Training,E14 5GL,249.00,
"Housing, Communities & Local Government",MHCLG,15/05/2018,Training,Corporate Services,BOOKBOON.COM LTD,,Small,,,5106236260,Development and Training,Civil Service Training,N1 6DR,750.00,
"Housing, Communities & Local Government",MHCLG,16/05/2018,Agency Staff,Housing & BSP,ALLEN LANE LTD,,Medium,Yes,,5106236304,Contingent Labour,BSP Recruitment - Project Specialist,,336.00,
"Housing, Communities & Local Government",MHCLG,16/05/2018,Agency Staff,Housing & BSP,ALLEN LANE LTD,,Medium,Yes,,5106236304,Contingent Labour,BSP Recruitment - Project Specialist,,"2,352.00",
"Housing, Communities & Local Government",MHCLG,16/05/2018,Cap Grants to Local Authorities (DEL),Housing & BSP,BARKING & DAGENHAM LB (HSG),,,,217142293,5000400906,,Disabled Facilities Capital,RM10 7BY,"1,516,631.00",Yes
"Housing, Communities & Local Government",MHCLG,16/05/2018,Cap Grants to Local Authorities (DEL),Housing & BSP,BARNSLEY MBC,,,,211178595,5000400953,,Disabled Facilities Capital,S70 2AQ,"2,758,216.00",Yes
"Housing, Communities & Local Government",MHCLG,16/05/2018,Cap Grants to Local Authorities (DEL),Housing & BSP,BATH & NE SOMERSET DC (HSG),,,,214502499,5000400908,,Disabled Facilities Capital,BA1 5AW,"1,177,682.00",Yes
"Housing, Communities & Local Government",MHCLG,16/05/2018,Cap Grants to Local Authorities (DEL),Housing & BSP,BEDFORD UNITARY AUTHORITY,,,,225682160,5000401182,,Disabled Facilities Capital,MK40 1SJ,"1,152,225.00",Yes
"Housing, Communities & Local Government",MHCLG,16/05/2018,Cap Grants to Local Authorities (DEL),Housing & BSP,BEXLEY LB (HSG),,,,,5000400910,,Disabled Facilities Capital,DA8 1TL,"2,421,656.00",Yes
"Housing, Communities & Local Government",MHCLG,16/05/2018,Cap Grants to Local Authorities (DEL),Housing & BSP,BIRMINGHAM CITY CNCL,,,,213780559,5000400954,,Disabled Facilities Capital,B2 2AJ,"10,571,321.00",Yes
"Housing, Communities & Local Government",MHCLG,16/05/2018,Cap Grants to Local Authorities (DEL),Housing & BSP,BLACKBURN WITH DARWEN BC,,,,,5000400957,,Disabled Facilities Capital,BB1 7DY,"1,739,476.00",Yes
"Housing, Communities & Local Government",MHCLG,16/05/2018,Cap Grants to Local Authorities (DEL),Housing & BSP,BLACKPOOL BC,,,,,5000400958,,Disabled Facilities Capital,FY1 1NA,"2,135,766.00",Yes
"Housing, Communities & Local Government",MHCLG,16/05/2018,Cap Grants to Local Authorities (DEL),Housing & BSP,BOLTON MBC,,,,,5000400960,,Disabled Facilities Capital,BL1 1RU,"2,922,256.00",Yes
"Housing, Communities & Local Government",MHCLG,16/05/2018,Cap Grants to Local Authorities (DEL),Housing & BSP,BOURNEMOUTH DC,,,,,5000400961,,Disabled Facilities Capital,BH2 6EB,"1,367,220.00",Yes
"Housing, Communities & Local Government",MHCLG,16/05/2018,Cap Grants to Local Authorities (DEL),Housing & BSP,BRACKNELL FOREST DC,,,,236184867,5000400964,,Disabled Facilities Capital,RG12 1AQ,"790,938.00",Yes
"Housing, Communities & Local Government",MHCLG,16/05/2018,Cap Grants to Local Authorities (DEL),Housing & BSP,BRADFORD MBC,,,,,5000400965,,Disabled Facilities Capital,BD1 1HX,"4,195,774.00",Yes
"Housing, Communities & Local Government",MHCLG,16/05/2018,Cap Grants to Local Authorities (DEL),Housing & BSP,BRENT LB (HSG),,,,,5000400912,,Disabled Facilities Capital,HA9 9HD,"4,342,596.00",Yes
"Housing, Communities & Local Government",MHCLG,16/05/2018,Cap Grants to Local Authorities (DEL),Housing & BSP,BRIGHTON & HOVE CITY COUNCIL,,Large,,228455218,5000400967,,Disabled Facilities Capital,BN1 3JE,"1,889,097.00",Yes
"Housing, Communities & Local Government",MHCLG,16/05/2018,Cap Grants to Local Authorities (DEL),Housing & BSP,BRISTOL CITY COUNCIL (HSG),,,,211103882,5000400914,,Disabled Facilities Capital,BS3 9FS,"2,881,793.00",Yes
"Housing, Communities & Local Government",MHCLG,16/05/2018,Cap Grants to Local Authorities (DEL),Housing & BSP,BROMLEY LB,,,,211331954,5000400970,,Disabled Facilities Capital,BR1 3UH,"1,994,974.00",Yes
"Housing, Communities & Local Government",MHCLG,16/05/2018,Cap Grants to Local Authorities (DEL),Housing & BSP,BUCKINGHAMSHIRE CC,,,,293750923,5000400971,,Disabled Facilities Capital,HP20 1UD,"3,320,891.00",Yes
"Housing, Communities & Local Government",MHCLG,16/05/2018,Cap Grants to Local Authorities (DEL),Housing & BSP,BURY MBC,,,,,5000400973,,Disabled Facilities Capital,BL9 0SW,"1,696,080.00",Yes
"Housing, Communities & Local Government",MHCLG,16/05/2018,Cap Grants to Local Authorities (DEL),Housing & BSP,CALDERDALE MBC,,,,,5000400974,,Disabled Facilities Capital,HX1 1YP,"2,477,225.00",Yes
"Housing, Communities & Local Government",MHCLG,16/05/2018,Cap Grants to Local Authorities (DEL),Housing & BSP,CAMBRIDGESHIRE COUNTY CNCL,,,,219047347,5000400977,,Disabled Facilities Capital,CB3 0AP,"4,140,576.00",Yes
"Housing, Communities & Local Government",MHCLG,16/05/2018,Cap Grants to Local Authorities (DEL),Housing & BSP,CAMDEN LB,,,,211651836,5000400978,,Disabled Facilities Capital,WC1H 8NG,"854,926.00",Yes
"Housing, Communities & Local Government",MHCLG,16/05/2018,Cap Grants to Local Authorities (DEL),Housing & BSP,CENTRAL BEDFORDSHIRE COUNCIL,,,,232624882,5000401177,,Disabled Facilities Capital,SG17 5TQ,"1,573,663.00",Yes
"Housing, Communities & Local Government",MHCLG,16/05/2018,Cap Grants to Local Authorities (DEL),Housing & BSP,CHESHIRE EAST COUNCIL,,Large,,,5000401179,,Disabled Facilities Capital,CW11 1HZ,"1,913,035.00",Yes
"Housing, Communities & Local Government",MHCLG,16/05/2018,Cap Grants to Local Authorities (DEL),Housing & BSP,CHESHIRE WEST & CHESTER UA,,Large,,215584383,5000401180,,Disabled Facilities Capital,CH1 2NP,"3,012,434.00",Yes
"Housing, Communities & Local Government",MHCLG,16/05/2018,Cap Grants to Local Authorities (DEL),Housing & BSP,CITY OF LONDON (HSG),,,,217471460,5000400915,,Disabled Facilities Capital,EC2P 2EJ,"30,294.00",Yes
"Housing, Communities & Local Government",MHCLG,16/05/2018,Cap Grants to Local Authorities (DEL),Housing & BSP,CITY OF SUNDERLAND (HSG),,,,215599312,5000400917,,Disabled Facilities Capital,SR2 7DN,"3,312,263.00",Yes
